Workbook

Sheet BEP
A2: Produkcja kapitałochłonna | B2: A. | M2: Produkcja pracochłonna | N2: B. | AB2: A | AE2: B
Z3: q | AA3: s | AB3: ks | AC3: kz | AD3: KC | AE3: ks | AF3: kz | AG3: KC
A4: C j | B4: =C4/10 -> 1.5 | C4: 15 | M4: C j | N4: =B4 -> 1.5 | O4: 9 | Z4: 0 | AA4: =Z4*$B$4 -> 0 | AB4: =B$8 -> 15000 | AC4: =Z4*$B$6 -> 0 | AD4: =AB4+AC4 -> 15000 | AE4: =$N$8 -> 2000 | AF4: =$N$6*Z4 -> 0 | AG4: =AE4+AF4 -> 2000
Z5: 1000 | AA5: 1500 | AB5: 15000 | AC5: 200 | AD5: 15200 | AE5: 2000 | AF5: 1000 | AG5: 3000
A6: Kz j | B6: =C6/10 -> 0.2 | C6: 2 | M6: Kz j | N6: =O6/10 -> 1 | O6: 10 | Z6: 2000 | AA6: 3000 | AB6: 15000 | AC6: 400 | AD6: 15400 | AE6: 2000 | AF6: 2000 | AG6: 4000
Z7: 3000 | AA7: 4500 | AB7: 15000 | AC7: 600 | AD7: 15600 | AE7: 2000 | AF7: 3000 | AG7: 5000
A8: KS | B8: =C8*100 -> 15000 | C8: 150 | M8: KS | N8: =O8*100 -> 2000 | O8: 20 | Z8: 4000 | AA8: 6000 | AB8: 15000 | AC8: 800 | AD8: 15800 | AE8: 2000 | AF8: 4000 | AG8: 6000
Z9: 5000 | AA9: 7500 | AB9: 15000 | AC9: 1000 | AD9: 16000 | AE9: 2000 | AF9: 5000 | AG9: 7000
A10: BEP | B10: =B8/(B4-B6) -> 11538.46154 | M10: BEP | N10: =N8/(N4-N6) -> 4000 | Z10: 6000 | AA10: 9000 | AB10: 15000 | AC10: 1200 | AD10: 16200 | AE10: 2000 | AF10: 6000 | AG10: 8000
A11: BEP ' | B11: =B10*B4 -> 17307.69231 | M11: BEP ' | N11: =N10*N4 -> 6000 | Z11: 7000 | AA11: 10500 | AB11: 15000 | AC11: 1400 | AD11: 16400 | AE11: 2000 | AF11: 7000 | AG11: 9000
Z12: 8000 | AA12: 12000 | AB12: 15000 | AC12: 1600 | AD12: 16600 | AE12: 2000 | AF12: 8000 | AG12: 10000
A13: DOL | B13: =B27/B29 -> 3.468363804 | M13: DOL | N13: =N27/N29 -> 1.327519856 | Z13: 9000 | AA13: 13500 | AB13: 15000 | AC13: 1800 | AD13: 16800 | AE13: 2000 | AF13: 9000 | AG13: 11000
Z14: 10000 | AA14: 15000 | AB14: 15000 | AC14: 2000 | AD14: 17000 | AE14: 2000 | AF14: 10000 | AG14: 12000
A15: % KS | B15: =B8/(B8+(G31*B6)) -> 0.8222512142 | M15: % KS | N15: =N8/(N8+(G31*N6)) -> 0.109811673 | Z15: 11000 | AA15: 16500 | AB15: 15000 | AC15: 2200 | AD15: 17200 | AE15: 2000 | AF15: 11000 | AG15: 13000
A16: % KZ | B16: =(G31*B6)/(B8+(G31*B6)) -> 0.1777487858 | M16: % KZ | N16: =(N6*G31)/(N8+(N6*G31)) -> 0.890188327 | Z16: 12000 | AA16: 18000 | AB16: 15000 | AC16: 2400 | AD16: 17400 | AE16: 2000 | AF16: 12000 | AG16: 14000
Z17: 13000 | AA17: 19500 | AB17: 15000 | AC17: 2600 | AD17: 17600 | AE17: 2000 | AF17: 13000 | AG17: 15000
A18: Margines bezp. | B18: =IFERROR((G31-B10)/G31,"-") -> 0.2883203887 | M18: Margines bezp. | N18: =IFERROR((G31-N10)/G31,"-") -> 0.7532844014 | Z18: 14000 | AA18: 21000 | AB18: 15000 | AC18: 2800 | AD18: 17800 | AE18: 2000 | AF18: 14000 | AG18: 16000
Z19: 15000 | AA19: 22500 | AB19: 15000 | AC19: 3000 | AD19: 18000 | AE19: 2000 | AF19: 15000 | AG19: 17000
A20: Nowy popyt | B20: 20000 | M20: Nowy popyt | N20: =B20 -> 20000 | Z20: 16000 | AA20: 24000 | AB20: 15000 | AC20: 3200 | AD20: 18200 | AE20: 2000 | AF20: 16000 | AG20: 18000
A21: Nowy WO | B21: =IFERROR(B29*(1+(B13*((B20-G31)/G31))),"-") -> 11000 | M21: Nowy WO | N21: =IFERROR(N29*(1+(N13*((N20-G31)/G31))),"-") -> 8000 | Z21: 17000 | AA21: 25500 | AB21: 15000 | AC21: 3400 | AD21: 18400 | AE21: 2000 | AF21: 17000 | AG21: 19000
A22: % ZM S | B22: =C22/100 -> 1 | C22: 100 | M22: % ZM S | N22: =B22 -> 1 | O22: 100 | Z22: 18000 | AA22: 27000 | AB22: 15000 | AC22: 3600 | AD22: 18600 | AE22: 2000 | AF22: 18000 | AG22: 20000
A23: % ZM WO | B23: =B22*B13 -> 3.468363804 | M23: % ZM WO | N23: =N22*N13 -> 1.327519856 | Z23: 19000 | AA23: 28500 | AB23: 15000 | AC23: 3800 | AD23: 18800 | AE23: 2000 | AF23: 19000 | AG23: 21000
Z24: 20000 | AA24: 30000 | AB24: 15000 | AC24: 4000 | AD24: 19000 | AE24: 2000 | AF24: 20000 | AG24: 22000
A25: Przychody | B25: =G31*B4 -> 24319.5 | M25: Przychody | N25: =G31*N4 -> 24319.5 | Z25: 21000 | AA25: 31500 | AB25: 15000 | AC25: 4200 | AD25: 19200 | AE25: 2000 | AF25: 21000 | AG25: 23000
A26: Koszty zmienne | B26: =G31*B6 -> 3242.6 | M26: Koszty zmienne | N26: =G31*N6 -> 16213 | Z26: 22000 | AA26: 33000 | AB26: 15000 | AC26: 4400 | AD26: 19400 | AE26: 2000 | AF26: 22000 | AG26: 24000
A27: MB | B27: =G31*(B4-B6) -> 21076.9 | M27: MB | N27: =G31*(N4-N6) -> 8106.5 | Z27: 23000 | AA27: 34500 | AB27: 15000 | AC27: 4600 | AD27: 19600 | AE27: 2000 | AF27: 23000 | AG27: 25000
A28: Koszty stałe | B28: =B8 -> 15000 | M28: Koszty stałe | N28: =N8 -> 2000 | Z28: 24000 | AA28: 36000 | AB28: 15000 | AC28: 4800 | AD28: 19800 | AE28: 2000 | AF28: 24000 | AG28: 26000
A29: Wynik operacyjny | B29: =B27-B8 -> 6076.9 | M29: Wynik operacyjny | N29: =N27-N8 -> 6106.5 | Z29: 25000 | AA29: 37500 | AB29: 15000 | AC29: 5000 | AD29: 20000 | AE29: 2000 | AF29: 25000 | AG29: 27000
Z30: 26000 | AA30: 39000 | AB30: 15000 | AC30: 5200 | AD30: 20200 | AE30: 2000 | AF30: 26000 | AG30: 28000
A31: Koszty całkowite | B31: =G31*B6+B8 -> 18242.6 | E31: Popyt na wyroby | G31: 16213 | M31: Koszty całkowite | N31: =G31*N6+N8 -> 18213 | Z31: 27000 | AA31: 40500 | AB31: 15000 | AC31: 5400 | AD31: 20400 | AE31: 2000 | AF31: 27000 | AG31: 29000
Z32: 28000 | AA32: 42000 | AB32: 15000 | AC32: 5600 | AD32: 20600 | AE32: 2000 | AF32: 28000 | AG32: 30000
Z33: 29000 | AA33: 43500 | AB33: 15000 | AC33: 5800 | AD33: 20800 | AE33: 2000 | AF33: 29000 | AG33: 31000
Z34: 30000 | AA34: 45000 | AB34: 15000 | AC34: 6000 | AD34: 21000 | AE34: 2000 | AF34: 30000 | AG34: 32000
AA38: =G31 -> 16213 | AB38: =B31 -> 18242.6 | AD38: =G31 -> 16213 | AE38: =N31 -> 18213
AA39: =G31 -> 16213 | AB39: =B25 -> 24319.5 | AD39: =G31 -> 16213 | AE39: =N25 -> 24319.5

Sheet Dźwignie
B2: KAPITAŁ CAŁKOWITY = | D2: 200000 | E2: ="% udział kapitału własnego = " & TEXT( $D$3/$D$2,"0%") -> % udział kapitału własnego = 100%
B3: ="KAPITAŁ WŁASNY (" & TEXT( $D$3/$D$2,"0%") & ") =" -> KAPITAŁ WŁASNY (100%) = | D3: =$D$2*$AF$12/100 -> 200000
B4: ="KAPITAŁ OBCY (" & TEXT( $D$4/$D$2,"0%") & ") =" -> KAPITAŁ OBCY (0%) = | D4: =$D$2-$D$3 -> 0 | E4: TECHNOLOGIA A
B5: akcje w szt. = | D5: =D3/$D$7 -> 20000 | E5: Koszt zmienny jedn. = | G5: =AI12/100 -> 1
B6: odsetki = | D6: =D4*$D$8 -> 0 | E6: Koszty stałe = | G6: =AI13*1000 -> 50000
B7: cena 1 akcji (zł) = | D7: 10 | E7: TECHNOLOGIA B | J7: Cena jednostkowa = | L7: =1+AF15/100 -> 1.5
B8: oprocentowanie = | D8: 0.2 | E8: Koszt zmienny jedn. = | G8: =AI14/100 -> 0.5 | J8: Przeciętny popyt E(Q) = | L8: =AF13*1000 -> 200000
B9: stopa podatku = | D9: 0.19 | E9: Koszty stałe = | G9: =AI15*1000 -> 150000 | J9: Zmienność popytu S(Q) = | L9: =AF14*500 -> 50000
C11: E (EBIT) | D11: S (EBIT) | E11: cv (EBIT) | F11: MIN (EBIT) | G11: MAX (EBIT) | I11: E (EBIT) | J11: S (EBIT) | K11: cv (EBIT) | L11: MIN (EBIT) | M11: MAX (EBIT)
B12: EBIT A -> | C12: =MC!I7 -> 50186.2521 | D12: =MC!I8 -> 24038.17321 | E12: =MC!I9 -> 0.4789792464 | F12: =MC!I5 -> -25206.12778 | G12: =MC!I4 -> 133332.7903 | H12: EBIT B -> | I12: =MC!V7 -> 50372.5042 | J12: =MC!V8 -> 48076.34642 | K12: =MC!V9 -> 0.9544164458 | L12: =MC!V5 -> -100412.2556 | M12: =MC!V4 -> 216665.5805 | AE12: KW | AF12: 100 | AH12: kzjA | AI12: 100
AE13: E(Q) | AF13: 200 | AH13: ksA | AI13: 50
AE14: S(Q) | AF14: 100 | AH14: kzjB | AI14: 50
AE15: cj | AF15: 50 | AH15: ksB | AI15: 150
AE19: -50000 | AF19: =FREQUENCY(popyt,AE19:AE35) -> 0 | AH19: =AI19/1000 -> -250 | AI19: -250000 | AJ19: =FREQUENCY(EBIT_A,$AI$19:$AI$54) -> 0 | AK19: =FREQUENCY(EBIT_B,$AI$19:$AI$54) -> 0 | AM19: -15 | AN19: =FREQUENCY(EPS_A,$AM$19:$AM$59) -> 0 | AO19: =FREQUENCY(EPS_B,$AM$19:$AM$59) -> 0
C20: E (EPS) | D20: S (EPS) | E20: cv (EPS) | F20: MIN (EPS) | G20: MAX (EPS) | I20: E (EPS) | J20: S (EPS) | K20: cv (EPS) | L20: MIN (EPS) | M20: MAX (EPS) | AE20: 0 | AF20: 0 | AH20: =AI20/1000 -> -232.8571429 | AI20: =AI19+($AI$54-$AI$19)/35 -> -232857.1429 | AJ20: 0 | AK20: 0 | AM20: -14 | AN20: 0 | AO20: 0
B21: EPS A -> | C21: =MC!L7 -> 2.031071542 | D21: =MC!L8 -> 0.9775822819 | E21: =MC!L9 -> 0.4813135636 | F21: =MC!L5 -> -1.260306389 | G21: =MC!L4 -> 5.399978005 | H21: EPS B -> | I21: =MC!Y7 -> 2.0066873 | J21: =MC!Y8 -> 2.013716597 | K21: =MC!Y9 -> 1.003502936 | L21: =MC!Y5 -> -5.020612778 | M21: =MC!Y4 -> 8.77495601 | AE21: 50000 | AF21: 1 | AH21: -215.7142857 | AI21: -215714.2857 | AJ21: 0 | AK21: 0 | AM21: -13 | AN21: 0 | AO21: 0
AE22: 100000 | AF22: 16 | AH22: -198.5714286 | AI22: -198571.4286 | AJ22: 0 | AK22: 0 | AM22: -12 | AN22: 0 | AO22: 0
AE23: 150000 | AF23: 122 | AH23: -181.4285714 | AI23: -181428.5714 | AJ23: 0 | AK23: 0 | AM23: -11 | AN23: 0 | AO23: 0
AE24: 200000 | AF24: 363 | AH24: -164.2857143 | AI24: -164285.7143 | AJ24: 0 | AK24: 0 | AM24: -10 | AN24: 0 | AO24: 0
AE25: 250000 | AF25: 353 | AH25: -147.1428571 | AI25: -147142.8571 | AJ25: 0 | AK25: 0 | AM25: -9 | AN25: 0 | AO25: 0
AE26: 300000 | AF26: 122 | AH26: -130 | AI26: -130000 | AJ26: 0 | AK26: 0 | AM26: -8 | AN26: 0 | AO26: 0
AE27: 350000 | AF27: 19 | AH27: -112.8571429 | AI27: -112857.1429 | AJ27: 0 | AK27: 0 | AM27: -7 | AN27: 0 | AO27: 0
AE28: 400000 | AF28: 4 | AH28: -95.71428571 | AI28: -95714.28571 | AJ28: 0 | AK28: 1 | AM28: -6 | AN28: 0 | AO28: 0
AE29: 450000 | AF29: 0 | AH29: -78.57142857 | AI29: -78571.42857 | AJ29: 0 | AK29: 2 | AM29: -5 | AN29: 0 | AO29: 1
AE30: 500000 | AF30: 0 | AH30: -61.42857143 | AI30: -61428.57143 | AJ30: 0 | AK30: 8 | AM30: -4 | AN30: 0 | AO30: 2
AE31: 550000 | AF31: 0 | AH31: -44.28571429 | AI31: -44285.71429 | AJ31: 0 | AK31: 13 | AM31: -3 | AN31: 0 | AO31: 10
AE32: 600000 | AF32: 0 | AH32: -27.14285714 | AI32: -27142.85714 | AJ32: 0 | AK32: 29 | AM32: -2 | AN32: 0 | AO32: 17
AE33: 650000 | AF33: 0 | AH33: -10 | AI33: -10000 | AJ33: 5 | AK33: 50 | AM33: -1 | AN33: 2 | AO33: 38
AE34: 700000 | AF34: 0 | AH34: 7.142857143 | AI34: 7142.857143 | AJ34: 32 | AK34: 74 | AM34: 0 | AN34: 15 | AO34: 71
AE35: 750000 | AF35: 0 | AH35: 24.28571429 | AI35: 24285.71429 | AJ35: 99 | AK35: 109 | AM35: 1 | AN35: 121 | AO35: 153
AH36: 41.42857143 | AI36: 41428.57143 | AJ36: 215 | AK36: 137 | AM36: 2 | AN36: 355 | AO36: 204
AE37: x | AF37: y | AH37: 58.57142857 | AI37: 58571.42857 | AJ37: 306 | AK37: 154 | AM37: 3 | AN37: 357 | AO37: 209
AE38: 1 | AF38: =MC!$C$7+MC!$C$8 -> 248448.8506 | AH38: 75.71428571 | AI38: 75714.28571 | AJ38: 203 | AK38: 132 | AM38: 4 | AN38: 126 | AO38: 146
AE39: 1000 | AF39: =AF38 -> 248448.8506 | AH39: 92.85714286 | AI39: 92857.14286 | AJ39: 98 | AK39: 100 | AM39: 5 | AN39: 20 | AO39: 76
AH40: 110 | AI40: 110000 | AJ40: 34 | AK40: 70 | AM40: 6 | AN40: 4 | AO40: 49
AE41: x | AF41: y | AH41: 127.1428571 | AI41: 127142.8571 | AJ41: 7 | AK41: 46 | AM41: 7 | AN41: 0 | AO41: 17
AE42: 1 | AF42: =MC!$C$7 -> 200372.5042 | AH42: 144.2857143 | AI42: 144285.7143 | AJ42: 1 | AK42: 33 | AM42: 8 | AN42: 0 | AO42: 3
AE43: 1000 | AF43: =AF42 -> 200372.5042 | AH43: 161.4285714 | AI43: 161428.5714 | AJ43: 0 | AK43: 19 | AM43: 9 | AN43: 0 | AO43: 4
AH44: 178.5714286 | AI44: 178571.4286 | AJ44: 0 | AK44: 4 | AM44: 10 | AN44: 0 | AO44: 0
AE45: x | AF45: y | AH45: 195.7142857 | AI45: 195714.2857 | AJ45: 0 | AK45: 3 | AM45: 11 | AN45: 0 | AO45: 0
AE46: 1 | AF46: =MC!$C$7-MC!$C$8 -> 152296.1578 | AH46: 212.8571429 | AI46: 212857.1429 | AJ46: 0 | AK46: 3 | AM46: 12 | AN46: 0 | AO46: 0
AE47: 1000 | AF47: =AF46 -> 152296.1578 | AH47: 230 | AI47: 230000 | AJ47: 0 | AK47: 1 | AM47: 13 | AN47: 0 | AO47: 0
AH48: 247.1428571 | AI48: 247142.8571 | AJ48: 0 | AK48: 0 | AM48: 14 | AN48: 0 | AO48: 0
AH49: 264.2857143 | AI49: 264285.7143 | AJ49: 0 | AK49: 0 | AM49: 15 | AN49: 0 | AO49: 0
AH50: 281.4285714 | AI50: 281428.5714 | AJ50: 0 | AK50: 0 | AM50: 16 | AN50: 0 | AO50: 0
AH51: 298.5714286 | AI51: 298571.4286 | AJ51: 0 | AK51: 0 | AM51: 17 | AN51: 0 | AO51: 0
AH52: 315.7142857 | AI52: 315714.2857 | AJ52: 0 | AK52: 0 | AM52: 18 | AN52: 0 | AO52: 0
AH53: 332.8571429 | AI53: 332857.1429 | AJ53: 0 | AK53: 0 | AM53: 19 | AN53: 0 | AO53: 0
AH54: 350 | AI54: 350000 | AJ54: 0 | AK54: 0 | AM54: 20 | AN54: 0 | AO54: 0
AM55: 21 | AN55: 0 | AO55: 0
AI56: x | AJ56: y | AK56: y | AM56: 22 | AN56: 0 | AO56: 0
AI57: 1 | AJ57: =MC!$I$7+MC!$I$8 -> 74224.42531 | AK57: =MC!$V$7+MC!$V$8 -> 98448.85062 | AM57: 23 | AN57: 0 | AO57: 0
AI58: 1000 | AJ58: =AJ57 -> 74224.42531 | AK58: =AK57 -> 98448.85062 | AM58: 24 | AN58: 0 | AO58: 0
AM59: 25 | AN59: 0 | AO59: 0
AI60: x | AJ60: y | AK60: y
AI61: 1 | AJ61: =MC!$I$7 -> 50186.2521 | AK61: =MC!$V$7 -> 50372.5042 | AM61: x | AN61: y | AO61: y
AI62: 1000 | AJ62: =AJ61 -> 50186.2521 | AK62: =AK61 -> 50372.5042 | AM62: 1 | AN62: =MC!$L$7+MC!$L$8 -> 3.008653824 | AO62: =MC!$Y$7+MC!$Y$8 -> 4.020403896
AM63: 1000 | AN63: =AN62 -> 3.008653824 | AO63: =AO62 -> 4.020403896
AI64: x | AJ64: y | AK64: y
AI65: 1 | AJ65: =MC!$I$7-MC!$I$8 -> 26148.07889 | AK65: =MC!$V$7-MC!$V$8 -> 2296.157777 | AM65: x | AN65: y | AO65: y
AI66: 1000 | AJ66: =AJ65 -> 26148.07889 | AK66: =AK65 -> 2296.157777 | AM66: 1 | AN66: =MC!$L$7 -> 2.031071542 | AO66: =MC!$Y$7 -> 2.0066873
AM67: 1000 | AN67: =AN66 -> 2.031071542 | AO67: =AO66 -> 2.0066873
AM69: x | AN69: y | AO69: y
AM70: 1 | AN70: =MC!$L$7-MC!$L$8 -> 1.05348926 | AO70: =MC!$Y$7-MC!$Y$8 -> -0.007029297102
AM71: 1000 | AN71: =AN70 -> 1.05348926 | AO71: =AO70 -> -0.007029297102

Sheet SD
C2: Technologia A | H2: Technologia B
B4: Przychody ze sprzedaży | C4: =MC!D7 -> 300558.7563 | E4: 0.22 | F4: =E4 -> 0.22 | H4: =C4 -> 300558.7563 | J4: -0.2 | K4: =J4 -> -0.2
B5: - Koszty zmienne | C5: =-MC!F7 -> -200372.5042 | E5: =C6/C8 -> 1.996288782 | F5: =E5*E9 -> 1.996288782 | H5: =-MC!S7 -> -100186.2521 | J5: =H6/H8 -> 3.977815028 | K5: =J5*J9 -> 3.977815028
B6: = Marża | C6: =C4+C5 -> 100186.2521 | H6: =H4+H5 -> 200372.5042
B7: - Koszty stałe | C7: =-MC!H7 -> -50000 | H7: =-MC!U7 -> -150000
B8: = Wynik operacyjny | C8: =C6+C7 -> 50186.2521 | E8: =E4*E5 -> 0.4391835321 | H8: =H6+H7 -> 50372.5042 | J8: =J4*J5 -> -0.7955630056
B9: - Odetki | C9: =-Dźwignie!D6 -> 0 | E9: =C8/C10 -> 1 | H9: =-Dźwignie!D6 -> 0 | J9: =H8/H10 -> 1
B10: = Wynki brutto | C10: =C8+C9 -> 50186.2521 | H10: =H8+H9 -> 50372.5042
B11: - Podatek dochodowy | C11: =-C10*Dźwignie!D9 -> -9535.387899 | H11: =-H10*Dźwignie!D9 -> -9570.775798
B12: = Wynik netto | C12: =C10+C11 -> 40650.8642 | H12: =H10+H11 -> 40801.7284
B13: liczba akcji | C13: =Dźwignie!D5 -> 20000 | H13: =Dźwignie!D5 -> 20000
B14: EPS | C14: =C12/C13 -> 2.03254321 | E14: =E8*E9 -> 0.4391835321 | F14: =F4*F5 -> 0.4391835321 | H14: =H12/H13 -> 2.04008642 | J14: =J8*J9 -> -0.7955630056 | K14: =K4*K5 -> -0.7955630056
B15: ROE | C15: =C12/Dźwignie!D3 -> 0.203254321 | H15: =H12/Dźwignie!D3 -> 0.204008642

Sheet MC
H2: TECHNOLOGIA - A | U2: TECHNOLOGIA - B
A4: MAX(x) | C4: =MAX(kolumna) -> 366665.5805 | D4: =MAX(kolumna) -> 549998.3708 | E4: MAX(x) | F4: =MAX(kolumna) -> 366665.5805 | G4: 183332.7903 | H4: 50000 | I4: 133332.7903 | J4: 133332.7903 | K4: 107999.5601 | L4: 5.399978005 | R4: MAX(x) | S4: =MAX(kolumna) -> 183332.7903 | T4: 366665.5805 | U4: 150000 | V4: 216665.5805 | W4: 216665.5805 | X4: 175499.1202 | Y4: 8.77495601
A5: MIN(x) | C5: =MIN(kolumna) -> 49587.74444 | D5: =MIN(kolumna) -> 74381.61667 | E5: MIN(x) | F5: =MIN(kolumna) -> 49587.74444 | G5: 24793.87222 | H5: 50000 | I5: -25206.12778 | J5: -25206.12778 | K5: -25206.12778 | L5: -1.260306389 | R5: MIN(x) | S5: =MIN(kolumna) -> 24793.87222 | T5: 49587.74444 | U5: 150000 | V5: -100412.2556 | W5: -100412.2556 | X5: -100412.2556 | Y5: -5.020612778
A7: E(x) | C7: =AVERAGE(kolumna) -> 200372.5042 | D7: =AVERAGE(kolumna) -> 300558.7563 | E7: E(x) | F7: =AVERAGE(kolumna) -> 200372.5042 | G7: 100186.2521 | H7: 50000 | I7: 50186.2521 | J7: 50186.2521 | K7: 40621.43085 | L7: 2.031071542 | R7: E(x) | S7: =AVERAGE(kolumna) -> 100186.2521 | T7: 200372.5042 | U7: 150000 | V7: 50372.5042 | W7: 50372.5042 | X7: 40133.74599 | Y7: 2.0066873
A8: s(x) | C8: =STDEV(kolumna) -> 48076.34642 | D8: =STDEV(kolumna) -> 72114.51963 | E8: s(x) | F8: =STDEV(kolumna) -> 48076.34642 | G8: 24038.17321 | H8: 0 | I8: 24038.17321 | J8: 24038.17321 | K8: 19551.64564 | L8: 0.9775822819 | R8: s(x) | S8: =STDEV(kolumna) -> 24038.17321 | T8: 48076.34642 | U8: 0 | V8: 48076.34642 | W8: 48076.34642 | X8: 40274.33193 | Y8: 2.013716597
A9: cv(x) | C9: =C8/C7 -> 0.2399348484 | D9: =D8/D7 -> 0.2399348484 | E9: cv(x) | F9: =F8/F7 -> 0.2399348484 | G9: 0.2399348484 | H9: 0 | I9: 0.4789792464 | J9: 0.4789792464 | K9: 0.4813135636 | L9: 0.4813135636 | R9: cv(x) | S9: =S8/S7 -> 0.2399348484 | T9: 0.2399348484 | U9: 0 | V9: 0.9544164458 | W9: 0.9544164458 | X9: 1.003502936 | Y9: 1.003502936
C11: S (szt) | D11: S | F11: KZ | G11: MC | H11: KS | I11: EBIT | J11: EBT | K11: NI | L11: EPS | M11: ROA | N11: ROE | O11: DOL | P11: DFL | Q11: DTL | S11: KZ | T11: MC | U11: KS | V11: EBIT | W11: EBT | X11: NI | Y11: EPS | Z11: ROA | AA11: ROE | AB11: DOL | AC11: DFL | AD11: DTL
B12: los<0;1>
A13: 1 | B13: 0.1826810241 | C13: =NORMINV(B13,Dźwignie!$L$8,Dźwignie!$L$9) -> 154740.246 | D13: =Dźwignie!$L$7*C13 -> 232110.369 | F13: =C13*Dźwignie!$G$5 -> 154740.246 | G13: =$D13-F13 -> 77370.12301 | H13: =Dźwignie!$G$6 -> 50000 | I13: =G13-H13 -> 27370.12301 | J13: =I13-Dźwignie!$D$6 -> 27370.12301 | K13: =IF(J13>0,J13*(1-Dźwignie!$D$9),J13) -> 22169.79964 | L13: =K13/Dźwignie!$D$5 -> 1.108489982 | M13: =I13/Dźwignie!$D$2 -> 0.1368506151 | N13: =K13/Dźwignie!$D$3 -> 0.1108489982 | O13: =IF(I13<>0,G13/I13,"N ") -> 2.826809473 | P13: =IF(J13<>0,I13/J13,"N ") -> 1 | Q13: =IF(ISTEXT(O13),O13,IF(ISTEXT(P13),P13,O13*P13)) -> 2.826809473 | S13: =C13*Dźwignie!$G$8 -> 77370.12301 | T13: =$D13-S13 -> 154740.246 | U13: =Dźwignie!$G$9 -> 150000 | V13: =T13-U13 -> 4740.246023 | W13: =V13-Dźwignie!$D$6 -> 4740.246023 | X13: =IF(W13>0,W13*(1-Dźwignie!$D$9),W13) -> 3839.599278 | Y13: =X13/Dźwignie!$D$5 -> 0.1919799639 | Z13: =V13/Dźwignie!$D$2 -> 0.02370123011 | AA13: =X13/Dźwignie!$D$3 -> 0.01919799639 | AB13: =IF(V13<>0,T13/V13,"N ") -> 32.64392719 | AC13: =IF(W13<>0,V13/W13,"N ") -> 1 | AD13: =IF(ISTEXT(AB13),AB13,IF(ISTEXT(AC13),AC13,AB13*AC13)) -> 32.64392719
A14: 2 | B14: 0.7765840292 | C14: =NORMINV(B14,Dźwignie!$L$8,Dźwignie!$L$9) -> 238035.3627 | D14: =Dźwignie!$L$7*C14 -> 357053.044 | F14: =C14*Dźwignie!$G$5 -> 238035.3627 | G14: 119017.6813 | H14: =Dźwignie!$G$6 -> 50000 | I14: 69017.68133 | J14: =I14-Dźwignie!$D$6 -> 69017.68133 | K14: =IF(J14>0,J14*(1-Dźwignie!$D$9),J14) -> 55904.32188 | L14: =K14/Dźwignie!$D$5 -> 2.795216094 | M14: =I14/Dźwignie!$D$2 -> 0.3450884066 | N14: =K14/Dźwignie!$D$3 -> 0.2795216094 | O14: 1.724452039 | P14: 1 | Q14: 1.724452039 | S14: =C14*Dźwignie!$G$8 -> 119017.6813 | T14: 238035.3627 | U14: =Dźwignie!$G$9 -> 150000 | V14: 88035.36266 | W14: =V14-Dźwignie!$D$6 -> 88035.36266 | X14: =IF(W14>0,W14*(1-Dźwignie!$D$9),W14) -> 71308.64375 | Y14: =X14/Dźwignie!$D$5 -> 3.565432188 | Z14: =V14/Dźwignie!$D$2 -> 0.4401768133 | AA14: =X14/Dźwignie!$D$3 -> 0.3565432188 | AB14: 2.703860761 | AC14: 1 | AD14: 2.703860761
A15: 3 | B15: 0.5763569474 | C15: =NORMINV(B15,Dźwignie!$L$8,Dźwignie!$L$9) -> 209629.1152 | D15: =Dźwignie!$L$7*C15 -> 314443.6728 | F15: =C15*Dźwignie!$G$5 -> 209629.1152 | G15: 104814.5576 | H15: =Dźwignie!$G$6 -> 50000 | I15: 54814.55759 | J15: =I15-Dźwignie!$D$6 -> 54814.55759 | K15: =IF(J15>0,J15*(1-Dźwignie!$D$9),J15) -> 44399.79165 | L15: =K15/Dźwignie!$D$5 -> 2.219989582 | M15: =I15/Dźwignie!$D$2 -> 0.274072788 | N15: =K15/Dźwignie!$D$3 -> 0.2219989582 | O15: 1.912166443 | P15: 1 | Q15: 1.912166443 | S15: =C15*Dźwignie!$G$8 -> 104814.5576 | T15: 209629.1152 | U15: =Dźwignie!$G$9 -> 150000 | V15: 59629.11518 | W15: =V15-Dźwignie!$D$6 -> 59629.11518 | X15: =IF(W15>0,W15*(1-Dźwignie!$D$9),W15) -> 48299.5833 | Y15: =X15/Dźwignie!$D$5 -> 2.414979165 | Z15: =V15/Dźwignie!$D$2 -> 0.2981455759 | AA15: =X15/Dźwignie!$D$3 -> 0.2414979165 | AB15: 3.515549653 | AC15: 1 | AD15: 3.515549653
A16: 4 | B16: 0.870092392 | C16: =NORMINV(B16,Dźwignie!$L$8,Dźwignie!$L$9) -> 256341.3992 | D16: =Dźwignie!$L$7*C16 -> 384512.0989 | F16: =C16*Dźwignie!$G$5 -> 256341.3992 | G16: 128170.6996 | H16: =Dźwignie!$G$6 -> 50000 | I16: 78170.69962 | J16: =I16-Dźwignie!$D$6 -> 78170.69962 | K16: =IF(J16>0,J16*(1-Dźwignie!$D$9),J16) -> 63318.26669 | L16: =K16/Dźwignie!$D$5 -> 3.165913335 | M16: =I16/Dźwignie!$D$2 -> 0.3908534981 | N16: =K16/Dźwignie!$D$3 -> 0.3165913335 | O16: 1.639625848 | P16: 1 | Q16: 1.639625848 | S16: =C16*Dźwignie!$G$8 -> 128170.6996 | T16: 256341.3992 | U16: =Dźwignie!$G$9 -> 150000 | V16: 106341.3992 | W16: =V16-Dźwignie!$D$6 -> 106341.3992 | X16: =IF(W16>0,W16*(1-Dźwignie!$D$9),W16) -> 86136.53339 | Y16: =X16/Dźwignie!$D$5 -> 4.306826669 | Z16: =V16/Dźwignie!$D$2 -> 0.5317069962 | AA16: =X16/Dźwignie!$D$3 -> 0.4306826669 | AB16: 2.41055131 | AC16: 1 | AD16: 2.41055131
A17: 5 | B17: 0.5972234607 | C17: =NORMINV(B17,Dźwignie!$L$8,Dźwignie!$L$9) -> 212308.3423 | D17: =Dźwignie!$L$7*C17 -> 318462.5135 | F17: =C17*Dźwignie!$G$5 -> 212308.3423 | G17: 106154.1712 | H17: =Dźwignie!$G$6 -> 50000 | I17: 56154.17116 | J17: =I17-Dźwignie!$D$6 -> 56154.17116 | K17: =IF(J17>0,J17*(1-Dźwignie!$D$9),J17) -> 45484.87864 | L17: =K17/Dźwignie!$D$5 -> 2.274243932 | M17: =I17/Dźwignie!$D$2 -> 0.2807708558 | N17: =K17/Dźwignie!$D$3 -> 0.2274243932 | O17: 1.890405805 | P17: 1 | Q17: 1.890405805 | S17: =C17*Dźwignie!$G$8 -> 106154.1712 | T17: 212308.3423 | U17: =Dźwignie!$G$9 -> 150000 | V17: 62308.34232 | W17: =V17-Dźwignie!$D$6 -> 62308.34232 | X17: =IF(W17>0,W17*(1-Dźwignie!$D$9),W17) -> 50469.75728 | Y17: =X17/Dźwignie!$D$5 -> 2.523487864 | Z17: =V17/Dźwignie!$D$2 -> 0.3115417116 | AA17: =X17/Dźwignie!$D$3 -> 0.2523487864 | AB17: 3.407382293 | AC17: 1 | AD17: 3.407382293
A18: 6 | B18: 0.5283180475 | C18: =NORMINV(B18,Dźwignie!$L$8,Dźwignie!$L$9) -> 203552.1266 | D18: =Dźwignie!$L$7*C18 -> 305328.1899 | F18: =C18*Dźwignie!$G$5 -> 203552.1266 | G18: 101776.0633 | H18: =Dźwignie!$G$6 -> 50000 | I18: 51776.06331 | J18: =I18-Dźwignie!$D$6 -> 51776.06331 | K18: =IF(J18>0,J18*(1-Dźwignie!$D$9),J18) -> 41938.61128 | L18: =K18/Dźwignie!$D$5 -> 2.096930564 | M18: =I18/Dźwignie!$D$2 -> 0.2588803166 | N18: =K18/Dźwignie!$D$3 -> 0.2096930564 | O18: 1.965697212 | P18: 1 | Q18: 1.965697212 | S18: =C18*Dźwignie!$G$8 -> 101776.0633 | T18: 203552.1266 | U18: =Dźwignie!$G$9 -> 150000 | V18: 53552.12662 | W18: =V18-Dźwignie!$D$6 -> 53552.12662 | X18: =IF(W18>0,W18*(1-Dźwignie!$D$9),W18) -> 43377.22257 | Y18: =X18/Dźwignie!$D$5 -> 2.168861128 | Z18: =V18/Dźwignie!$D$2 -> 0.2677606331 | AA18: =X18/Dźwignie!$D$3 -> 0.2168861128 | AB18: 3.801009212 | AC18: 1 | AD18: 3.801009212
A19: 7 | B19: 0.5850709081 | C19: =NORMINV(B19,Dźwignie!$L$8,Dźwignie!$L$9) -> 210744.1728 | D19: =Dźwignie!$L$7*C19 -> 316116.2592 | F19: =C19*Dźwignie!$G$5 -> 210744.1728 | G19: 105372.0864 | H19: =Dźwignie!$G$6 -> 50000 | I19: 55372.0864 | J19: =I19-Dźwignie!$D$6 -> 55372.0864 | K19: =IF(J19>0,J19*(1-Dźwignie!$D$9),J19) -> 44851.38998 | L19: =K19/Dźwignie!$D$5 -> 2.242569499 | M19: =I19/Dźwignie!$D$2 -> 0.276860432 | N19: =K19/Dźwignie!$D$3 -> 0.2242569499 | O19: 1.902982048 | P19: 1 | Q19: 1.902982048 | S19: =C19*Dźwignie!$G$8 -> 105372.0864 | T19: 210744.1728 | U19: =Dźwignie!$G$9 -> 150000 | V19: 60744.1728 | W19: =V19-Dźwignie!$D$6 -> 60744.1728 | X19: =IF(W19>0,W19*(1-Dźwignie!$D$9),W19) -> 49202.77996 | Y19: =X19/Dźwignie!$D$5 -> 2.460138998 | Z19: =V19/Dźwignie!$D$2 -> 0.303720864 | AA19: =X19/Dźwignie!$D$3 -> 0.2460138998 | AB19: 3.469372667 | AC19: 1 | AD19: 3.469372667
A20: 8 | B20: 0.3022024632 | C20: =NORMINV(B20,Dźwignie!$L$8,Dźwignie!$L$9) -> 174096.1772 | D20: =Dźwignie!$L$7*C20 -> 261144.2658 | F20: =C20*Dźwignie!$G$5 -> 174096.1772 | G20: 87048.0886 | H20: =Dźwignie!$G$6 -> 50000 | I20: 37048.0886 | J20: =I20-Dźwignie!$D$6 -> 37048.0886 | K20: =IF(J20>0,J20*(1-Dźwignie!$D$9),J20) -> 30008.95176 | L20: =K20/Dźwignie!$D$5 -> 1.500447588 | M20: =I20/Dźwignie!$D$2 -> 0.185240443 | N20: =K20/Dźwignie!$D$3 -> 0.1500447588 | O20: 2.349597291 | P20: 1 | Q20: 2.349597291 | S20: =C20*Dźwignie!$G$8 -> 87048.0886 | T20: 174096.1772 | U20: =Dźwignie!$G$9 -> 150000 | V20: 24096.1772 | W20: =V20-Dźwignie!$D$6 -> 24096.1772 | X20: =IF(W20>0,W20*(1-Dźwignie!$D$9),W20) -> 19517.90353 | Y20: =X20/Dźwignie!$D$5 -> 0.9758951764 | Z20: =V20/Dźwignie!$D$2 -> 0.120480886 | AA20: =X20/Dźwignie!$D$3 -> 0.09758951764 | AB20: 7.225053824 | AC20: 1 | AD20: 7.225053824
A21: 9 | B21: 0.1761373878 | C21: =NORMINV(B21,Dźwignie!$L$8,Dźwignie!$L$9) -> 153490.6987 | D21: =Dźwignie!$L$7*C21 -> 230236.048 | F21: =C21*Dźwignie!$G$5 -> 153490.6987 | G21: 76745.34934 | H21: =Dźwignie!$G$6 -> 50000 | I21: 26745.34934 | J21: =I21-Dźwignie!$D$6 -> 26745.34934 | K21: =IF(J21>0,J21*(1-Dźwignie!$D$9),J21) -> 21663.73296 | L21: =K21/Dźwignie!$D$5 -> 1.083186648 | M21: =I21/Dźwignie!$D$2 -> 0.1337267467 | N21: =K21/Dźwignie!$D$3 -> 0.1083186648 | O21: 2.869483901 | P21: 1 | Q21: 2.869483901 | S21: =C21*Dźwignie!$G$8 -> 76745.34934 | T21: 153490.6987 | U21: =Dźwignie!$G$9 -> 150000 | V21: 3490.698672 | W21: =V21-Dźwignie!$D$6 -> 3490.698672 | X21: =IF(W21>0,W21*(1-Dźwignie!$D$9),W21) -> 2827.465924 | Y21: =X21/Dźwignie!$D$5 -> 0.1413732962 | Z21: =V21/Dźwignie!$D$2 -> 0.01745349336 | AA21: =X21/Dźwignie!$D$3 -> 0.01413732962 | AB21: 43.97134015 | AC21: 1 | AD21: 43.97134015
A22: 10 | B22: 0.4158438444 | C22: =NORMINV(B22,Dźwignie!$L$8,Dźwignie!$L$9) -> 189373.1227 | D22: =Dźwignie!$L$7*C22 -> 284059.684 | F22: =C22*Dźwignie!$G$5 -> 189373.1227 | G22: 94686.56133 | H22: =Dźwignie!$G$6 -> 50000 | I22: 44686.56133 | J22: =I22-Dźwignie!$D$6 -> 44686.56133 | K22: =IF(J22>0,J22*(1-Dźwignie!$D$9),J22) -> 36196.11468 | L22: =K22/Dźwignie!$D$5 -> 1.809805734 | M22: =I22/Dźwignie!$D$2 -> 0.2234328067 | N22: =K22/Dźwignie!$D$3 -> 0.1809805734 | O22: 2.118904622 | P22: 1 | Q22: 2.118904622 | S22: =C22*Dźwignie!$G$8 -> 94686.56133 | T22: 189373.1227 | U22: =Dźwignie!$G$9 -> 150000 | V22: 39373.12267 | W22: =V22-Dźwignie!$D$6 -> 39373.12267 | X22: =IF(W22>0,W22*(1-Dźwignie!$D$9),W22) -> 31892.22936 | Y22: =X22/Dźwignie!$D$5 -> 1.594611468 | Z22: =V22/Dźwignie!$D$2 -> 0.1968656133 | AA22: =X22/Dźwignie!$D$3 -> 0.1594611468 | AB22: 4.80970545 | AC22: 1 | AD22: 4.80970545
A23: 11 | B23: 0.299690783 | C23: =NORMINV(B23,Dźwignie!$L$8,Dźwignie!$L$9) -> 173735.497 | D23: =Dźwignie!$L$7*C23 -> 260603.2455 | F23: =C23*Dźwignie!$G$5 -> 173735.497 | G23: 86867.74849 | H23: =Dźwignie!$G$6 -> 50000 | I23: 36867.74849 | J23: =I23-Dźwignie!$D$6 -> 36867.74849 | K23: =IF(J23>0,J23*(1-Dźwignie!$D$9),J23) -> 29862.87628 | L23: =K23/Dźwignie!$D$5 -> 1.493143814 | M23: =I23/Dźwignie!$D$2 -> 0.1843387425 | N23: =K23/Dźwignie!$D$3 -> 0.1493143814 | O23: 2.356198901 | P23: 1 | Q23: 2.356198901 | S23: =C23*Dźwignie!$G$8 -> 86867.74849 | T23: 173735.497 | U23: =Dźwignie!$G$9 -> 150000 | V23: 23735.49698 | W23: =V23-Dźwignie!$D$6 -> 23735.49698 | X23: =IF(W23>0,W23*(1-Dźwignie!$D$9),W23) -> 19225.75256 | Y23: =X23/Dźwignie!$D$5 -> 0.9612876278 | Z23: =V23/Dźwignie!$D$2 -> 0.1186774849 | AA23: =X23/Dźwignie!$D$3 -> 0.09612876278 | AB23: 7.319648588 | AC23: 1 | AD23: 7.319648588
A24: 12 | B24: 0.2767510414 | C24: =NORMINV(B24,Dźwignie!$L$8,Dźwignie!$L$9) -> 170373.9739 | D24: =Dźwignie!$L$7*C24 -> 255560.9609 | F24: =C24*Dźwignie!$G$5 -> 170373.9739 | G24: 85186.98696 | H24: =Dźwignie!$G$6 -> 50000 | I24: 35186.98696 | J24: =I24-Dźwignie!$D$6 -> 35186.98696 | K24: =IF(J24>0,J24*(1-Dźwignie!$D$9),J24) -> 28501.45943 | L24: =K24/Dźwignie!$D$5 -> 1.425072972 | M24: =I24/Dźwignie!$D$2 -> 0.1759349348 | N24: =K24/Dźwignie!$D$3 -> 0.1425072972 | O24: 2.420979866 | P24: 1 | Q24: 2.420979866 | S24: =C24*Dźwignie!$G$8 -> 85186.98696 | T24: 170373.9739 | U24: =Dźwignie!$G$9 -> 150000 | V24: 20373.97391 | W24: =V24-Dźwignie!$D$6 -> 20373.97391 | X24: =IF(W24>0,W24*(1-Dźwignie!$D$9),W24) -> 16502.91887 | Y24: =X24/Dźwignie!$D$5 -> 0.8251459435 | Z24: =V24/Dźwignie!$D$2 -> 0.1018698696 | AA24: =X24/Dźwignie!$D$3 -> 0.08251459435 | AB24: 8.362333958 | AC24: 1 | AD24: 8.362333958
A25: 13 | B25: 0.1472670436 | C25: =NORMINV(B25,Dźwignie!$L$8,Dźwignie!$L$9) -> 147588.6558 | D25: =Dźwignie!$L$7*C25 -> 221382.9837 | F25: =C25*Dźwignie!$G$5 -> 147588.6558 | G25: 73794.32791 | H25: =Dźwignie!$G$6 -> 50000 | I25: 23794.32791 | J25: =I25-Dźwignie!$D$6 -> 23794.32791 | K25: =IF(J25>0,J25*(1-Dźwignie!$D$9),J25) -> 19273.4056 | L25: =K25/Dźwignie!$D$5 -> 0.9636702802 | M25: =I25/Dźwignie!$D$2 -> 0.1189716395 | N25: =K25/Dźwignie!$D$3 -> 0.09636702802 | O25: 3.101341135 | P25: 1 | Q25: 3.101341135 | S25: =C25*Dźwignie!$G$8 -> 73794.32791 | T25: 147588.6558 | U25: =Dźwignie!$G$9 -> 150000 | V25: -2411.344188 | W25: =V25-Dźwignie!$D$6 -> -2411.344188 | X25: =IF(W25>0,W25*(1-Dźwignie!$D$9),W25) -> -2411.344188 | Y25: =X25/Dźwignie!$D$5 -> -0.1205672094 | Z25: =V25/Dźwignie!$D$2 -> -0.01205672094 | AA25: =X25/Dźwignie!$D$3 -> -0.01205672094 | AB25: -61.20596825 | AC25: 1 | AD25: -61.20596825
A26: 14 | B26: 0.06812870502 | C26: =NORMINV(B26,Dźwignie!$L$8,Dźwignie!$L$9) -> 125506.3078 | D26: =Dźwignie!$L$7*C26 -> 188259.4617 | F26: =C26*Dźwignie!$G$5 -> 125506.3078 | G26: 62753.15389 | H26: =Dźwignie!$G$6 -> 50000 | I26: 12753.15389 | J26: =I26-Dźwignie!$D$6 -> 12753.15389 | K26: =IF(J26>0,J26*(1-Dźwignie!$D$9),J26) -> 10330.05465 | L26: =K26/Dźwignie!$D$5 -> 0.5165027327 | M26: =I26/Dźwignie!$D$2 -> 0.06376576947 | N26: =K26/Dźwignie!$D$3 -> 0.05165027327 | O26: 4.920598812 | P26: 1 | Q26: 4.920598812 | S26: =C26*Dźwignie!$G$8 -> 62753.15389 | T26: 125506.3078 | U26: =Dźwignie!$G$9 -> 150000 | V26: -24493.69221 | W26: =V26-Dźwignie!$D$6 -> -24493.69221 | X26: =IF(W26>0,W26*(1-Dźwignie!$D$9),W26) -> -24493.69221 | Y26: =X26/Dźwignie!$D$5 -> -1.224684611 | Z26: =V26/Dźwignie!$D$2 -> -0.1224684611 | AA26: =X26/Dźwignie!$D$3 -> -0.1224684611 | AB26: -5.124025676 | AC26: 1 | AD26: -5.124025676
A27: 15 | B27: 0.8958147168 | C27: =NORMINV(B27,Dźwignie!$L$8,Dźwignie!$L$9) -> 262902.9297 | D27: =Dźwignie!$L$7*C27 -> 394354.3946 | F27: =C27*Dźwignie!$G$5 -> 262902.9297 | G27: 131451.4649 | H27: =Dźwignie!$G$6 -> 50000 | I27: 81451.46485 | J27: =I27-Dźwignie!$D$6 -> 81451.46485 | K27: =IF(J27>0,J27*(1-Dźwignie!$D$9),J27) -> 65975.68653 | L27: =K27/Dźwignie!$D$5 -> 3.298784327 | M27: =I27/Dźwignie!$D$2 -> 0.4072573243 | N27: =K27/Dźwignie!$D$3 -> 0.3298784327 | O27: 1.613862502 | P27: 1 | Q27: 1.613862502 | S27: =C27*Dźwignie!$G$8 -> 131451.4649 | T27: 262902.9297 | U27: =Dźwignie!$G$9 -> 150000 | V27: 112902.9297 | W27: =V27-Dźwignie!$D$6 -> 112902.9297 | X27: =IF(W27>0,W27*(1-Dźwignie!$D$9),W27) -> 91451.37306 | Y27: =X27/Dźwignie!$D$5 -> 4.572568653 | Z27: =V27/Dźwignie!$D$2 -> 0.5645146485 | AA27: =X27/Dźwignie!$D$3 -> 0.4572568653 | AB27: 2.328574913 | AC27: 1 | AD27: 2.328574913
A28: 16 | B28: 0.07944369316 | C28: =NORMINV(B28,Dźwignie!$L$8,Dźwignie!$L$9) -> 129558.8287 | D28: =Dźwignie!$L$7*C28 -> 194338.243 | F28: =C28*Dźwignie!$G$5 -> 129558.8287 | G28: 64779.41434 | H28: =Dźwignie!$G$6 -> 50000 | I28: 14779.41434 | J28: =I28-Dźwignie!$D$6 -> 14779.41434 | K28: =IF(J28>0,J28*(1-Dźwignie!$D$9),J28) -> 11971.32562 | L28: =K28/Dźwignie!$D$5 -> 0.5985662809 | M28: =I28/Dźwignie!$D$2 -> 0.07389707171 | N28: =K28/Dźwignie!$D$3 -> 0.05985662809 | O28: 4.383083987 | P28: 1 | Q28: 4.383083987 | S28: =C28*Dźwignie!$G$8 -> 64779.41434 | T28: 129558.8287 | U28: =Dźwignie!$G$9 -> 150000 | V28: -20441.17132 | W28: =V28-Dźwignie!$D$6 -> -20441.17132 | X28: =IF(W28>0,W28*(1-Dźwignie!$D$9),W28) -> -20441.17132 | Y28: =X28/Dźwignie!$D$5 -> -1.022058566 | Z28: =V28/Dźwignie!$D$2 -> -0.1022058566 | AA28: =X28/Dźwignie!$D$3 -> -0.1022058566 | AB28: -6.338131347 | AC28: 1 | AD28: -6.338131347
A29: 17 | B29: 0.215995729 | C29: =NORMINV(B29,Dźwignie!$L$8,Dźwignie!$L$9) -> 160710.5795 | D29: =Dźwignie!$L$7*C29 -> 241065.8693 | F29: =C29*Dźwignie!$G$5 -> 160710.5795 | G29: 80355.28976 | H29: =Dźwignie!$G$6 -> 50000 | I29: 30355.28976 | J29: =I29-Dźwignie!$D$6 -> 30355.28976 | K29: =IF(J29>0,J29*(1-Dźwignie!$D$9),J29) -> 24587.78471 | L29: =K29/Dźwignie!$D$5 -> 1.229389235 | M29: =I29/Dźwignie!$D$2 -> 0.1517764488 | N29: =K29/Dźwignie!$D$3 -> 0.1229389235 | O29: 2.647159371 | P29: 1 | Q29: 2.647159371 | S29: =C29*Dźwignie!$G$8 -> 80355.28976 | T29: 160710.5795 | U29: =Dźwignie!$G$9 -> 150000 | V29: 10710.57952 | W29: =V29-Dźwignie!$D$6 -> 10710.57952 | X29: =IF(W29>0,W29*(1-Dźwignie!$D$9),W29) -> 8675.569411 | Y29: =X29/Dźwignie!$D$5 -> 0.4337784705 | Z29: =V29/Dźwignie!$D$2 -> 0.0535528976 | AA29: =X29/Dźwignie!$D$3 -> 0.04337784705 | AB29: 15.00484444 | AC29: 1 | AD29: 15.00484444
A30: 18 | B30: 0.681522727 | C30: =NORMINV(B30,Dźwignie!$L$8,Dźwignie!$L$9) -> 223598.0556 | D30: =Dźwignie!$L$7*C30 -> 335397.0834 | F30: =C30*Dźwignie!$G$5 -> 223598.0556 | G30: 111799.0278 | H30: =Dźwignie!$G$6 -> 50000 | I30: 61799.02781 | J30: =I30-Dźwignie!$D$6 -> 61799.02781 | K30: =IF(J30>0,J30*(1-Dźwignie!$D$9),J30) -> 50057.21253 | L30: =K30/Dźwignie!$D$5 -> 2.502860626 | M30: =I30/Dźwignie!$D$2 -> 0.308995139 | N30: =K30/Dźwignie!$D$3 -> 0.2502860626 | O30: 1.809074216 | P30: 1 | Q30: 1.809074216 | S30: =C30*Dźwignie!$G$8 -> 111799.0278 | T30: 223598.0556 | U30: =Dźwignie!$G$9 -> 150000 | V30: 73598.05562 | W30: =V30-Dźwignie!$D$6 -> 73598.05562 | X30: =IF(W30>0,W30*(1-Dźwignie!$D$9),W30) -> 59614.42505 | Y30: =X30/Dźwignie!$D$5 -> 2.980721253 | Z30: =V30/Dźwignie!$D$2 -> 0.3679902781 | AA30: =X30/Dźwignie!$D$3 -> 0.2980721253 | AB30: 3.038097321 | AC30: 1 | AD30: 3.038097321
A31: 19 | B31: 0.8468924165 | C31: =NORMINV(B31,Dźwignie!$L$8,Dźwignie!$L$9) -> 251159.8018 | D31: =Dźwignie!$L$7*C31 -> 376739.7027 | F31: =C31*Dźwignie!$G$5 -> 251159.8018 | G31: 125579.9009 | H31: =Dźwignie!$G$6 -> 50000 | I31: 75579.90089 | J31: =I31-Dźwignie!$D$6 -> 75579.90089 | K31: =IF(J31>0,J31*(1-Dźwignie!$D$9),J31) -> 61219.71972 | L31: =K31/Dźwignie!$D$5 -> 3.060985986 | M31: =I31/Dźwignie!$D$2 -> 0.3778995044 | N31: =K31/Dźwignie!$D$3 -> 0.3060985986 | O31: 1.661551542 | P31: 1 | Q31: 1.661551542 | S31: =C31*Dźwignie!$G$8 -> 125579.9009 | T31: 251159.8018 | U31: =Dźwignie!$G$9 -> 150000 | V31: 101159.8018 | W31: =V31-Dźwignie!$D$6 -> 101159.8018 | X31: =IF(W31>0,W31*(1-Dźwignie!$D$9),W31) -> 81939.43944 | Y31: =X31/Dźwignie!$D$5 -> 4.096971972 | Z31: =V31/Dźwignie!$D$2 -> 0.5057990089 | AA31: =X31/Dźwignie!$D$3 -> 0.4096971972 | AB31: 2.482802431 | AC31: 1 | AD31: 2.482802431
A32: 20 | B32: 0.1024312973 | C32: =NORMINV(B32,Dźwignie!$L$8,Dźwignie!$L$9) -> 136609.0499 | D32: =Dźwignie!$L$7*C32 -> 204913.5748 | F32: =C32*Dźwignie!$G$5 -> 136609.0499 | G32: 68304.52494 | H32: =Dźwignie!$G$6 -> 50000 | I32: 18304.52494 | J32: =I32-Dźwignie!$D$6 -> 18304.52494 | K32: =IF(J32>0,J32*(1-Dźwignie!$D$9),J32) -> 14826.6652 | L32: =K32/Dźwignie!$D$5 -> 0.7413332602 | M32: =I32/Dźwignie!$D$2 -> 0.09152262472 | N32: =K32/Dźwignie!$D$3 -> 0.07413332602 | O32: 3.731565018 | P32: 1 | Q32: 3.731565018 | S32: =C32*Dźwignie!$G$8 -> 68304.52494 | T32: 136609.0499 | U32: =Dźwignie!$G$9 -> 150000 | V32: -13390.95011 | W32: =V32-Dźwignie!$D$6 -> -13390.95011 | X32: =IF(W32>0,W32*(1-Dźwignie!$D$9),W32) -> -13390.95011 | Y32: =X32/Dźwignie!$D$5 -> -0.6695475057 | Z32: =V32/Dźwignie!$D$2 -> -0.06695475057 | AA32: =X32/Dźwignie!$D$3 -> -0.06695475057 | AB32: -10.20159501 | AC32: 1 | AD32: -10.20159501
A33: 21 | B33: 0.7683708072 | C33: =NORMINV(B33,Dźwignie!$L$8,Dźwignie!$L$9) -> 236674.6016 | D33: =Dźwignie!$L$7*C33 -> 355011.9024 | F33: =C33*Dźwignie!$G$5 -> 236674.6016 | G33: 118337.3008 | H33: =Dźwignie!$G$6 -> 50000 | I33: 68337.30081 | J33: =I33-Dźwignie!$D$6 -> 68337.30081 | K33: =IF(J33>0,J33*(1-Dźwignie!$D$9),J33) -> 55353.21366 | L33: =K33/Dźwignie!$D$5 -> 2.767660683 | M33: =I33/Dźwignie!$D$2 -> 0.341686504 | N33: =K33/Dźwignie!$D$3 -> 0.2767660683 | O33: 1.731664836 | P33: 1 | Q33: 1.731664836 | S33: =C33*Dźwignie!$G$8 -> 118337.3008 | T33: 236674.6016 | U33: =Dźwignie!$G$9 -> 150000 | V33: 86674.60162 | W33: =V33-Dźwignie!$D$6 -> 86674.60162 | X33: =IF(W33>0,W33*(1-Dźwignie!$D$9),W33) -> 70206.42731 | Y33: =X33/Dźwignie!$D$5 -> 3.510321366 | Z33: =V33/Dźwignie!$D$2 -> 0.4333730081 | AA33: =X33/Dźwignie!$D$3 -> 0.3510321366 | AB33: 2.730610781 | AC33: 1 | AD33: 2.730610781
A34: 22 | B34: 0.4103838205 | C34: =NORMINV(B34,Dźwignie!$L$8,Dźwignie!$L$9) -> 188672.112 | D34: =Dźwignie!$L$7*C34 -> 283008.168 | F34: =C34*Dźwignie!$G$5 -> 188672.112 | G34: 94336.05601 | H34: =Dźwignie!$G$6 -> 50000 | I34: 44336.05601 | J34: =I34-Dźwignie!$D$6 -> 44336.05601 | K34: =IF(J34>0,J34*(1-Dźwignie!$D$9),J34) -> 35912.20537 | L34: =K34/Dźwignie!$D$5 -> 1.795610268 | M34: =I34/Dźwignie!$D$2 -> 0.22168028 | N34: =K34/Dźwignie!$D$3 -> 0.1795610268 | O34: 2.12775029 | P34: 1 | Q34: 2.12775029 | S34: =C34*Dźwignie!$G$8 -> 94336.05601 | T34: 188672.112 | U34: =Dźwignie!$G$9 -> 150000 | V34: 38672.11202 | W34: =V34-Dźwignie!$D$6 -> 38672.11202 | X34: =IF(W34>0,W34*(1-Dźwignie!$D$9),W34) -> 31324.41073 | Y34: =X34/Dźwignie!$D$5 -> 1.566220537 | Z34: =V34/Dźwignie!$D$2 -> 0.1933605601 | AA34: =X34/Dźwignie!$D$3 -> 0.1566220537 | AB34: 4.878764106 | AC34: 1 | AD34: 4.878764106
A35: 23 | B35: 0.7523501515 | C35: =NORMINV(B35,Dźwignie!$L$8,Dźwignie!$L$9) -> 234095.1968 | D35: =Dźwignie!$L$7*C35 -> 351142.7951 | F35: =C35*Dźwignie!$G$5 -> 234095.1968 | G35: 117047.5984 | H35: =Dźwignie!$G$6 -> 50000 | I35: 67047.59838 | J35: =I35-Dźwignie!$D$6 -> 67047.59838 | K35: =IF(J35>0,J35*(1-Dźwignie!$D$9),J35) -> 54308.55469 | L35: =K35/Dźwignie!$D$5 -> 2.715427734 | M35: =I35/Dźwignie!$D$2 -> 0.3352379919 | N35: =K35/Dźwignie!$D$3 -> 0.2715427734 | O35: 1.745738866 | P35: 1 | Q35: 1.745738866 | S35: =C35*Dźwignie!$G$8 -> 117047.5984 | T35: 234095.1968 | U35: =Dźwignie!$G$9 -> 150000 | V35: 84095.19676 | W35: =V35-Dźwignie!$D$6 -> 84095.19676 | X35: =IF(W35>0,W35*(1-Dźwignie!$D$9),W35) -> 68117.10938 | Y35: =X35/Dźwignie!$D$5 -> 3.405855469 | Z35: =V35/Dźwignie!$D$2 -> 0.4204759838 | AA35: =X35/Dźwignie!$D$3 -> 0.3405855469 | AB35: 2.783692836 | AC35: 1 | AD35: 2.783692836
A36: 24 | B36: 0.3599350452 | C36: =NORMINV(B36,Dźwignie!$L$8,Dźwignie!$L$9) -> 182068.379 | D36: =Dźwignie!$L$7*C36 -> 273102.5685 | F36: =C36*Dźwignie!$G$5 -> 182068.379 | G36: 91034.1895 | H36: =Dźwignie!$G$6 -> 50000 | I36: 41034.1895 | J36: =I36-Dźwignie!$D$6 -> 41034.1895 | K36: =IF(J36>0,J36*(1-Dźwignie!$D$9),J36) -> 33237.6935 | L36: =K36/Dźwignie!$D$5 -> 1.661884675 | M36: =I36/Dźwignie!$D$2 -> 0.2051709475 | N36: =K36/Dźwignie!$D$3 -> 0.1661884675 | O36: 2.218496103 | P36: 1 | Q36: 2.218496103 | S36: =C36*Dźwignie!$G$8 -> 91034.1895 | T36: 182068.379 | U36: =Dźwignie!$G$9 -> 150000 | V36: 32068.37901 | W36: =V36-Dźwignie!$D$6 -> 32068.37901 | X36: =IF(W36>0,W36*(1-Dźwignie!$D$9),W36) -> 25975.387 | Y36: =X36/Dźwignie!$D$5 -> 1.29876935 | Z36: =V36/Dźwignie!$D$2 -> 0.160341895 | AA36: =X36/Dźwignie!$D$3 -> 0.129876935 | AB36: 5.677504902 | AC36: 1 | AD36: 5.677504902
A37: 25 | B37: 0.324228704 | C37: =NORMINV(B37,Dźwignie!$L$8,Dźwignie!$L$9) -> 177204.6884 | D37: =Dźwignie!$L$7*C37 -> 265807.0326 | F37: =C37*Dźwignie!$G$5 -> 177204.6884 | G37: 88602.3442 | H37: =Dźwignie!$G$6 -> 50000 | I37: 38602.3442 | J37: =I37-Dźwignie!$D$6 -> 38602.3442 | K37: =IF(J37>0,J37*(1-Dźwignie!$D$9),J37) -> 31267.8988 | L37: =K37/Dźwignie!$D$5 -> 1.56339494 | M37: =I37/Dźwignie!$D$2 -> 0.193011721 | N37: =K37/Dźwignie!$D$3 -> 0.156339494 | O37: 2.295258126 | P37: 1 | Q37: 2.295258126 | S37: =C37*Dźwignie!$G$8 -> 88602.3442 | T37: 177204.6884 | U37: =Dźwignie!$G$9 -> 150000 | V37: 27204.6884 | W37: =V37-Dźwignie!$D$6 -> 27204.6884 | X37: =IF(W37>0,W37*(1-Dźwignie!$D$9),W37) -> 22035.79761 | Y37: =X37/Dźwignie!$D$5 -> 1.10178988 | Z37: =V37/Dźwignie!$D$2 -> 0.136023442 | AA37: =X37/Dźwignie!$D$3 -> 0.110178988 | AB37: 6.513755489 | AC37: 1 | AD37: 6.513755489
A38: 26 | B38: 0.007702708244 | C38: =NORMINV(B38,Dźwignie!$L$8,Dźwignie!$L$9) -> 78864.73285 | D38: =Dźwignie!$L$7*C38 -> 118297.0993 | F38: =C38*Dźwignie!$G$5 -> 78864.73285 | G38: 39432.36642 | H38: =Dźwignie!$G$6 -> 50000 | I38: -10567.63358 | J38: =I38-Dźwignie!$D$6 -> -10567.63358 | K38: =IF(J38>0,J38*(1-Dźwignie!$D$9),J38) -> -10567.63358 | L38: =K38/Dźwignie!$D$5 -> -0.5283816788 | M38: =I38/Dźwignie!$D$2 -> -0.05283816788 | N38: =K38/Dźwignie!$D$3 -> -0.05283816788 | O38: -3.731428246 | P38: 1 | Q38: -3.731428246 | S38: =C38*Dźwignie!$G$8 -> 39432.36642 | T38: 78864.73285 | U38: =Dźwignie!$G$9 -> 150000 | V38: -71135.26715 | W38: =V38-Dźwignie!$D$6 -> -71135.26715 | X38: =IF(W38>0,W38*(1-Dźwignie!$D$9),W38) -> -71135.26715 | Y38: =X38/Dźwignie!$D$5 -> -3.556763358 | Z38: =V38/Dźwignie!$D$2 -> -0.3556763358 | AA38: =X38/Dźwignie!$D$3 -> -0.3556763358 | AB38: -1.108658701 | AC38: 1 | AD38: -1.108658701
A39: 27 | B39: 0.415715754 | C39: =NORMINV(B39,Dźwignie!$L$8,Dźwignie!$L$9) -> 189356.7016 | D39: =Dźwignie!$L$7*C39 -> 284035.0524 | F39: =C39*Dźwignie!$G$5 -> 189356.7016 | G39: 94678.35081 | H39: =Dźwignie!$G$6 -> 50000 | I39: 44678.35081 | J39: =I39-Dźwignie!$D$6 -> 44678.35081 | K39: =IF(J39>0,J39*(1-Dźwignie!$D$9),J39) -> 36189.46416 | L39: =K39/Dźwignie!$D$5 -> 1.809473208 | M39: =I39/Dźwignie!$D$2 -> 0.2233917541 | N39: =K39/Dźwignie!$D$3 -> 0.1809473208 | O39: 2.119110242 | P39: 1 | Q39: 2.119110242 | S39: =C39*Dźwignie!$G$8 -> 94678.35081 | T39: 189356.7016 | U39: =Dźwignie!$G$9 -> 150000 | V39: 39356.70163 | W39: =V39-Dźwignie!$D$6 -> 39356.70163 | X39: =IF(W39>0,W39*(1-Dźwignie!$D$9),W39) -> 31878.92832 | Y39: =X39/Dźwignie!$D$5 -> 1.593946416 | Z39: =V39/Dźwignie!$D$2 -> 0.1967835081 | AA39: =X39/Dźwignie!$D$3 -> 0.1593946416 | AB39: 4.811294997 | AC39: 1 | AD39: 4.811294997
A40: 28 | B40: 0.2538714409 | C40: =NORMINV(B40,Dźwignie!$L$8,Dźwignie!$L$9) -> 166882.1833 | D40: =Dźwignie!$L$7*C40 -> 250323.275 | F40: =C40*Dźwignie!$G$5 -> 166882.1833 | G40: 83441.09167 | H40: =Dźwignie!$G$6 -> 50000 | I40: 33441.09167 | J40: =I40-Dźwignie!$D$6 -> 33441.09167 | K40: =IF(J40>0,J40*(1-Dźwignie!$D$9),J40) -> 27087.28425 | L40: =K40/Dźwignie!$D$5 -> 1.354364212 | M40: =I40/Dźwignie!$D$2 -> 0.1672054583 | N40: =K40/Dźwignie!$D$3 -> 0.1354364212 | O40: 2.495166501 | P40: 1 | Q40: 2.495166501 | S40: =C40*Dźwignie!$G$8 -> 83441.09167 | T40: 166882.1833 | U40: =Dźwignie!$G$9 -> 150000 | V40: 16882.18333 | W40: =V40-Dźwignie!$D$6 -> 16882.18333 | X40: =IF(W40>0,W40*(1-Dźwignie!$D$9),W40) -> 13674.5685 | Y40: =X40/Dźwignie!$D$5 -> 0.6837284249 | Z40: =V40/Dźwignie!$D$2 -> 0.08441091666 | AA40: =X40/Dźwignie!$D$3 -> 0.06837284249 | AB40: 9.885106686 | AC40: 1 | AD40: 9.885106686
A41: 29 | B41: 0.2403199077 | C41: =NORMINV(B41,Dźwignie!$L$8,Dźwignie!$L$9) -> 164736.3063 | D41: =Dźwignie!$L$7*C41 -> 247104.4594 | F41: =C41*Dźwignie!$G$5 -> 164736.3063 | G41: 82368.15313 | H41: =Dźwignie!$G$6 -> 50000 | I41: 32368.15313 | J41: =I41-Dźwignie!$D$6 -> 32368.15313 | K41: =IF(J41>0,J41*(1-Dźwignie!$D$9),J41) -> 26218.20403 | L41: =K41/Dźwignie!$D$5 -> 1.310910202 | M41: =I41/Dźwignie!$D$2 -> 0.1618407656 | N41: =K41/Dźwignie!$D$3 -> 0.1310910202 | O41: 2.544728233 | P41: 1 | Q41: 2.544728233 | S41: =C41*Dźwignie!$G$8 -> 82368.15313 | T41: 164736.3063 | U41: =Dźwignie!$G$9 -> 150000 | V41: 14736.30626 | W41: =V41-Dźwignie!$D$6 -> 14736.30626 | X41: =IF(W41>0,W41*(1-Dźwignie!$D$9),W41) -> 11936.40807 | Y41: =X41/Dźwignie!$D$5 -> 0.5968204034 | Z41: =V41/Dźwignie!$D$2 -> 0.07368153129 | AA41: =X41/Dźwignie!$D$3 -> 0.05968204034 | AB41: 11.17894155 | AC41: 1 | AD41: 11.17894155
A42: 30 | B42: 0.7157279253 | C42: =NORMINV(B42,Dźwignie!$L$8,Dźwignie!$L$9) -> 228509.8457 | D42: =Dźwignie!$L$7*C42 -> 342764.7685 | F42: =C42*Dźwignie!$G$5 -> 228509.8457 | G42: 114254.9228 | H42: =Dźwignie!$G$6 -> 50000 | I42: 64254.92283 | J42: =I42-Dźwignie!$D$6 -> 64254.92283 | K42: =IF(J42>0,J42*(1-Dźwignie!$D$9),J42) -> 52046.48749 | L42: =K42/Dźwignie!$D$5 -> 2.602324375 | M42: =I42/Dźwignie!$D$2 -> 0.3212746142 | N42: =K42/Dźwignie!$D$3 -> 0.2602324375 | O42: 1.778150495 | P42: 1 | Q42: 1.778150495 | S42: =C42*Dźwignie!$G$8 -> 114254.9228 | T42: 228509.8457 | U42: =Dźwignie!$G$9 -> 150000 | V42: 78509.84567 | W42: =V42-Dźwignie!$D$6 -> 78509.84567 | X42: =IF(W42>0,W42*(1-Dźwignie!$D$9),W42) -> 63592.97499 | Y42: =X42/Dźwignie!$D$5 -> 3.179648749 | Z42: =V42/Dźwignie!$D$2 -> 0.3925492283 | AA42: =X42/Dźwignie!$D$3 -> 0.3179648749 | AB42: 2.910588395 | AC42: 1 | AD42: 2.910588395
A43: 31 | B43: 0.1727436185 | C43: =NORMINV(B43,Dźwignie!$L$8,Dźwignie!$L$9) -> 152831.0653 | D43: =Dźwignie!$L$7*C43 -> 229246.5979 | F43: =C43*Dźwignie!$G$5 -> 152831.0653 | G43: 76415.53264 | H43: =Dźwignie!$G$6 -> 50000 | I43: 26415.53264 | J43: =I43-Dźwignie!$D$6 -> 26415.53264 | K43: =IF(J43>0,J43*(1-Dźwignie!$D$9),J43) -> 21396.58144 | L43: =K43/Dźwignie!$D$5 -> 1.069829072 | M43: =I43/Dźwignie!$D$2 -> 0.1320776632 | N43: =K43/Dźwignie!$D$3 -> 0.1069829072 | O43: 2.892825735 | P43: 1 | Q43: 2.892825735 | S43: =C43*Dźwignie!$G$8 -> 76415.53264 | T43: 152831.0653 | U43: =Dźwignie!$G$9 -> 150000 | V43: 2831.065287 | W43: =V43-Dźwignie!$D$6 -> 2831.065287 | X43: =IF(W43>0,W43*(1-Dźwignie!$D$9),W43) -> 2293.162883 | Y43: =X43/Dźwignie!$D$5 -> 0.1146581441 | Z43: =V43/Dźwignie!$D$2 -> 0.01415532644 | AA43: =X43/Dźwignie!$D$3 -> 0.01146581441 | AB43: 53.98358914 | AC43: 1 | AD43: 53.98358914
A44: 32 | B44: 0.5894773006 | C44: =NORMINV(B44,Dźwignie!$L$8,Dźwignie!$L$9) -> 211310.0303 | D44: =Dźwignie!$L$7*C44 -> 316965.0455 | F44: =C44*Dźwignie!$G$5 -> 211310.0303 | G44: 105655.0152 | H44: =Dźwignie!$G$6 -> 50000 | I44: 55655.01517 | J44: =I44-Dźwignie!$D$6 -> 55655.01517 | K44: =IF(J44>0,J44*(1-Dźwignie!$D$9),J44) -> 45080.56229 | L44: =K44/Dźwignie!$D$5 -> 2.254028114 | M44: =I44/Dźwignie!$D$2 -> 0.2782750758 | N44: =K44/Dźwignie!$D$3 -> 0.2254028114 | O44: 1.898391634 | P44: 1 | Q44: 1.898391634 | S44: =C44*Dźwignie!$G$8 -> 105655.0152 | T44: 211310.0303 | U44: =Dźwignie!$G$9 -> 150000 | V44: 61310.03034 | W44: =V44-Dźwignie!$D$6 -> 61310.03034 | X44: =IF(W44>0,W44*(1-Dźwignie!$D$9),W44) -> 49661.12457 | Y44: =X44/Dźwignie!$D$5 -> 2.483056229 | Z44: =V44/Dźwignie!$D$2 -> 0.3065501517 | AA44: =X44/Dźwignie!$D$3 -> 0.2483056229 | AB44: 3.446581729 | AC44: 1 | AD44: 3.446581729
A45: 33 | B45: 0.663433969 | C45: =NORMINV(B45,Dźwignie!$L$8,Dźwignie!$L$9) -> 221092.6675 | D45: =Dźwignie!$L$7*C45 -> 331639.0013 | F45: =C45*Dźwignie!$G$5 -> 221092.6675 | G45: 110546.3338 | H45: =Dźwignie!$G$6 -> 50000 | I45: 60546.33376 | J45: =I45-Dźwignie!$D$6 -> 60546.33376 | K45: =IF(J45>0,J45*(1-Dźwignie!$D$9),J45) -> 49042.53034 | L45: =K45/Dźwignie!$D$5 -> 2.452126517 | M45: =I45/Dźwignie!$D$2 -> 0.3027316688 | N45: =K45/Dźwignie!$D$3 -> 0.2452126517 | O45: 1.825813834 | P45: 1 | Q45: 1.825813834 | S45: =C45*Dźwignie!$G$8 -> 110546.3338 | T45: 221092.6675 | U45: =Dźwignie!$G$9 -> 150000 | V45: 71092.66751 | W45: =V45-Dźwignie!$D$6 -> 71092.66751 | X45: =IF(W45>0,W45*(1-Dźwignie!$D$9),W45) -> 57585.06068 | Y45: =X45/Dźwignie!$D$5 -> 2.879253034 | Z45: =V45/Dźwignie!$D$2 -> 0.3554633376 | AA45: =X45/Dźwignie!$D$3 -> 0.2879253034 | AB45: 3.109922236 | AC45: 1 | AD45: 3.109922236
A46: 34 | B46: 0.4065908194 | C46: =NORMINV(B46,Dźwignie!$L$8,Dźwignie!$L$9) -> 188183.8241 | D46: =Dźwignie!$L$7*C46 -> 282275.7361 | F46: =C46*Dźwignie!$G$5 -> 188183.8241 | G46: 94091.91204 | H46: =Dźwignie!$G$6 -> 50000 | I46: 44091.91204 | J46: =I46-Dźwignie!$D$6 -> 44091.91204 | K46: =IF(J46>0,J46*(1-Dźwignie!$D$9),J46) -> 35714.44875 | L46: =K46/Dźwignie!$D$5 -> 1.785722438 | M46: =I46/Dźwignie!$D$2 -> 0.2204595602 | N46: =K46/Dźwignie!$D$3 -> 0.1785722438 | O46: 2.133994823 | P46: 1 | Q46: 2.133994823 | S46: =C46*Dźwignie!$G$8 -> 94091.91204 | T46: 188183.8241 | U46: =Dźwignie!$G$9 -> 150000 | V46: 38183.82408 | W46: =V46-Dźwignie!$D$6 -> 38183.82408 | X46: =IF(W46>0,W46*(1-Dźwignie!$D$9),W46) -> 30928.89751 | Y46: =X46/Dźwignie!$D$5 -> 1.546444875 | Z46: =V46/Dźwignie!$D$2 -> 0.1909191204 | AA46: =X46/Dźwignie!$D$3 -> 0.1546444875 | AB46: 4.92836505 | AC46: 1 | AD46: 4.92836505
A47: 35 | B47: 0.4695397019 | C47: =NORMINV(B47,Dźwignie!$L$8,Dźwignie!$L$9) -> 196178.6509 | D47: =Dźwignie!$L$7*C47 -> 294267.9764 | F47: =C47*Dźwignie!$G$5 -> 196178.6509 | G47: 98089.32545 | H47: =Dźwignie!$G$6 -> 50000 | I47: 48089.32545 | J47: =I47-Dźwignie!$D$6 -> 48089.32545 | K47: =IF(J47>0,J47*(1-Dźwignie!$D$9),J47) -> 38952.35362 | L47: =K47/Dźwignie!$D$5 -> 1.947617681 | M47: =I47/Dźwignie!$D$2 -> 0.2404466273 | N47: =K47/Dźwignie!$D$3 -> 0.1947617681 | O47: 2.039731781 | P47: 1 | Q47: 2.039731781 | S47: =C47*Dźwignie!$G$8 -> 98089.32545 | T47: 196178.6509 | U47: =Dźwignie!$G$9 -> 150000 | V47: 46178.6509 | W47: =V47-Dźwignie!$D$6 -> 46178.6509 | X47: =IF(W47>0,W47*(1-Dźwignie!$D$9),W47) -> 37404.70723 | Y47: =X47/Dźwignie!$D$5 -> 1.870235362 | Z47: =V47/Dźwignie!$D$2 -> 0.2308932545 | AA47: =X47/Dźwignie!$D$3 -> 0.1870235362 | AB47: 4.248254271 | AC47: 1 | AD47: 4.248254271
A48: 36 | B48: 0.8409347534 | C48: =NORMINV(B48,Dźwignie!$L$8,Dźwignie!$L$9) -> 249915.3522 | D48: =Dźwignie!$L$7*C48 -> 374873.0283 | F48: =C48*Dźwignie!$G$5 -> 249915.3522 | G48: 124957.6761 | H48: =Dźwignie!$G$6 -> 50000 | I48: 74957.67609 | J48: =I48-Dźwignie!$D$6 -> 74957.67609 | K48: =IF(J48>0,J48*(1-Dźwignie!$D$9),J48) -> 60715.71763 | L48: =K48/Dźwignie!$D$5 -> 3.035785882 | M48: =I48/Dźwignie!$D$2 -> 0.3747883804 | N48: =K48/Dźwignie!$D$3 -> 0.3035785882 | O48: 1.667043092 | P48: 1 | Q48: 1.667043092 | S48: =C48*Dźwignie!$G$8 -> 124957.6761 | T48: 249915.3522 | U48: =Dźwignie!$G$9 -> 150000 | V48: 99915.35218 | W48: =V48-Dźwignie!$D$6 -> 99915.35218 | X48: =IF(W48>0,W48*(1-Dźwignie!$D$9),W48) -> 80931.43526 | Y48: =X48/Dźwignie!$D$5 -> 4.046571763 | Z48: =V48/Dźwignie!$D$2 -> 0.4995767609 | AA48: =X48/Dźwignie!$D$3 -> 0.4046571763 | AB48: 2.501270793 | AC48: 1 | AD48: 2.501270793
A49: 37 | B49: 0.7335245013 | C49: =NORMINV(B49,Dźwignie!$L$8,Dźwignie!$L$9) -> 231175.3809 | D49: =Dźwignie!$L$7*C49 -> 346763.0714 | F49: =C49*Dźwignie!$G$5 -> 231175.3809 | G49: 115587.6905 | H49: =Dźwignie!$G$6 -> 50000 | I49: 65587.69046 | J49: =I49-Dźwignie!$D$6 -> 65587.69046 | K49: =IF(J49>0,J49*(1-Dźwignie!$D$9),J49) -> 53126.02928 | L49: =K49/Dźwignie!$D$5 -> 2.656301464 | M49: =I49/Dźwignie!$D$2 -> 0.3279384523 | N49: =K49/Dźwignie!$D$3 -> 0.2656301464 | O49: 1.762338171 | P49: 1 | Q49: 1.762338171 | S49: =C49*Dźwignie!$G$8 -> 115587.6905 | T49: 231175.3809 | U49: =Dźwignie!$G$9 -> 150000 | V49: 81175.38093 | W49: =V49-Dźwignie!$D$6 -> 81175.38093 | X49: =IF(W49>0,W49*(1-Dźwignie!$D$9),W49) -> 65752.05855 | Y49: =X49/Dźwignie!$D$5 -> 3.287602928 | Z49: =V49/Dźwignie!$D$2 -> 0.4058769046 | AA49: =X49/Dźwignie!$D$3 -> 0.3287602928 | AB49: 2.847850891 | AC49: 1 | AD49: 2.847850891
A50: 38 | B50: 0.9729305506 | C50: =NORMINV(B50,Dźwignie!$L$8,Dźwignie!$L$9) -> 296286.1786 | D50: =Dźwignie!$L$7*C50 -> 444429.268 | F50: =C50*Dźwignie!$G$5 -> 296286.1786 | G50: 148143.0893 | H50: =Dźwignie!$G$6 -> 50000 | I50: 98143.08932 | J50: =I50-Dźwignie!$D$6 -> 98143.08932 | K50: =IF(J50>0,J50*(1-Dźwignie!$D$9),J50) -> 79495.90235 | L50: =K50/Dźwignie!$D$5 -> 3.974795118 | M50: =I50/Dźwignie!$D$2 -> 0.4907154466 | N50: =K50/Dźwignie!$D$3 -> 0.3974795118 | O50: 1.509460221 | P50: 1 | Q50: 1.509460221 | S50: =C50*Dźwignie!$G$8 -> 148143.0893 | T50: 296286.1786 | U50: =Dźwignie!$G$9 -> 150000 | V50: 146286.1786 | W50: =V50-Dźwignie!$D$6 -> 146286.1786 | X50: =IF(W50>0,W50*(1-Dźwignie!$D$9),W50) -> 118491.8047 | Y50: =X50/Dźwignie!$D$5 -> 5.924590235 | Z50: =V50/Dźwignie!$D$2 -> 0.7314308932 | AA50: =X50/Dźwignie!$D$3 -> 0.5924590235 | AB50: 2.02538737 | AC50: 1 | AD50: 2.02538737
A51: 39 | B51: 0.6906865239 | C51: =NORMINV(B51,Dźwignie!$L$8,Dźwignie!$L$9) -> 224889.8627 | D51: =Dźwignie!$L$7*C51 -> 337334.794 | F51: =C51*Dźwignie!$G$5 -> 224889.8627 | G51: 112444.9313 | H51: =Dźwignie!$G$6 -> 50000 | I51: 62444.93133 | J51: =I51-Dźwignie!$D$6 -> 62444.93133 | K51: =IF(J51>0,J51*(1-Dźwignie!$D$9),J51) -> 50580.39438 | L51: =K51/Dźwignie!$D$5 -> 2.529019719 | M51: =I51/Dźwignie!$D$2 -> 0.3122246567 | N51: =K51/Dźwignie!$D$3 -> 0.2529019719 | O51: 1.800705501 | P51: 1 | Q51: 1.800705501 | S51: =C51*Dźwignie!$G$8 -> 112444.9313 | T51: 224889.8627 | U51: =Dźwignie!$G$9 -> 150000 | V51: 74889.86266 | W51: =V51-Dźwignie!$D$6 -> 74889.86266 | X51: =IF(W51>0,W51*(1-Dźwignie!$D$9),W51) -> 60660.78876 | Y51: =X51/Dźwignie!$D$5 -> 3.033039438 | Z51: =V51/Dźwignie!$D$2 -> 0.3744493133 | AA51: =X51/Dźwignie!$D$3 -> 0.3033039438 | AB51: 3.002941315 | AC51: 1 | AD51: 3.002941315
A52: 40 | B52: 0.6669962406 | C52: =NORMINV(B52,Dźwignie!$L$8,Dźwignie!$L$9) -> 221581.6948 | D52: =Dźwignie!$L$7*C52 -> 332372.5422 | F52: =C52*Dźwignie!$G$5 -> 221581.6948 | G52: 110790.8474 | H52: =Dźwignie!$G$6 -> 50000 | I52: 60790.8474 | J52: =I52-Dźwignie!$D$6 -> 60790.8474 | K52: =IF(J52>0,J52*(1-Dźwignie!$D$9),J52) -> 49240.58639 | L52: =K52/Dźwignie!$D$5 -> 2.46202932 | M52: =I52/Dźwignie!$D$2 -> 0.303954237 | N52: =K52/Dźwignie!$D$3 -> 0.246202932 | O52: 1.822492236 | P52: 1 | Q52: 1.822492236 | S52: =C52*Dźwignie!$G$8 -> 110790.8474 | T52: 221581.6948 | U52: =Dźwignie!$G$9 -> 150000 | V52: 71581.6948 | W52: =V52-Dźwignie!$D$6 -> 71581.6948 | X52: =IF(W52>0,W52*(1-Dźwignie!$D$9),W52) -> 57981.17279 | Y52: =X52/Dźwignie!$D$5 -> 2.899058639 | Z52: =V52/Dźwignie!$D$2 -> 0.357908474 | AA52: =X52/Dźwignie!$D$3 -> 0.2899058639 | AB52: 3.095507803 | AC52: 1 | AD52: 3.095507803
A53: 41 | B53: 0.03683418036 | C53: =NORMINV(B53,Dźwignie!$L$8,Dźwignie!$L$9) -> 110566.619 | D53: =Dźwignie!$L$7*C53 -> 165849.9285 | F53: =C53*Dźwignie!$G$5 -> 110566.619 | G53: 55283.30951 | H53: =Dźwignie!$G$6 -> 50000 | I53: 5283.309508 | J53: =I53-Dźwignie!$D$6 -> 5283.309508 | K53: =IF(J53>0,J53*(1-Dźwignie!$D$9),J53) -> 4279.480702 | L53: =K53/Dźwignie!$D$5 -> 0.2139740351 | M53: =I53/Dźwignie!$D$2 -> 0.02641654754 | N53: =K53/Dźwignie!$D$3 -> 0.02139740351 | O53: 10.46376507 | P53: 1 | Q53: 10.46376507 | S53: =C53*Dźwignie!$G$8 -> 55283.30951 | T53: 110566.619 | U53: =Dźwignie!$G$9 -> 150000 | V53: -39433.38098 | W53: =V53-Dźwignie!$D$6 -> -39433.38098 | X53: =IF(W53>0,W53*(1-Dźwignie!$D$9),W53) -> -39433.38098 | Y53: =X53/Dźwignie!$D$5 -> -1.971669049 | Z53: =V53/Dźwignie!$D$2 -> -0.1971669049 | AA53: =X53/Dźwignie!$D$3 -> -0.1971669049 | AB53: -2.803883823 | AC53: 1 | AD53: -2.803883823
A54: 42 | B54: 0.9685190916 | C54: =NORMINV(B54,Dźwignie!$L$8,Dźwignie!$L$9) -> 292973.052 | D54: =Dźwignie!$L$7*C54 -> 439459.5779 | F54: =C54*Dźwignie!$G$5 -> 292973.052 | G54: 146486.526 | H54: =Dźwignie!$G$6 -> 50000 | I54: 96486.52598 | J54: =I54-Dźwignie!$D$6 -> 96486.52598 | K54: =IF(J54>0,J54*(1-Dźwignie!$D$9),J54) -> 78154.08604 | L54: =K54/Dźwignie!$D$5 -> 3.907704302 | M54: =I54/Dźwignie!$D$2 -> 0.4824326299 | N54: =K54/Dźwignie!$D$3 -> 0.3907704302 | O54: 1.518207071 | P54: 1 | Q54: 1.518207071 | S54: =C54*Dźwignie!$G$8 -> 146486.526 | T54: 292973.052 | U54: =Dźwignie!$G$9 -> 150000 | V54: 142973.052 | W54: =V54-Dźwignie!$D$6 -> 142973.052 | X54: =IF(W54>0,W54*(1-Dźwignie!$D$9),W54) -> 115808.1721 | Y54: =X54/Dźwignie!$D$5 -> 5.790408604 | Z54: =V54/Dźwignie!$D$2 -> 0.7148652598 | AA54: =X54/Dźwignie!$D$3 -> 0.5790408604 | AB54: 2.049148759 | AC54: 1 | AD54: 2.049148759
A55: 43 | B55: 0.2373681664 | C55: =NORMINV(B55,Dźwignie!$L$8,Dźwignie!$L$9) -> 164260.2992 | D55: =Dźwignie!$L$7*C55 -> 246390.4487 | F55: =C55*Dźwignie!$G$5 -> 164260.2992 | G55: 82130.14958 | H55: =Dźwignie!$G$6 -> 50000 | I55: 32130.14958 | J55: =I55-Dźwignie!$D$6 -> 32130.14958 | K55: =IF(J55>0,J55*(1-Dźwignie!$D$9),J55) -> 26025.42116 | L55: =K55/Dźwignie!$D$5 -> 1.301271058 | M55: =I55/Dźwignie!$D$2 -> 0.1606507479 | N55: =K55/Dźwignie!$D$3 -> 0.1301271058 | O55: 2.556170782 | P55: 1 | Q55: 2.556170782 | S55: =C55*Dźwignie!$G$8 -> 82130.14958 | T55: 164260.2992 | U55: =Dźwignie!$G$9 -> 150000 | V55: 14260.29917 | W55: =V55-Dźwignie!$D$6 -> 14260.29917 | X55: =IF(W55>0,W55*(1-Dźwignie!$D$9),W55) -> 11550.84232 | Y55: =X55/Dźwignie!$D$5 -> 0.5775421162 | Z55: =V55/Dźwignie!$D$2 -> 0.07130149583 | AA55: =X55/Dźwignie!$D$3 -> 0.05775421162 | AB55: 11.51871341 | AC55: 1 | AD55: 11.51871341
A56: 44 | B56: 0.6766095161 | C56: =NORMINV(B56,Dźwignie!$L$8,Dźwignie!$L$9) -> 222911.9344 | D56: =Dźwignie!$L$7*C56 -> 334367.9016 | F56: =C56*Dźwignie!$G$5 -> 222911.9344 | G56: 111455.9672 | H56: =Dźwignie!$G$6 -> 50000 | I56: 61455.9672 | J56: =I56-Dźwignie!$D$6 -> 61455.9672 | K56: =IF(J56>0,J56*(1-Dźwignie!$D$9),J56) -> 49779.33343 | L56: =K56/Dźwignie!$D$5 -> 2.488966672 | M56: =I56/Dźwignie!$D$2 -> 0.307279836 | N56: =K56/Dźwignie!$D$3 -> 0.2488966672 | O56: 1.813590645 | P56: 1 | Q56: 1.813590645 | S56: =C56*Dźwignie!$G$8 -> 111455.9672 | T56: 222911.9344 | U56: =Dźwignie!$G$9 -> 150000 | V56: 72911.9344 | W56: =V56-Dźwignie!$D$6 -> 72911.9344 | X56: =IF(W56>0,W56*(1-Dźwignie!$D$9),W56) -> 59058.66686 | Y56: =X56/Dźwignie!$D$5 -> 2.952933343 | Z56: =V56/Dźwignie!$D$2 -> 0.364559672 | AA56: =X56/Dźwignie!$D$3 -> 0.2952933343 | AB56: 3.057276374 | AC56: 1 | AD56: 3.057276374
A57: 45 | B57: 0.3090197444 | C57: =NORMINV(B57,Dźwignie!$L$8,Dźwignie!$L$9) -> 175068.459 | D57: =Dźwignie!$L$7*C57 -> 262602.6885 | F57: =C57*Dźwignie!$G$5 -> 175068.459 | G57: 87534.2295 | H57: =Dźwignie!$G$6 -> 50000 | I57: 37534.2295 | J57: =I57-Dźwignie!$D$6 -> 37534.2295 | K57: =IF(J57>0,J57*(1-Dźwignie!$D$9),J57) -> 30402.72589 | L57: =K57/Dźwignie!$D$5 -> 1.520136295 | M57: =I57/Dźwignie!$D$2 -> 0.1876711475 | N57: =K57/Dźwignie!$D$3 -> 0.1520136295 | O57: 2.332117394 | P57: 1 | Q57: 2.332117394 | S57: =C57*Dźwignie!$G$8 -> 87534.2295 | T57: 175068.459 | U57: =Dźwignie!$G$9 -> 150000 | V57: 25068.459 | W57: =V57-Dźwignie!$D$6 -> 25068.459 | X57: =IF(W57>0,W57*(1-Dźwignie!$D$9),W57) -> 20305.45179 | Y57: =X57/Dźwignie!$D$5 -> 1.015272589 | Z57: =V57/Dźwignie!$D$2 -> 0.125342295 | AA57: =X57/Dźwignie!$D$3 -> 0.1015272589 | AB57: 6.98361471 | AC57: 1 | AD57: 6.98361471
A58: 46 | B58: 0.4988862276 | C58: =NORMINV(B58,Dźwignie!$L$8,Dźwignie!$L$9) -> 199860.4092 | D58: =Dźwignie!$L$7*C58 -> 299790.6137 | F58: =C58*Dźwignie!$G$5 -> 199860.4092 | G58: 99930.20458 | H58: =Dźwignie!$G$6 -> 50000 | I58: 49930.20458 | J58: =I58-Dźwignie!$D$6 -> 49930.20458 | K58: =IF(J58>0,J58*(1-Dźwignie!$D$9),J58) -> 40443.46571 | L58: =K58/Dźwignie!$D$5 -> 2.022173285 | M58: =I58/Dźwignie!$D$2 -> 0.2496510229 | N58: =K58/Dźwignie!$D$3 -> 0.2022173285 | O58: 2.00139786 | P58: 1 | Q58: 2.00139786 | S58: =C58*Dźwignie!$G$8 -> 99930.20458 | T58: 199860.4092 | U58: =Dźwignie!$G$9 -> 150000 | V58: 49860.40915 | W58: =V58-Dźwignie!$D$6 -> 49860.40915 | X58: =IF(W58>0,W58*(1-Dźwignie!$D$9),W58) -> 40386.93141 | Y58: =X58/Dźwignie!$D$5 -> 2.019346571 | Z58: =V58/Dźwignie!$D$2 -> 0.2493020458 | AA58: =X58/Dźwignie!$D$3 -> 0.2019346571 | AB58: 4.008398899 | AC58: 1 | AD58: 4.008398899
A59: 47 | B59: 0.8554952741 | C59: =NORMINV(B59,Dźwignie!$L$8,Dźwignie!$L$9) -> 253014.8557 | D59: =Dźwignie!$L$7*C59 -> 379522.2835 | F59: =C59*Dźwignie!$G$5 -> 253014.8557 | G59: 126507.4278 | H59: =Dźwignie!$G$6 -> 50000 | I59: 76507.42785 | J59: =I59-Dźwignie!$D$6 -> 76507.42785 | K59: =IF(J59>0,J59*(1-Dźwignie!$D$9),J59) -> 61971.01656 | L59: =K59/Dźwignie!$D$5 -> 3.098550828 | M59: =I59/Dźwignie!$D$2 -> 0.3825371392 | N59: =K59/Dźwignie!$D$3 -> 0.3098550828 | O59: 1.653531316 | P59: 1 | Q59: 1.653531316 | S59: =C59*Dźwignie!$G$8 -> 126507.4278 | T59: 253014.8557 | U59: =Dźwignie!$G$9 -> 150000 | V59: 103014.8557 | W59: =V59-Dźwignie!$D$6 -> 103014.8557 | X59: =IF(W59>0,W59*(1-Dźwignie!$D$9),W59) -> 83442.03311 | Y59: =X59/Dźwignie!$D$5 -> 4.172101656 | Z59: =V59/Dźwignie!$D$2 -> 0.5150742785 | AA59: =X59/Dźwignie!$D$3 -> 0.4172101656 | AB59: 2.456100666 | AC59: 1 | AD59: 2.456100666
A60: 48 | B60: 0.4445426464 | C60: =NORMINV(B60,Dźwignie!$L$8,Dźwignie!$L$9) -> 193026.9133 | D60: =Dźwignie!$L$7*C60 -> 289540.37 | F60: =C60*Dźwignie!$G$5 -> 193026.9133 | G60: 96513.45667 | H60: =Dźwignie!$G$6 -> 50000 | I60: 46513.45667 | J60: =I60-Dźwignie!$D$6 -> 46513.45667 | K60: =IF(J60>0,J60*(1-Dźwignie!$D$9),J60) -> 37675.8999 | L60: =K60/Dźwignie!$D$5 -> 1.883794995 | M60: =I60/Dźwignie!$D$2 -> 0.2325672833 | N60: =K60/Dźwignie!$D$3 -> 0.1883794995 | O60: 2.074957734 | P60: 1 | Q60: 2.074957734 | S60: =C60*Dźwignie!$G$8 -> 96513.45667 | T60: 193026.9133 | U60: =Dźwignie!$G$9 -> 150000 | V60: 43026.91334 | W60: =V60-Dźwignie!$D$6 -> 43026.91334 | X60: =IF(W60>0,W60*(1-Dźwignie!$D$9),W60) -> 34851.7998 | Y60: =X60/Dźwignie!$D$5 -> 1.74258999 | Z60: =V60/Dźwignie!$D$2 -> 0.2151345667 | AA60: =X60/Dźwignie!$D$3 -> 0.174258999 | AB60: 4.486190116 | AC60: 1 | AD60: 4.486190116
A61: 49 | B61: 0.3882769942 | C61: =NORMINV(B61,Dźwignie!$L$8,Dźwignie!$L$9) -> 185809.3694 | D61: =Dźwignie!$L$7*C61 -> 278714.0541 | F61: =C61*Dźwignie!$G$5 -> 185809.3694 | G61: 92904.68469 | H61: =Dźwignie!$G$6 -> 50000 | I61: 42904.68469 | J61: =I61-Dźwignie!$D$6 -> 42904.68469 | K61: =IF(J61>0,J61*(1-Dźwignie!$D$9),J61) -> 34752.7946 | L61: =K61/Dźwignie!$D$5 -> 1.73763973 | M61: =I61/Dźwignie!$D$2 -> 0.2145234234 | N61: =K61/Dźwignie!$D$3 -> 0.173763973 | O61: 2.165373906 | P61: 1 | Q61: 2.165373906 | S61: =C61*Dźwignie!$G$8 -> 92904.68469 | T61: 185809.3694 | U61: =Dźwignie!$G$9 -> 150000 | V61: 35809.36938 | W61: =V61-Dźwignie!$D$6 -> 35809.36938 | X61: =IF(W61>0,W61*(1-Dźwignie!$D$9),W61) -> 29005.58919 | Y61: =X61/Dźwignie!$D$5 -> 1.45027946 | Z61: =V61/Dźwignie!$D$2 -> 0.1790468469 | AA61: =X61/Dźwignie!$D$3 -> 0.145027946 | AB61: 5.188847852 | AC61: 1 | AD61: 5.188847852
A62: 50 | B62: 0.3619445562 | C62: =NORMINV(B62,Dźwignie!$L$8,Dźwignie!$L$9) -> 182336.7053 | D62: =Dźwignie!$L$7*C62 -> 273505.058 | F62: =C62*Dźwignie!$G$5 -> 182336.7053 | G62: 91168.35267 | H62: =Dźwignie!$G$6 -> 50000 | I62: 41168.35267 | J62: =I62-Dźwignie!$D$6 -> 41168.35267 | K62: =IF(J62>0,J62*(1-Dźwignie!$D$9),J62) -> 33346.36566 | L62: =K62/Dźwignie!$D$5 -> 1.667318283 | M62: =I62/Dźwignie!$D$2 -> 0.2058417633 | N62: =K62/Dźwignie!$D$3 -> 0.1667318283 | O62: 2.214525157 | P62: 1 | Q62: 2.214525157 | S62: =C62*Dźwignie!$G$8 -> 91168.35267 | T62: 182336.7053 | U62: =Dźwignie!$G$9 -> 150000 | V62: 32336.70534 | W62: =V62-Dźwignie!$D$6 -> 32336.70534 | X62: =IF(W62>0,W62*(1-Dźwignie!$D$9),W62) -> 26192.73132 | Y62: =X62/Dźwignie!$D$5 -> 1.309636566 | Z62: =V62/Dźwignie!$D$2 -> 0.1616835267 | AA62: =X62/Dźwignie!$D$3 -> 0.1309636566 | AB62: 5.638691494 | AC62: 1 | AD62: 5.638691494
A63: 51 | B63: 0.2138300538 | C63: =NORMINV(B63,Dźwignie!$L$8,Dźwignie!$L$9) -> 160339.897 | D63: =Dźwignie!$L$7*C63 -> 240509.8455 | F63: =C63*Dźwignie!$G$5 -> 160339.897 | G63: 80169.9485 | H63: =Dźwignie!$G$6 -> 50000 | I63: 30169.9485 | J63: =I63-Dźwignie!$D$6 -> 30169.9485 | K63: =IF(J63>0,J63*(1-Dźwignie!$D$9),J63) -> 24437.65829 | L63: =K63/Dźwignie!$D$5 -> 1.221882914 | M63: =I63/Dźwignie!$D$2 -> 0.1508497425 | N63: =K63/Dźwignie!$D$3 -> 0.1221882914 | O63: 2.657278268 | P63: 1 | Q63: 2.657278268 | S63: =C63*Dźwignie!$G$8 -> 80169.9485 | T63: 160339.897 | U63: =Dźwignie!$G$9 -> 150000 | V63: 10339.89701 | W63: =V63-Dźwignie!$D$6 -> 10339.89701 | X63: =IF(W63>0,W63*(1-Dźwignie!$D$9),W63) -> 8375.316577 | Y63: =X63/Dźwignie!$D$5 -> 0.4187658288 | Z63: =V63/Dźwignie!$D$2 -> 0.05169948504 | AA63: =X63/Dźwignie!$D$3 -> 0.04187658288 | AB63: 15.50691432 | AC63: 1 | AD63: 15.50691432
A64: 52 | B64: 0.7770090103 | C64: =NORMINV(B64,Dźwignie!$L$8,Dźwignie!$L$9) -> 238106.5369 | D64: =Dźwignie!$L$7*C64 -> 357159.8053 | F64: =C64*Dźwignie!$G$5 -> 238106.5369 | G64: 119053.2684 | H64: =Dźwignie!$G$6 -> 50000 | I64: 69053.26843 | J64: =I64-Dźwignie!$D$6 -> 69053.26843 | K64: =IF(J64>0,J64*(1-Dźwignie!$D$9),J64) -> 55933.14743 | L64: =K64/Dźwignie!$D$5 -> 2.796657371 | M64: =I64/Dźwignie!$D$2 -> 0.3452663422 | N64: =K64/Dźwignie!$D$3 -> 0.2796657371 | O64: 1.724078688 | P64: 1 | Q64: 1.724078688 | S64: =C64*Dźwignie!$G$8 -> 119053.2684 | T64: 238106.5369 | U64: =Dźwignie!$G$9 -> 150000 | V64: 88106.53686 | W64: =V64-Dźwignie!$D$6 -> 88106.53686 | X64: =IF(W64>0,W64*(1-Dźwignie!$D$9),W64) -> 71366.29486 | Y64: =X64/Dźwignie!$D$5 -> 3.568314743 | Z64: =V64/Dźwignie!$D$2 -> 0.4405326843 | AA64: =X64/Dźwignie!$D$3 -> 0.3568314743 | AB64: 2.702484348 | AC64: 1 | AD64: 2.702484348
A65: 53 | B65: 0.4184657931 | C65: =NORMINV(B65,Dźwignie!$L$8,Dźwignie!$L$9) -> 189709.0044 | D65: =Dźwignie!$L$7*C65 -> 284563.5066 | F65: =C65*Dźwignie!$G$5 -> 189709.0044 | G65: 94854.50219 | H65: =Dźwignie!$G$6 -> 50000 | I65: 44854.50219 | J65: =I65-Dźwignie!$D$6 -> 44854.50219 | K65: =IF(J65>0,J65*(1-Dźwignie!$D$9),J65) -> 36332.14677 | L65: =K65/Dźwignie!$D$5 -> 1.816607339 | M65: =I65/Dźwignie!$D$2 -> 0.2242725109 | N65: =K65/Dźwignie!$D$3 -> 0.1816607339 | O65: 2.114715303 | P65: 1 | Q65: 2.114715303 | S65: =C65*Dźwignie!$G$8 -> 94854.50219 | T65: 189709.0044 | U65: =Dźwignie!$G$9 -> 150000 | V65: 39709.00437 | W65: =V65-Dźwignie!$D$6 -> 39709.00437 | X65: =IF(W65>0,W65*(1-Dźwignie!$D$9),W65) -> 32164.29354 | Y65: =X65/Dźwignie!$D$5 -> 1.608214677 | Z65: =V65/Dźwignie!$D$2 -> 0.1985450219 | AA65: =X65/Dźwignie!$D$3 -> 0.1608214677 | AB65: 4.777480759 | AC65: 1 | AD65: 4.777480759
A66: 54 | B66: 0.4386144876 | C66: =NORMINV(B66,Dźwignie!$L$8,Dźwignie!$L$9) -> 192275.8539 | D66: =Dźwignie!$L$7*C66 -> 288413.7808 | F66: =C66*Dźwignie!$G$5 -> 192275.8539 | G66: 96137.92693 | H66: =Dźwignie!$G$6 -> 50000 | I66: 46137.92693 | J66: =I66-Dźwignie!$D$6 -> 46137.92693 | K66: =IF(J66>0,J66*(1-Dźwignie!$D$9),J66) -> 37371.72082 | L66: =K66/Dźwignie!$D$5 -> 1.868586041 | M66: =I66/Dźwignie!$D$2 -> 0.2306896347 | N66: =K66/Dźwignie!$D$3 -> 0.1868586041 | O66: 2.083707122 | P66: 1 | Q66: 2.083707122 | S66: =C66*Dźwignie!$G$8 -> 96137.92693 | T66: 192275.8539 | U66: =Dźwignie!$G$9 -> 150000 | V66: 42275.85387 | W66: =V66-Dźwignie!$D$6 -> 42275.85387 | X66: =IF(W66>0,W66*(1-Dźwignie!$D$9),W66) -> 34243.44163 | Y66: =X66/Dźwignie!$D$5 -> 1.712172082 | Z66: =V66/Dźwignie!$D$2 -> 0.2113792693 | AA66: =X66/Dźwignie!$D$3 -> 0.1712172082 | AB66: 4.548124669 | AC66: 1 | AD66: 4.548124669
A67: 55 | B67: 0.7321112752 | C67: =NORMINV(B67,Dźwignie!$L$8,Dźwignie!$L$9) -> 230960.5437 | D67: =Dźwignie!$L$7*C67 -> 346440.8155 | F67: =C67*Dźwignie!$G$5 -> 230960.5437 | G67: 115480.2718 | H67: =Dźwignie!$G$6 -> 50000 | I67: 65480.27184 | J67: =I67-Dźwignie!$D$6 -> 65480.27184 | K67: =IF(J67>0,J67*(1-Dźwignie!$D$9),J67) -> 53039.02019 | L67: =K67/Dźwignie!$D$5 -> 2.651951009 | M67: =I67/Dźwignie!$D$2 -> 0.3274013592 | N67: =K67/Dźwignie!$D$3 -> 0.2651951009 | O67: 1.763588766 | P67: 1 | Q67: 1.763588766 | S67: =C67*Dźwignie!$G$8 -> 115480.2718 | T67: 230960.5437 | U67: =Dźwignie!$G$9 -> 150000 | V67: 80960.54367 | W67: =V67-Dźwignie!$D$6 -> 80960.54367 | X67: =IF(W67>0,W67*(1-Dźwignie!$D$9),W67) -> 65578.04037 | Y67: =X67/Dźwignie!$D$5 -> 3.278902019 | Z67: =V67/Dźwignie!$D$2 -> 0.4048027184 | AA67: =X67/Dźwignie!$D$3 -> 0.3278902019 | AB67: 2.852754357 | AC67: 1 | AD67: 2.852754357
A68: 56 | B68: 0.2272922993 | C68: =NORMINV(B68,Dźwignie!$L$8,Dźwignie!$L$9) -> 162610.3147 | D68: =Dźwignie!$L$7*C68 -> 243915.472 | F68: =C68*Dźwignie!$G$5 -> 162610.3147 | G68: 81305.15733 | H68: =Dźwignie!$G$6 -> 50000 | I68: 31305.15733 | J68: =I68-Dźwignie!$D$6 -> 31305.15733 | K68: =IF(J68>0,J68*(1-Dźwignie!$D$9),J68) -> 25357.17743 | L68: =K68/Dźwignie!$D$5 -> 1.267858872 | M68: =I68/Dźwignie!$D$2 -> 0.1565257866 | N68: =K68/Dźwignie!$D$3 -> 0.1267858872 | O68: 2.597180921 | P68: 1 | Q68: 2.597180921 | S68: =C68*Dźwignie!$G$8 -> 81305.15733 | T68: 162610.3147 | U68: =Dźwignie!$G$9 -> 150000 | V68: 12610.31465 | W68: =V68-Dźwignie!$D$6 -> 12610.31465 | X68: =IF(W68>0,W68*(1-Dźwignie!$D$9),W68) -> 10214.35487 | Y68: =X68/Dźwignie!$D$5 -> 0.5107177435 | Z68: =V68/Dźwignie!$D$2 -> 0.06305157327 | AA68: =X68/Dźwignie!$D$3 -> 0.05107177435 | AB68: 12.89502436 | AC68: 1 | AD68: 12.89502436
A69: 57 | B69: 0.3022350669 | C69: =NORMINV(B69,Dźwignie!$L$8,Dźwignie!$L$9) -> 174100.8502 | D69: =Dźwignie!$L$7*C69 -> 261151.2754 | F69: =C69*Dźwignie!$G$5 -> 174100.8502 | G69: 87050.42512 | H69: =Dźwignie!$G$6 -> 50000 | I69: 37050.42512 | J69: =I69-Dźwignie!$D$6 -> 37050.42512 | K69: =IF(J69>0,J69*(1-Dźwignie!$D$9),J69) -> 30010.84435 | L69: =K69/Dźwignie!$D$5 -> 1.500542217 | M69: =I69/Dźwignie!$D$2 -> 0.1852521256 | N69: =K69/Dźwignie!$D$3 -> 0.1500542217 | O69: 2.349512181 | P69: 1 | Q69: 2.349512181 | S69: =C69*Dźwignie!$G$8 -> 87050.42512 | T69: 174100.8502 | U69: =Dźwignie!$G$9 -> 150000 | V69: 24100.85024 | W69: =V69-Dźwignie!$D$6 -> 24100.85024 | X69: =IF(W69>0,W69*(1-Dźwignie!$D$9),W69) -> 19521.68869 | Y69: =X69/Dźwignie!$D$5 -> 0.9760844347 | Z69: =V69/Dźwignie!$D$2 -> 0.1205042512 | AA69: =X69/Dźwignie!$D$3 -> 0.09760844347 | AB69: 7.223846815 | AC69: 1 | AD69: 7.223846815
A70: 58 | B70: 0.3334492445 | C70: =NORMINV(B70,Dźwignie!$L$8,Dźwignie!$L$9) -> 178479.5733 | D70: =Dźwignie!$L$7*C70 -> 267719.36 | F70: =C70*Dźwignie!$G$5 -> 178479.5733 | G70: 89239.78667 | H70: =Dźwignie!$G$6 -> 50000 | I70: 39239.78667 | J70: =I70-Dźwignie!$D$6 -> 39239.78667 | K70: =IF(J70>0,J70*(1-Dźwignie!$D$9),J70) -> 31784.2272 | L70: =K70/Dźwignie!$D$5 -> 1.58921136 | M70: =I70/Dźwignie!$D$2 -> 0.1961989333 | N70: =K70/Dźwignie!$D$3 -> 0.158921136 | O70: 2.274216917 | P70: 1 | Q70: 2.274216917 | S70: =C70*Dźwignie!$G$8 -> 89239.78667 | T70: 178479.5733 | U70: =Dźwignie!$G$9 -> 150000 | V70: 28479.57333 | W70: =V70-Dźwignie!$D$6 -> 28479.57333 | X70: =IF(W70>0,W70*(1-Dźwignie!$D$9),W70) -> 23068.4544 | Y70: =X70/Dźwignie!$D$5 -> 1.15342272 | Z70: =V70/Dźwignie!$D$2 -> 0.1423978667 | AA70: =X70/Dźwignie!$D$3 -> 0.115342272 | AB70: 6.266932838 | AC70: 1 | AD70: 6.266932838
A71: 59 | B71: 0.6591792703 | C71: =NORMINV(B71,Dźwignie!$L$8,Dźwignie!$L$9) -> 220511.2121 | D71: =Dźwignie!$L$7*C71 -> 330766.8181 | F71: =C71*Dźwignie!$G$5 -> 220511.2121 | G71: 110255.606 | H71: =Dźwignie!$G$6 -> 50000 | I71: 60255.60605 | J71: =I71-Dźwignie!$D$6 -> 60255.60605 | K71: =IF(J71>0,J71*(1-Dźwignie!$D$9),J71) -> 48807.0409 | L71: =K71/Dźwignie!$D$5 -> 2.440352045 | M71: =I71/Dźwignie!$D$2 -> 0.3012780302 | N71: =K71/Dźwignie!$D$3 -> 0.2440352045 | O71: 1.829798309 | P71: 1 | Q71: 1.829798309 | S71: =C71*Dźwignie!$G$8 -> 110255.606 | T71: 220511.2121 | U71: =Dźwignie!$G$9 -> 150000 | V71: 70511.2121 | W71: =V71-Dźwignie!$D$6 -> 70511.2121 | X71: =IF(W71>0,W71*(1-Dźwignie!$D$9),W71) -> 57114.0818 | Y71: =X71/Dźwignie!$D$5 -> 2.85570409 | Z71: =V71/Dźwignie!$D$2 -> 0.3525560605 | AA71: =X71/Dźwignie!$D$3 -> 0.285570409 | AB71: 3.127321252 | AC71: 1 | AD71: 3.127321252
A72: 60 | B72: 0.8613715172 | C72: =NORMINV(B72,Dźwignie!$L$8,Dźwignie!$L$9) -> 254325.099 | D72: =Dźwignie!$L$7*C72 -> 381487.6485 | F72: =C72*Dźwignie!$G$5 -> 254325.099 | G72: 127162.5495 | H72: =Dźwignie!$G$6 -> 50000 | I72: 77162.54949 | J72: =I72-Dźwignie!$D$6 -> 77162.54949 | K72: =IF(J72>0,J72*(1-Dźwignie!$D$9),J72) -> 62501.66508 | L72: =K72/Dźwignie!$D$5 -> 3.125083254 | M72: =I72/Dźwignie!$D$2 -> 0.3858127474 | N72: =K72/Dźwignie!$D$3 -> 0.3125083254 | O72: 1.647982737 | P72: 1 | Q72: 1.647982737 | S72: =C72*Dźwignie!$G$8 -> 127162.5495 | T72: 254325.099 | U72: =Dźwignie!$G$9 -> 150000 | V72: 104325.099 | W72: =V72-Dźwignie!$D$6 -> 104325.099 | X72: =IF(W72>0,W72*(1-Dźwignie!$D$9),W72) -> 84503.33017 | Y72: =X72/Dźwignie!$D$5 -> 4.225166508 | Z72: =V72/Dźwignie!$D$2 -> 0.5216254949 | AA72: =X72/Dźwignie!$D$3 -> 0.4225166508 | AB72: 2.437813158 | AC72: 1 | AD72: 2.437813158
A73: 61 | B73: 0.4041478038 | C73: =NORMINV(B73,Dźwignie!$L$8,Dźwignie!$L$9) -> 187868.7303 | D73: =Dźwignie!$L$7*C73 -> 281803.0955 | F73: =C73*Dźwignie!$G$5 -> 187868.7303 | G73: 93934.36516 | H73: =Dźwignie!$G$6 -> 50000 | I73: 43934.36516 | J73: =I73-Dźwignie!$D$6 -> 43934.36516 | K73: =IF(J73>0,J73*(1-Dźwignie!$D$9),J73) -> 35586.83578 | L73: =K73/Dźwignie!$D$5 -> 1.779341789 | M73: =I73/Dźwignie!$D$2 -> 0.2196718258 | N73: =K73/Dźwignie!$D$3 -> 0.1779341789 | O73: 2.138061283 | P73: 1 | Q73: 2.138061283 | S73: =C73*Dźwignie!$G$8 -> 93934.36516 | T73: 187868.7303 | U73: =Dźwignie!$G$9 -> 150000 | V73: 37868.73031 | W73: =V73-Dźwignie!$D$6 -> 37868.73031 | X73: =IF(W73>0,W73*(1-Dźwignie!$D$9),W73) -> 30673.67155 | Y73: =X73/Dźwignie!$D$5 -> 1.533683578 | Z73: =V73/Dźwignie!$D$2 -> 0.1893436516 | AA73: =X73/Dźwignie!$D$3 -> 0.1533683578 | AB73: 4.961051737 | AC73: 1 | AD73: 4.961051737
A74: 62 | B74: 0.2652598619 | C74: =NORMINV(B74,Dźwignie!$L$8,Dźwignie!$L$9) -> 168639.3577 | D74: =Dźwignie!$L$7*C74 -> 252959.0366 | F74: =C74*Dźwignie!$G$5 -> 168639.3577 | G74: 84319.67886 | H74: =Dźwignie!$G$6 -> 50000 | I74: 34319.67886 | J74: =I74-Dźwignie!$D$6 -> 34319.67886 | K74: =IF(J74>0,J74*(1-Dźwignie!$D$9),J74) -> 27798.93987 | L74: =K74/Dźwignie!$D$5 -> 1.389946994 | M74: =I74/Dźwignie!$D$2 -> 0.1715983943 | N74: =K74/Dźwignie!$D$3 -> 0.1389946994 | O74: 2.45689009 | P74: 1 | Q74: 2.45689009 | S74: =C74*Dźwignie!$G$8 -> 84319.67886 | T74: 168639.3577 | U74: =Dźwignie!$G$9 -> 150000 | V74: 18639.35771 | W74: =V74-Dźwignie!$D$6 -> 18639.35771 | X74: =IF(W74>0,W74*(1-Dźwignie!$D$9),W74) -> 15097.87975 | Y74: =X74/Dźwignie!$D$5 -> 0.7548939873 | Z74: =V74/Dźwignie!$D$2 -> 0.09319678855 | AA74: =X74/Dźwignie!$D$3 -> 0.07548939873 | AB74: 9.047487598 | AC74: 1 | AD74: 9.047487598
A75: 63 | B75: 0.4011009336 | C75: =NORMINV(B75,Dźwignie!$L$8,Dźwignie!$L$9) -> 187475.0752 | D75: =Dźwignie!$L$7*C75 -> 281212.6127 | F75: =C75*Dźwignie!$G$5 -> 187475.0752 | G75: 93737.53758 | H75: =Dźwignie!$G$6 -> 50000 | I75: 43737.53758 | J75: =I75-Dźwignie!$D$6 -> 43737.53758 | K75: =IF(J75>0,J75*(1-Dźwignie!$D$9),J75) -> 35427.40544 | L75: =K75/Dźwignie!$D$5 -> 1.771370272 | M75: =I75/Dźwignie!$D$2 -> 0.2186876879 | N75: =K75/Dźwignie!$D$3 -> 0.1771370272 | O75: 2.143182784 | P75: 1 | Q75: 2.143182784 | S75: =C75*Dźwignie!$G$8 -> 93737.53758 | T75: 187475.0752 | U75: =Dźwignie!$G$9 -> 150000 | V75: 37475.07516 | W75: =V75-Dźwignie!$D$6 -> 37475.07516 | X75: =IF(W75>0,W75*(1-Dźwignie!$D$9),W75) -> 30354.81088 | Y75: =X75/Dźwignie!$D$5 -> 1.517740544 | Z75: =V75/Dźwignie!$D$2 -> 0.1873753758 | AA75: =X75/Dźwignie!$D$3 -> 0.1517740544 | AB75: 5.002660417 | AC75: 1 | AD75: 5.002660417
A76: 64 | B76: 0.2735459805 | C76: =NORMINV(B76,Dźwignie!$L$8,Dźwignie!$L$9) -> 169893.8271 | D76: =Dźwignie!$L$7*C76 -> 254840.7407 | F76: =C76*Dźwignie!$G$5 -> 169893.8271 | G76: 84946.91355 | H76: =Dźwignie!$G$6 -> 50000 | I76: 34946.91355 | J76: =I76-Dźwignie!$D$6 -> 34946.91355 | K76: =IF(J76>0,J76*(1-Dźwignie!$D$9),J76) -> 28306.99998 | L76: =K76/Dźwignie!$D$5 -> 1.415349999 | M76: =I76/Dźwignie!$D$2 -> 0.1747345678 | N76: =K76/Dźwignie!$D$3 -> 0.1415349999 | O76: 2.430741514 | P76: 1 | Q76: 2.430741514 | S76: =C76*Dźwignie!$G$8 -> 84946.91355 | T76: 169893.8271 | U76: =Dźwignie!$G$9 -> 150000 | V76: 19893.82711 | W76: =V76-Dźwignie!$D$6 -> 19893.82711 | X76: =IF(W76>0,W76*(1-Dźwignie!$D$9),W76) -> 16113.99996 | Y76: =X76/Dźwignie!$D$5 -> 0.8056999979 | Z76: =V76/Dźwignie!$D$2 -> 0.09946913554 | AA76: =X76/Dźwignie!$D$3 -> 0.08056999979 | AB76: 8.540027325 | AC76: 1 | AD76: 8.540027325
A77: 65 | B77: 0.5038060546 | C77: =NORMINV(B77,Dźwignie!$L$8,Dźwignie!$L$9) -> 200477.0254 | D77: =Dźwignie!$L$7*C77 -> 300715.5382 | F77: =C77*Dźwignie!$G$5 -> 200477.0254 | G77: =$D77-F77 -> 100238.5127 | H77: =Dźwignie!$G$6 -> 50000 | I77: =G77-H77 -> 50238.51272 | J77: =I77-Dźwignie!$D$6 -> 50238.51272 | K77: =IF(J77>0,J77*(1-Dźwignie!$D$9),J77) -> 40693.1953 | L77: =K77/Dźwignie!$D$5 -> 2.034659765 | M77: =I77/Dźwignie!$D$2 -> 0.2511925636 | N77: =K77/Dźwignie!$D$3 -> 0.2034659765 | O77: =IF(I77<>0,G77/I77,"N ") -> 1.995252393 | P77: =IF(J77<>0,I77/J77,"N ") -> 1 | Q77: =IF(ISTEXT(O77),O77,IF(ISTEXT(P77),P77,O77*P77)) -> 1.995252393 | S77: =C77*Dźwignie!$G$8 -> 100238.5127 | T77: =$D77-S77 -> 200477.0254 | U77: =Dźwignie!$G$9 -> 150000 | V77: =T77-U77 -> 50477.02544 | W77: =V77-Dźwignie!$D$6 -> 50477.02544 | X77: =IF(W77>0,W77*(1-Dźwignie!$D$9),W77) -> 40886.39061 | Y77: =X77/Dźwignie!$D$5 -> 2.04431953 | Z77: =V77/Dźwignie!$D$2 -> 0.2523851272 | AA77: =X77/Dźwignie!$D$3 -> 0.204431953 | AB77: =IF(V77<>0,T77/V77,"N ") -> 3.971648957 | AC77: =IF(W77<>0,V77/W77,"N ") -> 1 | AD77: =IF(ISTEXT(AB77),AB77,IF(ISTEXT(AC77),AC77,AB77*AC77)) -> 3.971648957
A78: 66 | B78: 0.2077401876 | C78: =NORMINV(B78,Dźwignie!$L$8,Dźwignie!$L$9) -> 159285.6343 | D78: =Dźwignie!$L$7*C78 -> 238928.4514 | F78: =C78*Dźwignie!$G$5 -> 159285.6343 | G78: 79642.81714 | H78: =Dźwignie!$G$6 -> 50000 | I78: 29642.81714 | J78: =I78-Dźwignie!$D$6 -> 29642.81714 | K78: =IF(J78>0,J78*(1-Dźwignie!$D$9),J78) -> 24010.68189 | L78: =K78/Dźwignie!$D$5 -> 1.200534094 | M78: =I78/Dźwignie!$D$2 -> 0.1482140857 | N78: =K78/Dźwignie!$D$3 -> 0.1200534094 | O78: 2.686749264 | P78: 1 | Q78: 2.686749264 | S78: =C78*Dźwignie!$G$8 -> 79642.81714 | T78: 159285.6343 | U78: =Dźwignie!$G$9 -> 150000 | V78: 9285.634284 | W78: =V78-Dźwignie!$D$6 -> 9285.634284 | X78: =IF(W78>0,W78*(1-Dźwignie!$D$9),W78) -> 7521.36377 | Y78: =X78/Dźwignie!$D$5 -> 0.3760681885 | Z78: =V78/Dźwignie!$D$2 -> 0.04642817142 | AA78: =X78/Dźwignie!$D$3 -> 0.03760681885 | AB78: 17.15398533 | AC78: 1 | AD78: 17.15398533
A79: 67 | B79: 0.09929472208 | C79: =NORMINV(B79,Dźwignie!$L$8,Dźwignie!$L$9) -> 135720.9662 | D79: =Dźwignie!$L$7*C79 -> 203581.4493 | F79: =C79*Dźwignie!$G$5 -> 135720.9662 | G79: 67860.48309 | H79: =Dźwignie!$G$6 -> 50000 | I79: 17860.48309 | J79: =I79-Dźwignie!$D$6 -> 17860.48309 | K79: =IF(J79>0,J79*(1-Dźwignie!$D$9),J79) -> 14466.9913 | L79: =K79/Dźwignie!$D$5 -> 0.723349565 | M79: =I79/Dźwignie!$D$2 -> 0.08930241544 | N79: =K79/Dźwignie!$D$3 -> 0.0723349565 | O79: 3.79947635 | P79: 1 | Q79: 3.79947635 | S79: =C79*Dźwignie!$G$8 -> 67860.48309 | T79: 135720.9662 | U79: =Dźwignie!$G$9 -> 150000 | V79: -14279.03383 | W79: =V79-Dźwignie!$D$6 -> -14279.03383 | X79: =IF(W79>0,W79*(1-Dźwignie!$D$9),W79) -> -14279.03383 | Y79: =X79/Dźwignie!$D$5 -> -0.7139516913 | Z79: =V79/Dźwignie!$D$2 -> -0.07139516913 | AA79: =X79/Dźwignie!$D$3 -> -0.07139516913 | AB79: -9.504912435 | AC79: 1 | AD79: -9.504912435
A80: 68 | B80: 0.852060318 | C80: =NORMINV(B80,Dźwignie!$L$8,Dźwignie!$L$9) -> 252265.5382 | D80: =Dźwignie!$L$7*C80 -> 378398.3074 | F80: =C80*Dźwignie!$G$5 -> 252265.5382 | G80: 126132.7691 | H80: =Dźwignie!$G$6 -> 50000 | I80: 76132.76912 | J80: =I80-Dźwignie!$D$6 -> 76132.76912 | K80: =IF(J80>0,J80*(1-Dźwignie!$D$9),J80) -> 61667.54299 | L80: =K80/Dźwignie!$D$5 -> 3.083377149 | M80: =I80/Dźwignie!$D$2 -> 0.3806638456 | N80: =K80/Dźwignie!$D$3 -> 0.3083377149 | O80: 1.656747424 | P80: 1 | Q80: 1.656747424 | S80: =C80*Dźwignie!$G$8 -> 126132.7691 | T80: 252265.5382 | U80: =Dźwignie!$G$9 -> 150000 | V80: 102265.5382 | W80: =V80-Dźwignie!$D$6 -> 102265.5382 | X80: =IF(W80>0,W80*(1-Dźwignie!$D$9),W80) -> 82835.08597 | Y80: =X80/Dźwignie!$D$5 -> 4.141754299 | Z80: =V80/Dźwignie!$D$2 -> 0.5113276912 | AA80: =X80/Dźwignie!$D$3 -> 0.4141754299 | AB80: 2.46676977 | AC80: 1 | AD80: 2.46676977
A81: 69 | B81: 0.9989759326 | C81: =NORMINV(B81,Dźwignie!$L$8,Dźwignie!$L$9) -> 354158.1106 | D81: =Dźwignie!$L$7*C81 -> 531237.1659 | F81: =C81*Dźwignie!$G$5 -> 354158.1106 | G81: 177079.0553 | H81: =Dźwignie!$G$6 -> 50000 | I81: 127079.0553 | J81: =I81-Dźwignie!$D$6 -> 127079.0553 | K81: =IF(J81>0,J81*(1-Dźwignie!$D$9),J81) -> 102934.0348 | L81: =K81/Dźwignie!$D$5 -> 5.14670174 | M81: =I81/Dźwignie!$D$2 -> 0.6353952765 | N81: =K81/Dźwignie!$D$3 -> 0.514670174 | O81: 1.393455868 | P81: 1 | Q81: 1.393455868 | S81: =C81*Dźwignie!$G$8 -> 177079.0553 | T81: 354158.1106 | U81: =Dźwignie!$G$9 -> 150000 | V81: 204158.1106 | W81: =V81-Dźwignie!$D$6 -> 204158.1106 | X81: =IF(W81>0,W81*(1-Dźwignie!$D$9),W81) -> 165368.0696 | Y81: =X81/Dźwignie!$D$5 -> 8.26840348 | Z81: =V81/Dźwignie!$D$2 -> 1.020790553 | AA81: =X81/Dźwignie!$D$3 -> 0.826840348 | AB81: 1.734724668 | AC81: 1 | AD81: 1.734724668
A82: 70 | B82: 0.2800918818 | C82: =NORMINV(B82,Dźwignie!$L$8,Dźwignie!$L$9) -> 170871.5711 | D82: =Dźwignie!$L$7*C82 -> 256307.3567 | F82: =C82*Dźwignie!$G$5 -> 170871.5711 | G82: 85435.78556 | H82: =Dźwignie!$G$6 -> 50000 | I82: 35435.78556 | J82: =I82-Dźwignie!$D$6 -> 35435.78556 | K82: =IF(J82>0,J82*(1-Dźwignie!$D$9),J82) -> 28702.9863 | L82: =K82/Dźwignie!$D$5 -> 1.435149315 | M82: =I82/Dźwignie!$D$2 -> 0.1771789278 | N82: =K82/Dźwignie!$D$3 -> 0.1435149315 | O82: 2.411003008 | P82: 1 | Q82: 2.411003008 | S82: =C82*Dźwignie!$G$8 -> 85435.78556 | T82: 170871.5711 | U82: =Dźwignie!$G$9 -> 150000 | V82: 20871.57111 | W82: =V82-Dźwignie!$D$6 -> 20871.57111 | X82: =IF(W82>0,W82*(1-Dźwignie!$D$9),W82) -> 16905.9726 | Y82: =X82/Dźwignie!$D$5 -> 0.84529863 | Z82: =V82/Dźwignie!$D$2 -> 0.1043578556 | AA82: =X82/Dźwignie!$D$3 -> 0.084529863 | AB82: 8.186809234 | AC82: 1 | AD82: 8.186809234
A83: 71 | B83: 0.4586556554 | C83: =NORMINV(B83,Dźwignie!$L$8,Dźwignie!$L$9) -> 194808.9443 | D83: =Dźwignie!$L$7*C83 -> 292213.4165 | F83: =C83*Dźwignie!$G$5 -> 194808.9443 | G83: 97404.47216 | H83: =Dźwignie!$G$6 -> 50000 | I83: 47404.47216 | J83: =I83-Dźwignie!$D$6 -> 47404.47216 | K83: =IF(J83>0,J83*(1-Dźwignie!$D$9),J83) -> 38397.62245 | L83: =K83/Dźwignie!$D$5 -> 1.919881122 | M83: =I83/Dźwignie!$D$2 -> 0.2370223608 | N83: =K83/Dźwignie!$D$3 -> 0.1919881122 | O83: 2.054752805 | P83: 1 | Q83: 2.054752805 | S83: =C83*Dźwignie!$G$8 -> 97404.47216 | T83: 194808.9443 | U83: =Dźwignie!$G$9 -> 150000 | V83: 44808.94432 | W83: =V83-Dźwignie!$D$6 -> 44808.94432 | X83: =IF(W83>0,W83*(1-Dźwignie!$D$9),W83) -> 36295.2449 | Y83: =X83/Dźwignie!$D$5 -> 1.814762245 | Z83: =V83/Dźwignie!$D$2 -> 0.2240447216 | AA83: =X83/Dźwignie!$D$3 -> 0.1814762245 | AB83: 4.347545948 | AC83: 1 | AD83: 4.347545948
A84: 72 | B84: 0.2947294712 | C84: =NORMINV(B84,Dźwignie!$L$8,Dźwignie!$L$9) -> 173018.9871 | D84: =Dźwignie!$L$7*C84 -> 259528.4806 | F84: =C84*Dźwignie!$G$5 -> 173018.9871 | G84: 86509.49353 | H84: =Dźwignie!$G$6 -> 50000 | I84: 36509.49353 | J84: =I84-Dźwignie!$D$6 -> 36509.49353 | K84: =IF(J84>0,J84*(1-Dźwignie!$D$9),J84) -> 29572.68976 | L84: =K84/Dźwignie!$D$5 -> 1.478634488 | M84: =I84/Dźwignie!$D$2 -> 0.1825474676 | N84: =K84/Dźwignie!$D$3 -> 0.1478634488 | O84: 2.36950681 | P84: 1 | Q84: 2.36950681 | S84: =C84*Dźwignie!$G$8 -> 86509.49353 | T84: 173018.9871 | U84: =Dźwignie!$G$9 -> 150000 | V84: 23018.98706 | W84: =V84-Dźwignie!$D$6 -> 23018.98706 | X84: =IF(W84>0,W84*(1-Dźwignie!$D$9),W84) -> 18645.37951 | Y84: =X84/Dźwignie!$D$5 -> 0.9322689757 | Z84: =V84/Dźwignie!$D$2 -> 0.1150949353 | AA84: =X84/Dźwignie!$D$3 -> 0.09322689757 | AB84: 7.516359718 | AC84: 1 | AD84: 7.516359718
A85: 73 | B85: 0.3587126136 | C85: =NORMINV(B85,Dźwignie!$L$8,Dźwignie!$L$9) -> 181904.8974 | D85: =Dźwignie!$L$7*C85 -> 272857.3462 | F85: =C85*Dźwignie!$G$5 -> 181904.8974 | G85: 90952.44872 | H85: =Dźwignie!$G$6 -> 50000 | I85: 40952.44872 | J85: =I85-Dźwignie!$D$6 -> 40952.44872 | K85: =IF(J85>0,J85*(1-Dźwignie!$D$9),J85) -> 33171.48347 | L85: =K85/Dźwignie!$D$5 -> 1.658574173 | M85: =I85/Dźwignie!$D$2 -> 0.2047622436 | N85: =K85/Dźwignie!$D$3 -> 0.1658574173 | O85: 2.220928212 | P85: 1 | Q85: 2.220928212 | S85: =C85*Dźwignie!$G$8 -> 90952.44872 | T85: 181904.8974 | U85: =Dźwignie!$G$9 -> 150000 | V85: 31904.89745 | W85: =V85-Dźwignie!$D$6 -> 31904.89745 | X85: =IF(W85>0,W85*(1-Dźwignie!$D$9),W85) -> 25842.96693 | Y85: =X85/Dźwignie!$D$5 -> 1.292148347 | Z85: =V85/Dźwignie!$D$2 -> 0.1595244872 | AA85: =X85/Dźwignie!$D$3 -> 0.1292148347 | AB85: 5.701472564 | AC85: 1 | AD85: 5.701472564
A86: 74 | B86: 0.3876494169 | C86: =NORMINV(B86,Dźwignie!$L$8,Dźwignie!$L$9) -> 185727.4627 | D86: =Dźwignie!$L$7*C86 -> 278591.194 | F86: =C86*Dźwignie!$G$5 -> 185727.4627 | G86: 92863.73134 | H86: =Dźwignie!$G$6 -> 50000 | I86: 42863.73134 | J86: =I86-Dźwignie!$D$6 -> 42863.73134 | K86: =IF(J86>0,J86*(1-Dźwignie!$D$9),J86) -> 34719.62238 | L86: =K86/Dźwignie!$D$5 -> 1.735981119 | M86: =I86/Dźwignie!$D$2 -> 0.2143186567 | N86: =K86/Dźwignie!$D$3 -> 0.1735981119 | O86: 2.166487341 | P86: 1 | Q86: 2.166487341 | S86: =C86*Dźwignie!$G$8 -> 92863.73134 | T86: 185727.4627 | U86: =Dźwignie!$G$9 -> 150000 | V86: 35727.46267 | W86: =V86-Dźwignie!$D$6 -> 35727.46267 | X86: =IF(W86>0,W86*(1-Dźwignie!$D$9),W86) -> 28939.24477 | Y86: =X86/Dźwignie!$D$5 -> 1.446962238 | Z86: =V86/Dźwignie!$D$2 -> 0.1786373134 | AA86: =X86/Dźwignie!$D$3 -> 0.1446962238 | AB86: 5.198450961 | AC86: 1 | AD86: 5.198450961
A87: 75 | B87: 0.8256803155 | C87: =NORMINV(B87,Dźwignie!$L$8,Dźwignie!$L$9) -> 246861.5867 | D87: =Dźwignie!$L$7*C87 -> 370292.3801 | F87: =C87*Dźwignie!$G$5 -> 246861.5867 | G87: 123430.7934 | H87: =Dźwignie!$G$6 -> 50000 | I87: 73430.79337 | J87: =I87-Dźwignie!$D$6 -> 73430.79337 | K87: =IF(J87>0,J87*(1-Dźwignie!$D$9),J87) -> 59478.94263 | L87: =K87/Dźwignie!$D$5 -> 2.973947132 | M87: =I87/Dźwignie!$D$2 -> 0.3671539669 | N87: =K87/Dźwignie!$D$3 -> 0.2973947132 | O87: 1.680913248 | P87: 1 | Q87: 1.680913248 | S87: =C87*Dźwignie!$G$8 -> 123430.7934 | T87: 246861.5867 | U87: =Dźwignie!$G$9 -> 150000 | V87: 96861.58675 | W87: =V87-Dźwignie!$D$6 -> 96861.58675 | X87: =IF(W87>0,W87*(1-Dźwignie!$D$9),W87) -> 78457.88526 | Y87: =X87/Dźwignie!$D$5 -> 3.922894263 | Z87: =V87/Dźwignie!$D$2 -> 0.4843079337 | AA87: =X87/Dźwignie!$D$3 -> 0.3922894263 | AB87: 2.548601515 | AC87: 1 | AD87: 2.548601515
A88: 76 | B88: 0.374563694 | C88: =NORMINV(B88,Dźwignie!$L$8,Dźwignie!$L$9) -> 184010.4907 | D88: =Dźwignie!$L$7*C88 -> 276015.7361 | F88: =C88*Dźwignie!$G$5 -> 184010.4907 | G88: 92005.24536 | H88: =Dźwignie!$G$6 -> 50000 | I88: 42005.24536 | J88: =I88-Dźwignie!$D$6 -> 42005.24536 | K88: =IF(J88>0,J88*(1-Dźwignie!$D$9),J88) -> 34024.24874 | L88: =K88/Dźwignie!$D$5 -> 1.701212437 | M88: =I88/Dźwignie!$D$2 -> 0.2100262268 | N88: =K88/Dźwignie!$D$3 -> 0.1701212437 | O88: 2.190327531 | P88: 1 | Q88: 2.190327531 | S88: =C88*Dźwignie!$G$8 -> 92005.24536 | T88: 184010.4907 | U88: =Dźwignie!$G$9 -> 150000 | V88: 34010.49072 | W88: =V88-Dźwignie!$D$6 -> 34010.49072 | X88: =IF(W88>0,W88*(1-Dźwignie!$D$9),W88) -> 27548.49748 | Y88: =X88/Dźwignie!$D$5 -> 1.377424874 | Z88: =V88/Dźwignie!$D$2 -> 0.1700524536 | AA88: =X88/Dźwignie!$D$3 -> 0.1377424874 | AB88: 5.410403873 | AC88: 1 | AD88: 5.410403873
A89: 77 | B89: 0.8264853358 | C89: =NORMINV(B89,Dźwignie!$L$8,Dźwignie!$L$9) -> 247018.3515 | D89: =Dźwignie!$L$7*C89 -> 370527.5272 | F89: =C89*Dźwignie!$G$5 -> 247018.3515 | G89: 123509.1757 | H89: =Dźwignie!$G$6 -> 50000 | I89: 73509.17573 | J89: =I89-Dźwignie!$D$6 -> 73509.17573 | K89: =IF(J89>0,J89*(1-Dźwignie!$D$9),J89) -> 59542.43234 | L89: =K89/Dźwignie!$D$5 -> 2.977121617 | M89: =I89/Dźwignie!$D$2 -> 0.3675458786 | N89: =K89/Dźwignie!$D$3 -> 0.2977121617 | O89: 1.680187194 | P89: 1 | Q89: 1.680187194 | S89: =C89*Dźwignie!$G$8 -> 123509.1757 | T89: 247018.3515 | U89: =Dźwignie!$G$9 -> 150000 | V89: 97018.35145 | W89: =V89-Dźwignie!$D$6 -> 97018.35145 | X89: =IF(W89>0,W89*(1-Dźwignie!$D$9),W89) -> 78584.86467 | Y89: =X89/Dźwignie!$D$5 -> 3.929243234 | Z89: =V89/Dźwignie!$D$2 -> 0.4850917573 | AA89: =X89/Dźwignie!$D$3 -> 0.3929243234 | AB89: 2.546099246 | AC89: 1 | AD89: 2.546099246
A90: 78 | B90: 0.1125050783 | C90: =NORMINV(B90,Dźwignie!$L$8,Dźwignie!$L$9) -> 139334.3477 | D90: =Dźwignie!$L$7*C90 -> 209001.5215 | F90: =C90*Dźwignie!$G$5 -> 139334.3477 | G90: 69667.17383 | H90: =Dźwignie!$G$6 -> 50000 | I90: 19667.17383 | J90: =I90-Dźwignie!$D$6 -> 19667.17383 | K90: =IF(J90>0,J90*(1-Dźwignie!$D$9),J90) -> 15930.4108 | L90: =K90/Dźwignie!$D$5 -> 0.7965205402 | M90: =I90/Dźwignie!$D$2 -> 0.09833586916 | N90: =K90/Dźwignie!$D$3 -> 0.07965205402 | O90: 3.54230732 | P90: 1 | Q90: 3.54230732 | S90: =C90*Dźwignie!$G$8 -> 69667.17383 | T90: 139334.3477 | U90: =Dźwignie!$G$9 -> 150000 | V90: -10665.65234 | W90: =V90-Dźwignie!$D$6 -> -10665.65234 | X90: =IF(W90>0,W90*(1-Dźwignie!$D$9),W90) -> -10665.65234 | Y90: =X90/Dźwignie!$D$5 -> -0.5332826169 | Z90: =V90/Dźwignie!$D$2 -> -0.05332826169 | AA90: =X90/Dźwignie!$D$3 -> -0.05332826169 | AB90: -13.06383738 | AC90: 1 | AD90: -13.06383738
A91: 79 | B91: 0.5165918469 | C91: =NORMINV(B91,Dźwignie!$L$8,Dźwignie!$L$9) -> 202080.0795 | D91: =Dźwignie!$L$7*C91 -> 303120.1192 | F91: =C91*Dźwignie!$G$5 -> 202080.0795 | G91: 101040.0397 | H91: =Dźwignie!$G$6 -> 50000 | I91: 51040.03974 | J91: =I91-Dźwignie!$D$6 -> 51040.03974 | K91: =IF(J91>0,J91*(1-Dźwignie!$D$9),J91) -> 41342.43219 | L91: =K91/Dźwignie!$D$5 -> 2.067121609 | M91: =I91/Dźwignie!$D$2 -> 0.2552001987 | N91: =K91/Dźwignie!$D$3 -> 0.2067121609 | O91: 1.979623062 | P91: 1 | Q91: 1.979623062 | S91: =C91*Dźwignie!$G$8 -> 101040.0397 | T91: 202080.0795 | U91: =Dźwignie!$G$9 -> 150000 | V91: 52080.07947 | W91: =V91-Dźwignie!$D$6 -> 52080.07947 | X91: =IF(W91>0,W91*(1-Dźwignie!$D$9),W91) -> 42184.86437 | Y91: =X91/Dźwignie!$D$5 -> 2.109243219 | Z91: =V91/Dźwignie!$D$2 -> 0.2604003974 | AA91: =X91/Dźwignie!$D$3 -> 0.2109243219 | AB91: 3.880179937 | AC91: 1 | AD91: 3.880179937
A92: 80 | B92: 0.9553935528 | C92: =NORMINV(B92,Dźwignie!$L$8,Dźwignie!$L$9) -> 284978.2192 | D92: =Dźwignie!$L$7*C92 -> 427467.3288 | F92: =C92*Dźwignie!$G$5 -> 284978.2192 | G92: 142489.1096 | H92: =Dźwignie!$G$6 -> 50000 | I92: 92489.1096 | J92: =I92-Dźwignie!$D$6 -> 92489.1096 | K92: =IF(J92>0,J92*(1-Dźwignie!$D$9),J92) -> 74916.17877 | L92: =K92/Dźwignie!$D$5 -> 3.745808939 | M92: =I92/Dźwignie!$D$2 -> 0.462445548 | N92: =K92/Dźwignie!$D$3 -> 0.3745808939 | O92: 1.540604188 | P92: 1 | Q92: 1.540604188 | S92: =C92*Dźwignie!$G$8 -> 142489.1096 | T92: 284978.2192 | U92: =Dźwignie!$G$9 -> 150000 | V92: 134978.2192 | W92: =V92-Dźwignie!$D$6 -> 134978.2192 | X92: =IF(W92>0,W92*(1-Dźwignie!$D$9),W92) -> 109332.3575 | Y92: =X92/Dźwignie!$D$5 -> 5.466617877 | Z92: =V92/Dźwignie!$D$2 -> 0.674891096 | AA92: =X92/Dźwignie!$D$3 -> 0.5466617877 | AB92: 2.111290406 | AC92: 1 | AD92: 2.111290406
A93: 81 | B93: 0.3733024001 | C93: =NORMINV(B93,Dźwignie!$L$8,Dźwignie!$L$9) -> 183844.0288 | D93: =Dźwignie!$L$7*C93 -> 275766.0432 | F93: =C93*Dźwignie!$G$5 -> 183844.0288 | G93: 91922.01439 | H93: =Dźwignie!$G$6 -> 50000 | I93: 41922.01439 | J93: =I93-Dźwignie!$D$6 -> 41922.01439 | K93: =IF(J93>0,J93*(1-Dźwignie!$D$9),J93) -> 33956.83166 | L93: =K93/Dźwignie!$D$5 -> 1.697841583 | M93: =I93/Dźwignie!$D$2 -> 0.209610072 | N93: =K93/Dźwignie!$D$3 -> 0.1697841583 | O93: 2.192690779 | P93: 1 | Q93: 2.192690779 | S93: =C93*Dźwignie!$G$8 -> 91922.01439 | T93: 183844.0288 | U93: =Dźwignie!$G$9 -> 150000 | V93: 33844.02879 | W93: =V93-Dźwignie!$D$6 -> 33844.02879 | X93: =IF(W93>0,W93*(1-Dźwignie!$D$9),W93) -> 27413.66332 | Y93: =X93/Dźwignie!$D$5 -> 1.370683166 | Z93: =V93/Dźwignie!$D$2 -> 0.1692201439 | AA93: =X93/Dźwignie!$D$3 -> 0.1370683166 | AB93: 5.432096455 | AC93: 1 | AD93: 5.432096455
A94: 82 | B94: 0.8541339636 | C94: =NORMINV(B94,Dźwignie!$L$8,Dźwignie!$L$9) -> 252716.4766 | D94: =Dźwignie!$L$7*C94 -> 379074.7148 | F94: =C94*Dźwignie!$G$5 -> 252716.4766 | G94: 126358.2383 | H94: =Dźwignie!$G$6 -> 50000 | I94: 76358.23828 | J94: =I94-Dźwignie!$D$6 -> 76358.23828 | K94: =IF(J94>0,J94*(1-Dźwignie!$D$9),J94) -> 61850.17301 | L94: =K94/Dźwignie!$D$5 -> 3.09250865 | M94: =I94/Dźwignie!$D$2 -> 0.3817911914 | N94: =K94/Dźwignie!$D$3 -> 0.309250865 | O94: 1.654808193 | P94: 1 | Q94: 1.654808193 | S94: =C94*Dźwignie!$G$8 -> 126358.2383 | T94: 252716.4766 | U94: =Dźwignie!$G$9 -> 150000 | V94: 102716.4766 | W94: =V94-Dźwignie!$D$6 -> 102716.4766 | X94: =IF(W94>0,W94*(1-Dźwignie!$D$9),W94) -> 83200.34602 | Y94: =X94/Dźwignie!$D$5 -> 4.160017301 | Z94: =V94/Dźwignie!$D$2 -> 0.5135823828 | AA94: =X94/Dźwignie!$D$3 -> 0.4160017301 | AB94: 2.460330465 | AC94: 1 | AD94: 2.460330465
A95: 83 | B95: 0.3954649568 | C95: =NORMINV(B95,Dźwignie!$L$8,Dźwignie!$L$9) -> 186744.8368 | D95: =Dźwignie!$L$7*C95 -> 280117.2553 | F95: =C95*Dźwignie!$G$5 -> 186744.8368 | G95: 93372.41842 | H95: =Dźwignie!$G$6 -> 50000 | I95: 43372.41842 | J95: =I95-Dźwignie!$D$6 -> 43372.41842 | K95: =IF(J95>0,J95*(1-Dźwignie!$D$9),J95) -> 35131.65892 | L95: =K95/Dźwignie!$D$5 -> 1.756582946 | M95: =I95/Dźwignie!$D$2 -> 0.2168620921 | N95: =K95/Dźwignie!$D$3 -> 0.1756582946 | O95: 2.152806365 | P95: 1 | Q95: 2.152806365 | S95: =C95*Dźwignie!$G$8 -> 93372.41842 | T95: 186744.8368 | U95: =Dźwignie!$G$9 -> 150000 | V95: 36744.83684 | W95: =V95-Dźwignie!$D$6 -> 36744.83684 | X95: =IF(W95>0,W95*(1-Dźwignie!$D$9),W95) -> 29763.31784 | Y95: =X95/Dźwignie!$D$5 -> 1.488165892 | Z95: =V95/Dźwignie!$D$2 -> 0.1837241842 | AA95: =X95/Dźwignie!$D$3 -> 0.1488165892 | AB95: 5.08220618 | AC95: 1 | AD95: 5.08220618
A96: 84 | B96: 0.2574949265 | C96: =NORMINV(B96,Dźwignie!$L$8,Dźwignie!$L$9) -> 167445.6132 | D96: =Dźwignie!$L$7*C96 -> 251168.4198 | F96: =C96*Dźwignie!$G$5 -> 167445.6132 | G96: 83722.80661 | H96: =Dźwignie!$G$6 -> 50000 | I96: 33722.80661 | J96: =I96-Dźwignie!$D$6 -> 33722.80661 | K96: =IF(J96>0,J96*(1-Dźwignie!$D$9),J96) -> 27315.47335 | L96: =K96/Dźwignie!$D$5 -> 1.365773668 | M96: =I96/Dźwignie!$D$2 -> 0.168614033 | N96: =K96/Dźwignie!$D$3 -> 0.1365773668 | O96: 2.482676118 | P96: 1 | Q96: 2.482676118 | S96: =C96*Dźwignie!$G$8 -> 83722.80661 | T96: 167445.6132 | U96: =Dźwignie!$G$9 -> 150000 | V96: 17445.61321 | W96: =V96-Dźwignie!$D$6 -> 17445.61321 | X96: =IF(W96>0,W96*(1-Dźwignie!$D$9),W96) -> 14130.9467 | Y96: =X96/Dźwignie!$D$5 -> 0.7065473351 | Z96: =V96/Dźwignie!$D$2 -> 0.08722806606 | AA96: =X96/Dźwignie!$D$3 -> 0.07065473351 | AB96: 9.598150044 | AC96: 1 | AD96: 9.598150044
A97: 85 | B97: 0.9008361697 | C97: =NORMINV(B97,Dźwignie!$L$8,Dźwignie!$L$9) -> 264316.5367 | D97: =Dźwignie!$L$7*C97 -> 396474.8051 | F97: =C97*Dźwignie!$G$5 -> 264316.5367 | G97: 132158.2684 | H97: =Dźwignie!$G$6 -> 50000 | I97: 82158.26836 | J97: =I97-Dźwignie!$D$6 -> 82158.26836 | K97: =IF(J97>0,J97*(1-Dźwignie!$D$9),J97) -> 66548.19737 | L97: =K97/Dźwignie!$D$5 -> 3.327409869 | M97: =I97/Dźwignie!$D$2 -> 0.4107913418 | N97: =K97/Dźwignie!$D$3 -> 0.3327409869 | O97: 1.608581473 | P97: 1 | Q97: 1.608581473 | S97: =C97*Dźwignie!$G$8 -> 132158.2684 | T97: 264316.5367 | U97: =Dźwignie!$G$9 -> 150000 | V97: 114316.5367 | W97: =V97-Dźwignie!$D$6 -> 114316.5367 | X97: =IF(W97>0,W97*(1-Dźwignie!$D$9),W97) -> 92596.39475 | Y97: =X97/Dźwignie!$D$5 -> 4.629819737 | Z97: =V97/Dźwignie!$D$2 -> 0.5715826836 | AA97: =X97/Dźwignie!$D$3 -> 0.4629819737 | AB97: 2.312146119 | AC97: 1 | AD97: 2.312146119
A98: 86 | B98: 0.2200189829 | C98: =NORMINV(B98,Dźwignie!$L$8,Dźwignie!$L$9) -> 161393.5448 | D98: =Dźwignie!$L$7*C98 -> 242090.3171 | F98: =C98*Dźwignie!$G$5 -> 161393.5448 | G98: 80696.77238 | H98: =Dźwignie!$G$6 -> 50000 | I98: 30696.77238 | J98: =I98-Dźwignie!$D$6 -> 30696.77238 | K98: =IF(J98>0,J98*(1-Dźwignie!$D$9),J98) -> 24864.38563 | L98: =K98/Dźwignie!$D$5 -> 1.243219282 | M98: =I98/Dźwignie!$D$2 -> 0.1534838619 | N98: =K98/Dźwignie!$D$3 -> 0.1243219282 | O98: 2.628835741 | P98: 1 | Q98: 2.628835741 | S98: =C98*Dźwignie!$G$8 -> 80696.77238 | T98: 161393.5448 | U98: =Dźwignie!$G$9 -> 150000 | V98: 11393.54477 | W98: =V98-Dźwignie!$D$6 -> 11393.54477 | X98: =IF(W98>0,W98*(1-Dźwignie!$D$9),W98) -> 9228.771261 | Y98: =X98/Dźwignie!$D$5 -> 0.461438563 | Z98: =V98/Dźwignie!$D$2 -> 0.05696772383 | AA98: =X98/Dźwignie!$D$3 -> 0.0461438563 | AB98: 14.1653496 | AC98: 1 | AD98: 14.1653496
A99: 87 | B99: 0.7023509145 | C99: =NORMINV(B99,Dźwignie!$L$8,Dźwignie!$L$9) -> 226558.7027 | D99: =Dźwignie!$L$7*C99 -> 339838.054 | F99: =C99*Dźwignie!$G$5 -> 226558.7027 | G99: 113279.3513 | H99: =Dźwignie!$G$6 -> 50000 | I99: 63279.35135 | J99: =I99-Dźwignie!$D$6 -> 63279.35135 | K99: =IF(J99>0,J99*(1-Dźwignie!$D$9),J99) -> 51256.27459 | L99: =K99/Dźwignie!$D$5 -> 2.56281373 | M99: =I99/Dźwignie!$D$2 -> 0.3163967567 | N99: =K99/Dźwignie!$D$3 -> 0.256281373 | O99: 1.790147164 | P99: 1 | Q99: 1.790147164 | S99: =C99*Dźwignie!$G$8 -> 113279.3513 | T99: 226558.7027 | U99: =Dźwignie!$G$9 -> 150000 | V99: 76558.70269 | W99: =V99-Dźwignie!$D$6 -> 76558.70269 | X99: =IF(W99>0,W99*(1-Dźwignie!$D$9),W99) -> 62012.54918 | Y99: =X99/Dźwignie!$D$5 -> 3.100627459 | Z99: =V99/Dźwignie!$D$2 -> 0.3827935135 | AA99: =X99/Dźwignie!$D$3 -> 0.3100627459 | AB99: 2.959280849 | AC99: 1 | AD99: 2.959280849
A100: 88 | B100: 0.3732140064 | C100: =NORMINV(B100,Dźwignie!$L$8,Dźwignie!$L$9) -> 183832.3561 | D100: =Dźwignie!$L$7*C100 -> 275748.5342 | F100: =C100*Dźwignie!$G$5 -> 183832.3561 | G100: 91916.17807 | H100: =Dźwignie!$G$6 -> 50000 | I100: 41916.17807 | J100: =I100-Dźwignie!$D$6 -> 41916.17807 | K100: =IF(J100>0,J100*(1-Dźwignie!$D$9),J100) -> 33952.10424 | L100: =K100/Dźwignie!$D$5 -> 1.697605212 | M100: =I100/Dźwignie!$D$2 -> 0.2095808904 | N100: =K100/Dźwignie!$D$3 -> 0.1697605212 | O100: 2.192856847 | P100: 1 | Q100: 2.192856847 | S100: =C100*Dźwignie!$G$8 -> 91916.17807 | T100: 183832.3561 | U100: =Dźwignie!$G$9 -> 150000 | V100: 33832.35615 | W100: =V100-Dźwignie!$D$6 -> 33832.35615 | X100: =IF(W100>0,W100*(1-Dźwignie!$D$9),W100) -> 27404.20848 | Y100: =X100/Dźwignie!$D$5 -> 1.370210424 | Z100: =V100/Dźwignie!$D$2 -> 0.1691617807 | AA100: =X100/Dźwignie!$D$3 -> 0.1370210424 | AB100: 5.43362559 | AC100: 1 | AD100: 5.43362559
A101: 89 | B101: 0.6945480704 | C101: =NORMINV(B101,Dźwignie!$L$8,Dźwignie!$L$9) -> 225439.1841 | D101: =Dźwignie!$L$7*C101 -> 338158.7761 | F101: =C101*Dźwignie!$G$5 -> 225439.1841 | G101: 112719.592 | H101: =Dźwignie!$G$6 -> 50000 | I101: 62719.59203 | J101: =I101-Dźwignie!$D$6 -> 62719.59203 | K101: =IF(J101>0,J101*(1-Dźwignie!$D$9),J101) -> 50802.86954 | L101: =K101/Dźwignie!$D$5 -> 2.540143477 | M101: =I101/Dźwignie!$D$2 -> 0.3135979601 | N101: =K101/Dźwignie!$D$3 -> 0.2540143477 | O101: 1.797199063 | P101: 1 | Q101: 1.797199063 | S101: =C101*Dźwignie!$G$8 -> 112719.592 | T101: 225439.1841 | U101: =Dźwignie!$G$9 -> 150000 | V101: 75439.18406 | W101: =V101-Dźwignie!$D$6 -> 75439.18406 | X101: =IF(W101>0,W101*(1-Dźwignie!$D$9),W101) -> 61105.73909 | Y101: =X101/Dźwignie!$D$5 -> 3.055286954 | Z101: =V101/Dźwignie!$D$2 -> 0.3771959203 | AA101: =X101/Dźwignie!$D$3 -> 0.3055286954 | AB101: 2.988356606 | AC101: 1 | AD101: 2.988356606
A102: 90 | B102: 0.6662758589 | C102: =NORMINV(B102,Dźwignie!$L$8,Dźwignie!$L$9) -> 221482.6359 | D102: =Dźwignie!$L$7*C102 -> 332223.9539 | F102: =C102*Dźwignie!$G$5 -> 221482.6359 | G102: 110741.318 | H102: =Dźwignie!$G$6 -> 50000 | I102: 60741.31796 | J102: =I102-Dźwignie!$D$6 -> 60741.31796 | K102: =IF(J102>0,J102*(1-Dźwignie!$D$9),J102) -> 49200.46754 | L102: =K102/Dźwignie!$D$5 -> 2.460023377 | M102: =I102/Dźwignie!$D$2 -> 0.3037065898 | N102: =K102/Dźwignie!$D$3 -> 0.2460023377 | O102: 1.823162909 | P102: 1 | Q102: 1.823162909 | S102: =C102*Dźwignie!$G$8 -> 110741.318 | T102: 221482.6359 | U102: =Dźwignie!$G$9 -> 150000 | V102: 71482.63591 | W102: =V102-Dźwignie!$D$6 -> 71482.63591 | X102: =IF(W102>0,W102*(1-Dźwignie!$D$9),W102) -> 57900.93509 | Y102: =X102/Dźwignie!$D$5 -> 2.895046754 | Z102: =V102/Dźwignie!$D$2 -> 0.3574131796 | AA102: =X102/Dźwignie!$D$3 -> 0.2895046754 | AB102: 3.098411706 | AC102: 1 | AD102: 3.098411706
A103: 91 | B103: 0.1314025521 | C103: =NORMINV(B103,Dźwignie!$L$8,Dźwignie!$L$9) -> 144010.7161 | D103: =Dźwignie!$L$7*C103 -> 216016.0742 | F103: =C103*Dźwignie!$G$5 -> 144010.7161 | G103: 72005.35807 | H103: =Dźwignie!$G$6 -> 50000 | I103: 22005.35807 | J103: =I103-Dźwignie!$D$6 -> 22005.35807 | K103: =IF(J103>0,J103*(1-Dźwignie!$D$9),J103) -> 17824.34004 | L103: =K103/Dźwignie!$D$5 -> 0.891217002 | M103: =I103/Dźwignie!$D$2 -> 0.1100267904 | N103: =K103/Dźwignie!$D$3 -> 0.0891217002 | O103: 3.272173888 | P103: 1 | Q103: 3.272173888 | S103: =C103*Dźwignie!$G$8 -> 72005.35807 | T103: 144010.7161 | U103: =Dźwignie!$G$9 -> 150000 | V103: -5989.283853 | W103: =V103-Dźwignie!$D$6 -> -5989.283853 | X103: =IF(W103>0,W103*(1-Dźwignie!$D$9),W103) -> -5989.283853 | Y103: =X103/Dźwignie!$D$5 -> -0.2994641927 | Z103: =V103/Dźwignie!$D$2 -> -0.02994641927 | AA103: =X103/Dźwignie!$D$3 -> -0.02994641927 | AB103: -24.0447305 | AC103: 1 | AD103: -24.0447305
A104: 92 | B104: 0.0325922966 | C104: =NORMINV(B104,Dźwignie!$L$8,Dźwignie!$L$9) -> 107800.4985 | D104: =Dźwignie!$L$7*C104 -> 161700.7478 | F104: =C104*Dźwignie!$G$5 -> 107800.4985 | G104: 53900.24925 | H104: =Dźwignie!$G$6 -> 50000 | I104: 3900.249254 | J104: =I104-Dźwignie!$D$6 -> 3900.249254 | K104: =IF(J104>0,J104*(1-Dźwignie!$D$9),J104) -> 3159.201895 | L104: =K104/Dźwignie!$D$5 -> 0.1579600948 | M104: =I104/Dźwignie!$D$2 -> 0.01950124627 | N104: =K104/Dźwignie!$D$3 -> 0.01579600948 | O104: 13.8196935 | P104: 1 | Q104: 13.8196935 | S104: =C104*Dźwignie!$G$8 -> 53900.24925 | T104: 107800.4985 | U104: =Dźwignie!$G$9 -> 150000 | V104: -42199.50149 | W104: =V104-Dźwignie!$D$6 -> -42199.50149 | X104: =IF(W104>0,W104*(1-Dźwignie!$D$9),W104) -> -42199.50149 | Y104: =X104/Dźwignie!$D$5 -> -2.109975075 | Z104: =V104/Dźwignie!$D$2 -> -0.2109975075 | AA104: =X104/Dźwignie!$D$3 -> -0.2109975075 | AB104: -2.554544359 | AC104: 1 | AD104: -2.554544359
A105: 93 | B105: 0.1268135905 | C105: =NORMINV(B105,Dźwignie!$L$8,Dźwignie!$L$9) -> 142920.8244 | D105: =Dźwignie!$L$7*C105 -> 214381.2367 | F105: =C105*Dźwignie!$G$5 -> 142920.8244 | G105: 71460.41222 | H105: =Dźwignie!$G$6 -> 50000 | I105: 21460.41222 | J105: =I105-Dźwignie!$D$6 -> 21460.41222 | K105: =IF(J105>0,J105*(1-Dźwignie!$D$9),J105) -> 17382.9339 | L105: =K105/Dźwignie!$D$5 -> 0.8691466949 | M105: =I105/Dźwignie!$D$2 -> 0.1073020611 | N105: =K105/Dźwignie!$D$3 -> 0.08691466949 | O105: 3.329871369 | P105: 1 | Q105: 3.329871369 | S105: =C105*Dźwignie!$G$8 -> 71460.41222 | T105: 142920.8244 | U105: =Dźwignie!$G$9 -> 150000 | V105: -7079.175562 | W105: =V105-Dźwignie!$D$6 -> -7079.175562 | X105: =IF(W105>0,W105*(1-Dźwignie!$D$9),W105) -> -7079.175562 | Y105: =X105/Dźwignie!$D$5 -> -0.3539587781 | Z105: =V105/Dźwignie!$D$2 -> -0.03539587781 | AA105: =X105/Dźwignie!$D$3 -> -0.03539587781 | AB105: -20.18890804 | AC105: 1 | AD105: -20.18890804
A106: 94 | B106: 0.3882781267 | C106: =NORMINV(B106,Dźwignie!$L$8,Dźwignie!$L$9) -> 185809.5171 | D106: =Dźwignie!$L$7*C106 -> 278714.2757 | F106: =C106*Dźwignie!$G$5 -> 185809.5171 | G106: 92904.75857 | H106: =Dźwignie!$G$6 -> 50000 | I106: 42904.75857 | J106: =I106-Dźwignie!$D$6 -> 42904.75857 | K106: =IF(J106>0,J106*(1-Dźwignie!$D$9),J106) -> 34752.85444 | L106: =K106/Dźwignie!$D$5 -> 1.737642722 | M106: =I106/Dźwignie!$D$2 -> 0.2145237929 | N106: =K106/Dźwignie!$D$3 -> 0.1737642722 | O106: 2.1653719 | P106: 1 | Q106: 2.1653719 | S106: =C106*Dźwignie!$G$8 -> 92904.75857 | T106: 185809.5171 | U106: =Dźwignie!$G$9 -> 150000 | V106: 35809.51715 | W106: =V106-Dźwignie!$D$6 -> 35809.51715 | X106: =IF(W106>0,W106*(1-Dźwignie!$D$9),W106) -> 29005.70889 | Y106: =X106/Dźwignie!$D$5 -> 1.450285444 | Z106: =V106/Dźwignie!$D$2 -> 0.1790475857 | AA106: =X106/Dźwignie!$D$3 -> 0.1450285444 | AB106: 5.188830567 | AC106: 1 | AD106: 5.188830567
A107: 95 | B107: 0.1589992642 | C107: =NORMINV(B107,Dźwignie!$L$8,Dźwignie!$L$9) -> 150071.0347 | D107: =Dźwignie!$L$7*C107 -> 225106.552 | F107: =C107*Dźwignie!$G$5 -> 150071.0347 | G107: 75035.51733 | H107: =Dźwignie!$G$6 -> 50000 | I107: 25035.51733 | J107: =I107-Dźwignie!$D$6 -> 25035.51733 | K107: =IF(J107>0,J107*(1-Dźwignie!$D$9),J107) -> 20278.76903 | L107: =K107/Dźwignie!$D$5 -> 1.013938452 | M107: =I107/Dźwignie!$D$2 -> 0.1251775866 | N107: =K107/Dźwignie!$D$3 -> 0.1013938452 | O107: 2.997162645 | P107: 1 | Q107: 2.997162645 | S107: =C107*Dźwignie!$G$8 -> 75035.51733 | T107: 150071.0347 | U107: =Dźwignie!$G$9 -> 150000 | V107: 71.03465027 | W107: =V107-Dźwignie!$D$6 -> 71.03465027 | X107: =IF(W107>0,W107*(1-Dźwignie!$D$9),W107) -> 57.53806672 | Y107: =X107/Dźwignie!$D$5 -> 0.002876903336 | Z107: =V107/Dźwignie!$D$2 -> 0.0003551732513 | AA107: =X107/Dźwignie!$D$3 -> 0.0002876903336 | AB107: 2112.645506 | AC107: 1 | AD107: 2112.645506
A108: 96 | B108: 0.6189916134 | C108: =NORMINV(B108,Dźwignie!$L$8,Dźwignie!$L$9) -> 215141.6736 | D108: =Dźwignie!$L$7*C108 -> 322712.5104 | F108: =C108*Dźwignie!$G$5 -> 215141.6736 | G108: 107570.8368 | H108: =Dźwignie!$G$6 -> 50000 | I108: 57570.83681 | J108: =I108-Dźwignie!$D$6 -> 57570.83681 | K108: =IF(J108>0,J108*(1-Dźwignie!$D$9),J108) -> 46632.37781 | L108: =K108/Dźwignie!$D$5 -> 2.331618891 | M108: =I108/Dźwignie!$D$2 -> 0.287854184 | N108: =K108/Dźwignie!$D$3 -> 0.2331618891 | O108: 1.868495279 | P108: 1 | Q108: 1.868495279 | S108: =C108*Dźwignie!$G$8 -> 107570.8368 | T108: 215141.6736 | U108: =Dźwignie!$G$9 -> 150000 | V108: 65141.67362 | W108: =V108-Dźwignie!$D$6 -> 65141.67362 | X108: =IF(W108>0,W108*(1-Dźwignie!$D$9),W108) -> 52764.75563 | Y108: =X108/Dźwignie!$D$5 -> 2.638237781 | Z108: =V108/Dźwignie!$D$2 -> 0.3257083681 | AA108: =X108/Dźwignie!$D$3 -> 0.2638237781 | AB108: 3.302673414 | AC108: 1 | AD108: 3.302673414
A109: 97 | B109: 0.6100472808 | C109: =NORMINV(B109,Dźwignie!$L$8,Dźwignie!$L$9) -> 213972.1133 | D109: =Dźwignie!$L$7*C109 -> 320958.17 | F109: =C109*Dźwignie!$G$5 -> 213972.1133 | G109: 106986.0567 | H109: =Dźwignie!$G$6 -> 50000 | I109: 56986.05666 | J109: =I109-Dźwignie!$D$6 -> 56986.05666 | K109: =IF(J109>0,J109*(1-Dźwignie!$D$9),J109) -> 46158.7059 | L109: =K109/Dźwignie!$D$5 -> 2.307935295 | M109: =I109/Dźwignie!$D$2 -> 0.2849302833 | N109: =K109/Dźwignie!$D$3 -> 0.2307935295 | O109: 1.877407614 | P109: 1 | Q109: 1.877407614 | S109: =C109*Dźwignie!$G$8 -> 106986.0567 | T109: 213972.1133 | U109: =Dźwignie!$G$9 -> 150000 | V109: 63972.11333 | W109: =V109-Dźwignie!$D$6 -> 63972.11333 | X109: =IF(W109>0,W109*(1-Dźwignie!$D$9),W109) -> 51817.41179 | Y109: =X109/Dźwignie!$D$5 -> 2.59087059 | Z109: =V109/Dźwignie!$D$2 -> 0.3198605666 | AA109: =X109/Dźwignie!$D$3 -> 0.259087059 | AB109: 3.344771686 | AC109: 1 | AD109: 3.344771686
A110: 98 | B110: 0.4612821341 | C110: =NORMINV(B110,Dźwignie!$L$8,Dźwignie!$L$9) -> 195139.7922 | D110: =Dźwignie!$L$7*C110 -> 292709.6883 | F110: =C110*Dźwignie!$G$5 -> 195139.7922 | G110: 97569.89611 | H110: =Dźwignie!$G$6 -> 50000 | I110: 47569.89611 | J110: =I110-Dźwignie!$D$6 -> 47569.89611 | K110: =IF(J110>0,J110*(1-Dźwignie!$D$9),J110) -> 38531.61585 | L110: =K110/Dźwignie!$D$5 -> 1.926580793 | M110: =I110/Dźwignie!$D$2 -> 0.2378494806 | N110: =K110/Dźwignie!$D$3 -> 0.1926580793 | O110: 2.051084911 | P110: 1 | Q110: 2.051084911 | S110: =C110*Dźwignie!$G$8 -> 97569.89611 | T110: 195139.7922 | U110: =Dźwignie!$G$9 -> 150000 | V110: 45139.79223 | W110: =V110-Dźwignie!$D$6 -> 45139.79223 | X110: =IF(W110>0,W110*(1-Dźwignie!$D$9),W110) -> 36563.2317 | Y110: =X110/Dźwignie!$D$5 -> 1.828161585 | Z110: =V110/Dźwignie!$D$2 -> 0.2256989611 | AA110: =X110/Dźwignie!$D$3 -> 0.1828161585 | AB110: 4.323010422 | AC110: 1 | AD110: 4.323010422
A111: 99 | B111: 0.6218720078 | C111: =NORMINV(B111,Dźwignie!$L$8,Dźwignie!$L$9) -> 215520.0533 | D111: =Dźwignie!$L$7*C111 -> 323280.0799 | F111: =C111*Dźwignie!$G$5 -> 215520.0533 | G111: 107760.0266 | H111: =Dźwignie!$G$6 -> 50000 | I111: 57760.02663 | J111: =I111-Dźwignie!$D$6 -> 57760.02663 | K111: =IF(J111>0,J111*(1-Dźwignie!$D$9),J111) -> 46785.62157 | L111: =K111/Dźwignie!$D$5 -> 2.339281078 | M111: =I111/Dźwignie!$D$2 -> 0.2888001331 | N111: =K111/Dźwignie!$D$3 -> 0.2339281078 | O111: 1.86565057 | P111: 1 | Q111: 1.86565057 | S111: =C111*Dźwignie!$G$8 -> 107760.0266 | T111: 215520.0533 | U111: =Dźwignie!$G$9 -> 150000 | V111: 65520.05325 | W111: =V111-Dźwignie!$D$6 -> 65520.05325 | X111: =IF(W111>0,W111*(1-Dźwignie!$D$9),W111) -> 53071.24314 | Y111: =X111/Dźwignie!$D$5 -> 2.653562157 | Z111: =V111/Dźwignie!$D$2 -> 0.3276002663 | AA111: =X111/Dźwignie!$D$3 -> 0.2653562157 | AB111: 3.289375429 | AC111: 1 | AD111: 3.289375429
A112: 100 | B112: 0.4347190857 | C112: =NORMINV(B112,Dźwignie!$L$8,Dźwignie!$L$9) -> 191781.3915 | D112: =Dźwignie!$L$7*C112 -> 287672.0873 | F112: =C112*Dźwignie!$G$5 -> 191781.3915 | G112: 95890.69577 | H112: =Dźwignie!$G$6 -> 50000 | I112: 45890.69577 | J112: =I112-Dźwignie!$D$6 -> 45890.69577 | K112: =IF(J112>0,J112*(1-Dźwignie!$D$9),J112) -> 37171.46358 | L112: =K112/Dźwignie!$D$5 -> 1.858573179 | M112: =I112/Dźwignie!$D$2 -> 0.2294534789 | N112: =K112/Dźwignie!$D$3 -> 0.1858573179 | O112: 2.089545477 | P112: 1 | Q112: 2.089545477 | S112: =C112*Dźwignie!$G$8 -> 95890.69577 | T112: 191781.3915 | U112: =Dźwignie!$G$9 -> 150000 | V112: 41781.39154 | W112: =V112-Dźwignie!$D$6 -> 41781.39154 | X112: =IF(W112>0,W112*(1-Dźwignie!$D$9),W112) -> 33842.92715 | Y112: =X112/Dźwignie!$D$5 -> 1.692146358 | Z112: =V112/Dźwignie!$D$2 -> 0.2089069577 | AA112: =X112/Dźwignie!$D$3 -> 0.1692146358 | AB112: 4.590114988 | AC112: 1 | AD112: 4.590114988
A113: 101 | B113: 0.7998277545 | C113: =NORMINV(B113,Dźwignie!$L$8,Dźwignie!$L$9) -> 242050.3073 | D113: =Dźwignie!$L$7*C113 -> 363075.461 | F113: =C113*Dźwignie!$G$5 -> 242050.3073 | G113: 121025.1537 | H113: =Dźwignie!$G$6 -> 50000 | I113: 71025.15366 | J113: =I113-Dźwignie!$D$6 -> 71025.15366 | K113: =IF(J113>0,J113*(1-Dźwignie!$D$9),J113) -> 57530.37447 | L113: =K113/Dźwignie!$D$5 -> 2.876518723 | M113: =I113/Dźwignie!$D$2 -> 0.3551257683 | N113: =K113/Dźwignie!$D$3 -> 0.2876518723 | O113: 1.70397595 | P113: 1 | Q113: 1.70397595 | S113: =C113*Dźwignie!$G$8 -> 121025.1537 | T113: 242050.3073 | U113: =Dźwignie!$G$9 -> 150000 | V113: 92050.30733 | W113: =V113-Dźwignie!$D$6 -> 92050.30733 | X113: =IF(W113>0,W113*(1-Dźwignie!$D$9),W113) -> 74560.74894 | Y113: =X113/Dźwignie!$D$5 -> 3.728037447 | Z113: =V113/Dźwignie!$D$2 -> 0.4602515366 | AA113: =X113/Dźwignie!$D$3 -> 0.3728037447 | AB113: 2.629543717 | AC113: 1 | AD113: 2.629543717
A114: 102 | B114: 0.2310520411 | C114: =NORMINV(B114,Dźwignie!$L$8,Dźwignie!$L$9) -> 163230.6701 | D114: =Dźwignie!$L$7*C114 -> 244846.0052 | F114: =C114*Dźwignie!$G$5 -> 163230.6701 | G114: 81615.33507 | H114: =Dźwignie!$G$6 -> 50000 | I114: 31615.33507 | J114: =I114-Dźwignie!$D$6 -> 31615.33507 | K114: =IF(J114>0,J114*(1-Dźwignie!$D$9),J114) -> 25608.42141 | L114: =K114/Dźwignie!$D$5 -> 1.28042107 | M114: =I114/Dźwignie!$D$2 -> 0.1580766754 | N114: =K114/Dźwignie!$D$3 -> 0.128042107 | O114: 2.581510994 | P114: 1 | Q114: 2.581510994 | S114: =C114*Dźwignie!$G$8 -> 81615.33507 | T114: 163230.6701 | U114: =Dźwignie!$G$9 -> 150000 | V114: 13230.67014 | W114: =V114-Dźwignie!$D$6 -> 13230.67014 | X114: =IF(W114>0,W114*(1-Dźwignie!$D$9),W114) -> 10716.84282 | Y114: =X114/Dźwignie!$D$5 -> 0.5358421408 | Z114: =V114/Dźwignie!$D$2 -> 0.06615335071 | AA114: =X114/Dźwignie!$D$3 -> 0.05358421408 | AB114: 12.33729421 | AC114: 1 | AD114: 12.33729421
A115: 103 | B115: 0.5452283025 | C115: =NORMINV(B115,Dźwignie!$L$8,Dźwignie!$L$9) -> 205680.7248 | D115: =Dźwignie!$L$7*C115 -> 308521.0873 | F115: =C115*Dźwignie!$G$5 -> 205680.7248 | G115: 102840.3624 | H115: =Dźwignie!$G$6 -> 50000 | I115: 52840.36242 | J115: =I115-Dźwignie!$D$6 -> 52840.36242 | K115: =IF(J115>0,J115*(1-Dźwignie!$D$9),J115) -> 42800.69356 | L115: =K115/Dźwignie!$D$5 -> 2.140034678 | M115: =I115/Dźwignie!$D$2 -> 0.2642018121 | N115: =K115/Dźwignie!$D$3 -> 0.2140034678 | O115: 1.946246349 | P115: 1 | Q115: 1.946246349 | S115: =C115*Dźwignie!$G$8 -> 102840.3624 | T115: 205680.7248 | U115: =Dźwignie!$G$9 -> 150000 | V115: 55680.72484 | W115: =V115-Dźwignie!$D$6 -> 55680.72484 | X115: =IF(W115>0,W115*(1-Dźwignie!$D$9),W115) -> 45101.38712 | Y115: =X115/Dźwignie!$D$5 -> 2.255069356 | Z115: =V115/Dźwignie!$D$2 -> 0.2784036242 | AA115: =X115/Dźwignie!$D$3 -> 0.2255069356 | AB115: 3.693930448 | AC115: 1 | AD115: 3.693930448
A116: 104 | B116: 0.2166521549 | C116: =NORMINV(B116,Dźwignie!$L$8,Dźwignie!$L$9) -> 160822.509 | D116: =Dźwignie!$L$7*C116 -> 241233.7635 | F116: =C116*Dźwignie!$G$5 -> 160822.509 | G116: 80411.2545 | H116: =Dźwignie!$G$6 -> 50000 | I116: 30411.2545 | J116: =I116-Dźwignie!$D$6 -> 30411.2545 | K116: =IF(J116>0,J116*(1-Dźwignie!$D$9),J116) -> 24633.11615 | L116: =K116/Dźwignie!$D$5 -> 1.231655807 | M116: =I116/Dźwignie!$D$2 -> 0.1520562725 | N116: =K116/Dźwignie!$D$3 -> 0.1231655807 | O116: 2.644128163 | P116: 1 | Q116: 2.644128163 | S116: =C116*Dźwignie!$G$8 -> 80411.2545 | T116: 160822.509 | U116: =Dźwignie!$G$9 -> 150000 | V116: 10822.509 | W116: =V116-Dźwignie!$D$6 -> 10822.509 | X116: =IF(W116>0,W116*(1-Dźwignie!$D$9),W116) -> 8766.232291 | Y116: =X116/Dźwignie!$D$5 -> 0.4383116145 | Z116: =V116/Dźwignie!$D$2 -> 0.05411254501 | AA116: =X116/Dźwignie!$D$3 -> 0.04383116145 | AB116: 14.86000233 | AC116: 1 | AD116: 14.86000233
A117: 105 | B117: 0.04802268744 | C117: =NORMINV(B117,Dźwignie!$L$8,Dźwignie!$L$9) -> 116783.2182 | D117: =Dźwignie!$L$7*C117 -> 175174.8274 | F117: =C117*Dźwignie!$G$5 -> 116783.2182 | G117: 58391.60912 | H117: =Dźwignie!$G$6 -> 50000 | I117: 8391.609122 | J117: =I117-Dźwignie!$D$6 -> 8391.609122 | K117: =IF(J117>0,J117*(1-Dźwignie!$D$9),J117) -> 6797.203389 | L117: =K117/Dźwignie!$D$5 -> 0.3398601694 | M117: =I117/Dźwignie!$D$2 -> 0.04195804561 | N117: =K117/Dźwignie!$D$3 -> 0.03398601694 | O117: 6.958332815 | P117: 1 | Q117: 6.958332815 | S117: =C117*Dźwignie!$G$8 -> 58391.60912 | T117: 116783.2182 | U117: =Dźwignie!$G$9 -> 150000 | V117: -33216.78176 | W117: =V117-Dźwignie!$D$6 -> -33216.78176 | X117: =IF(W117>0,W117*(1-Dźwignie!$D$9),W117) -> -33216.78176 | Y117: =X117/Dźwignie!$D$5 -> -1.660839088 | Z117: =V117/Dźwignie!$D$2 -> -0.1660839088 | AA117: =X117/Dźwignie!$D$3 -> -0.1660839088 | AB117: -3.515789672 | AC117: 1 | AD117: -3.515789672
A118: 106 | B118: 0.9544848204 | C118: =NORMINV(B118,Dźwignie!$L$8,Dźwignie!$L$9) -> 284499.3716 | D118: =Dźwignie!$L$7*C118 -> 426749.0573 | F118: =C118*Dźwignie!$G$5 -> 284499.3716 | G118: 142249.6858 | H118: =Dźwignie!$G$6 -> 50000 | I118: 92249.68578 | J118: =I118-Dźwignie!$D$6 -> 92249.68578 | K118: =IF(J118>0,J118*(1-Dźwignie!$D$9),J118) -> 74722.24548 | L118: =K118/Dźwignie!$D$5 -> 3.736112274 | M118: =I118/Dźwignie!$D$2 -> 0.4612484289 | N118: =K118/Dźwignie!$D$3 -> 0.3736112274 | O118: 1.542007266 | P118: 1 | Q118: 1.542007266 | S118: =C118*Dźwignie!$G$8 -> 142249.6858 | T118: 284499.3716 | U118: =Dźwignie!$G$9 -> 150000 | V118: 134499.3716 | W118: =V118-Dźwignie!$D$6 -> 134499.3716 | X118: =IF(W118>0,W118*(1-Dźwignie!$D$9),W118) -> 108944.491 | Y118: =X118/Dźwignie!$D$5 -> 5.447224548 | Z118: =V118/Dźwignie!$D$2 -> 0.6724968578 | AA118: =X118/Dźwignie!$D$3 -> 0.5447224548 | AB118: 2.115246847 | AC118: 1 | AD118: 2.115246847
A119: 107 | B119: 0.2208772302 | C119: =NORMINV(B119,Dźwignie!$L$8,Dźwignie!$L$9) -> 161538.3043 | D119: =Dźwignie!$L$7*C119 -> 242307.4564 | F119: =C119*Dźwignie!$G$5 -> 161538.3043 | G119: 80769.15213 | H119: =Dźwignie!$G$6 -> 50000 | I119: 30769.15213 | J119: =I119-Dźwignie!$D$6 -> 30769.15213 | K119: =IF(J119>0,J119*(1-Dźwignie!$D$9),J119) -> 24923.01322 | L119: =K119/Dźwignie!$D$5 -> 1.246150661 | M119: =I119/Dźwignie!$D$2 -> 0.1538457606 | N119: =K119/Dźwignie!$D$3 -> 0.1246150661 | O119: 2.625004153 | P119: 1 | Q119: 2.625004153 | S119: =C119*Dźwignie!$G$8 -> 80769.15213 | T119: 161538.3043 | U119: =Dźwignie!$G$9 -> 150000 | V119: 11538.30425 | W119: =V119-Dźwignie!$D$6 -> 11538.30425 | X119: =IF(W119>0,W119*(1-Dźwignie!$D$9),W119) -> 9346.026446 | Y119: =X119/Dźwignie!$D$5 -> 0.4673013223 | Z119: =V119/Dźwignie!$D$2 -> 0.05769152127 | AA119: =X119/Dźwignie!$D$3 -> 0.04673013223 | AB119: 14.00017721 | AC119: 1 | AD119: 14.00017721
A120: 108 | B120: 0.901863575 | C120: =NORMINV(B120,Dźwignie!$L$8,Dźwignie!$L$9) -> 264612.1723 | D120: =Dźwignie!$L$7*C120 -> 396918.2585 | F120: =C120*Dźwignie!$G$5 -> 264612.1723 | G120: 132306.0862 | H120: =Dźwignie!$G$6 -> 50000 | I120: 82306.08617 | J120: =I120-Dźwignie!$D$6 -> 82306.08617 | K120: =IF(J120>0,J120*(1-Dźwignie!$D$9),J120) -> 66667.9298 | L120: =K120/Dźwignie!$D$5 -> 3.33339649 | M120: =I120/Dźwignie!$D$2 -> 0.4115304308 | N120: =K120/Dźwignie!$D$3 -> 0.333339649 | O120: 1.60748849 | P120: 1 | Q120: 1.60748849 | S120: =C120*Dźwignie!$G$8 -> 132306.0862 | T120: 264612.1723 | U120: =Dźwignie!$G$9 -> 150000 | V120: 114612.1723 | W120: =V120-Dźwignie!$D$6 -> 114612.1723 | X120: =IF(W120>0,W120*(1-Dźwignie!$D$9),W120) -> 92835.85959 | Y120: =X120/Dźwignie!$D$5 -> 4.64179298 | Z120: =V120/Dźwignie!$D$2 -> 0.5730608617 | AA120: =X120/Dźwignie!$D$3 -> 0.464179298 | AB120: 2.308761512 | AC120: 1 | AD120: 2.308761512
A121: 109 | B121: 0.1059138179 | C121: =NORMINV(B121,Dźwignie!$L$8,Dźwignie!$L$9) -> 137572.2166 | D121: =Dźwignie!$L$7*C121 -> 206358.3249 | F121: =C121*Dźwignie!$G$5 -> 137572.2166 | G121: 68786.10831 | H121: =Dźwignie!$G$6 -> 50000 | I121: 18786.10831 | J121: =I121-Dźwignie!$D$6 -> 18786.10831 | K121: =IF(J121>0,J121*(1-Dźwignie!$D$9),J121) -> 15216.74773 | L121: =K121/Dźwignie!$D$5 -> 0.7608373867 | M121: =I121/Dźwignie!$D$2 -> 0.09393054157 | N121: =K121/Dźwignie!$D$3 -> 0.07608373867 | O121: 3.661541133 | P121: 1 | Q121: 3.661541133 | S121: =C121*Dźwignie!$G$8 -> 68786.10831 | T121: 137572.2166 | U121: =Dźwignie!$G$9 -> 150000 | V121: -12427.78337 | W121: =V121-Dźwignie!$D$6 -> -12427.78337 | X121: =IF(W121>0,W121*(1-Dźwignie!$D$9),W121) -> -12427.78337 | Y121: =X121/Dźwignie!$D$5 -> -0.6213891686 | Z121: =V121/Dźwignie!$D$2 -> -0.06213891686 | AA121: =X121/Dźwignie!$D$3 -> -0.06213891686 | AB121: -11.06973082 | AC121: 1 | AD121: -11.06973082
A122: 110 | B122: 0.6902352571 | C122: =NORMINV(B122,Dźwignie!$L$8,Dźwignie!$L$9) -> 224825.8649 | D122: =Dźwignie!$L$7*C122 -> 337238.7974 | F122: =C122*Dźwignie!$G$5 -> 224825.8649 | G122: 112412.9325 | H122: =Dźwignie!$G$6 -> 50000 | I122: 62412.93246 | J122: =I122-Dźwignie!$D$6 -> 62412.93246 | K122: =IF(J122>0,J122*(1-Dźwignie!$D$9),J122) -> 50554.4753 | L122: =K122/Dźwignie!$D$5 -> 2.527723765 | M122: =I122/Dźwignie!$D$2 -> 0.3120646623 | N122: =K122/Dźwignie!$D$3 -> 0.2527723765 | O122: 1.801116019 | P122: 1 | Q122: 1.801116019 | S122: =C122*Dźwignie!$G$8 -> 112412.9325 | T122: 224825.8649 | U122: =Dźwignie!$G$9 -> 150000 | V122: 74825.86493 | W122: =V122-Dźwignie!$D$6 -> 74825.86493 | X122: =IF(W122>0,W122*(1-Dźwignie!$D$9),W122) -> 60608.95059 | Y122: =X122/Dźwignie!$D$5 -> 3.03044753 | Z122: =V122/Dźwignie!$D$2 -> 0.3741293246 | AA122: =X122/Dźwignie!$D$3 -> 0.303044753 | AB122: 3.004654409 | AC122: 1 | AD122: 3.004654409
A123: 111 | B123: 0.5353544354 | C123: =NORMINV(B123,Dźwignie!$L$8,Dźwignie!$L$9) -> 204436.8373 | D123: =Dźwignie!$L$7*C123 -> 306655.2559 | F123: =C123*Dźwignie!$G$5 -> 204436.8373 | G123: 102218.4186 | H123: =Dźwignie!$G$6 -> 50000 | I123: 52218.41863 | J123: =I123-Dźwignie!$D$6 -> 52218.41863 | K123: =IF(J123>0,J123*(1-Dźwignie!$D$9),J123) -> 42296.91909 | L123: =K123/Dźwignie!$D$5 -> 2.114845955 | M123: =I123/Dźwignie!$D$2 -> 0.2610920932 | N123: =K123/Dźwignie!$D$3 -> 0.2114845955 | O123: 1.957516549 | P123: 1 | Q123: 1.957516549 | S123: =C123*Dźwignie!$G$8 -> 102218.4186 | T123: 204436.8373 | U123: =Dźwignie!$G$9 -> 150000 | V123: 54436.83727 | W123: =V123-Dźwignie!$D$6 -> 54436.83727 | X123: =IF(W123>0,W123*(1-Dźwignie!$D$9),W123) -> 44093.83819 | Y123: =X123/Dźwignie!$D$5 -> 2.204691909 | Z123: =V123/Dźwignie!$D$2 -> 0.2721841863 | AA123: =X123/Dźwignie!$D$3 -> 0.2204691909 | AB123: 3.755487047 | AC123: 1 | AD123: 3.755487047
A124: 112 | B124: 0.6432464123 | C124: =NORMINV(B124,Dźwignie!$L$8,Dźwignie!$L$9) -> 218357.4972 | D124: =Dźwignie!$L$7*C124 -> 327536.2457 | F124: =C124*Dźwignie!$G$5 -> 218357.4972 | G124: 109178.7486 | H124: =Dźwignie!$G$6 -> 50000 | I124: 59178.74858 | J124: =I124-Dźwignie!$D$6 -> 59178.74858 | K124: =IF(J124>0,J124*(1-Dźwignie!$D$9),J124) -> 47934.78635 | L124: =K124/Dźwignie!$D$5 -> 2.396739317 | M124: =I124/Dźwignie!$D$2 -> 0.2958937429 | N124: =K124/Dźwignie!$D$3 -> 0.2396739317 | O124: 1.844897893 | P124: 1 | Q124: 1.844897893 | S124: =C124*Dźwignie!$G$8 -> 109178.7486 | T124: 218357.4972 | U124: =Dźwignie!$G$9 -> 150000 | V124: 68357.49715 | W124: =V124-Dźwignie!$D$6 -> 68357.49715 | X124: =IF(W124>0,W124*(1-Dźwignie!$D$9),W124) -> 55369.57269 | Y124: =X124/Dźwignie!$D$5 -> 2.768478635 | Z124: =V124/Dźwignie!$D$2 -> 0.3417874858 | AA124: =X124/Dźwignie!$D$3 -> 0.2768478635 | AB124: 3.194345993 | AC124: 1 | AD124: 3.194345993
A125: 113 | B125: 0.07732194662 | C125: =NORMINV(B125,Dźwignie!$L$8,Dźwignie!$L$9) -> 128834.0831 | D125: =Dźwignie!$L$7*C125 -> 193251.1246 | F125: =C125*Dźwignie!$G$5 -> 128834.0831 | G125: 64417.04154 | H125: =Dźwignie!$G$6 -> 50000 | I125: 14417.04154 | J125: =I125-Dźwignie!$D$6 -> 14417.04154 | K125: =IF(J125>0,J125*(1-Dźwignie!$D$9),J125) -> 11677.80365 | L125: =K125/Dźwignie!$D$5 -> 0.5838901824 | M125: =I125/Dźwignie!$D$2 -> 0.07208520771 | N125: =K125/Dźwignie!$D$3 -> 0.05838901824 | O125: 4.468117911 | P125: 1 | Q125: 4.468117911 | S125: =C125*Dźwignie!$G$8 -> 64417.04154 | T125: 128834.0831 | U125: =Dźwignie!$G$9 -> 150000 | V125: -21165.91692 | W125: =V125-Dźwignie!$D$6 -> -21165.91692 | X125: =IF(W125>0,W125*(1-Dźwignie!$D$9),W125) -> -21165.91692 | Y125: =X125/Dźwignie!$D$5 -> -1.058295846 | Z125: =V125/Dźwignie!$D$2 -> -0.1058295846 | AA125: =X125/Dźwignie!$D$3 -> -0.1058295846 | AB125: -6.086865199 | AC125: 1 | AD125: -6.086865199
A126: 114 | B126: 0.4393409491 | C126: =NORMINV(B126,Dźwignie!$L$8,Dźwignie!$L$9) -> 192367.9822 | D126: =Dźwignie!$L$7*C126 -> 288551.9733 | F126: =C126*Dźwignie!$G$5 -> 192367.9822 | G126: 96183.99109 | H126: =Dźwignie!$G$6 -> 50000 | I126: 46183.99109 | J126: =I126-Dźwignie!$D$6 -> 46183.99109 | K126: =IF(J126>0,J126*(1-Dźwignie!$D$9),J126) -> 37409.03278 | L126: =K126/Dźwignie!$D$5 -> 1.870451639 | M126: =I126/Dźwignie!$D$2 -> 0.2309199555 | N126: =K126/Dźwignie!$D$3 -> 0.1870451639 | O126: 2.082626227 | P126: 1 | Q126: 2.082626227 | S126: =C126*Dźwignie!$G$8 -> 96183.99109 | T126: 192367.9822 | U126: =Dźwignie!$G$9 -> 150000 | V126: 42367.98218 | W126: =V126-Dźwignie!$D$6 -> 42367.98218 | X126: =IF(W126>0,W126*(1-Dźwignie!$D$9),W126) -> 34318.06557 | Y126: =X126/Dźwignie!$D$5 -> 1.715903278 | Z126: =V126/Dźwignie!$D$2 -> 0.2118399109 | AA126: =X126/Dźwignie!$D$3 -> 0.1715903278 | AB126: 4.540409344 | AC126: 1 | AD126: 4.540409344
A127: 115 | B127: 0.5480471253 | C127: =NORMINV(B127,Dźwignie!$L$8,Dźwignie!$L$9) -> 206036.4461 | D127: =Dźwignie!$L$7*C127 -> 309054.6692 | F127: =C127*Dźwignie!$G$5 -> 206036.4461 | G127: 103018.2231 | H127: =Dźwignie!$G$6 -> 50000 | I127: 53018.22307 | J127: =I127-Dźwignie!$D$6 -> 53018.22307 | K127: =IF(J127>0,J127*(1-Dźwignie!$D$9),J127) -> 42944.76069 | L127: =K127/Dźwignie!$D$5 -> 2.147238035 | M127: =I127/Dźwignie!$D$2 -> 0.2650911154 | N127: =K127/Dźwignie!$D$3 -> 0.2147238035 | O127: 1.943071968 | P127: 1 | Q127: 1.943071968 | S127: =C127*Dźwignie!$G$8 -> 103018.2231 | T127: 206036.4461 | U127: =Dźwignie!$G$9 -> 150000 | V127: 56036.44615 | W127: =V127-Dźwignie!$D$6 -> 56036.44615 | X127: =IF(W127>0,W127*(1-Dźwignie!$D$9),W127) -> 45389.52138 | Y127: =X127/Dźwignie!$D$5 -> 2.269476069 | Z127: =V127/Dźwignie!$D$2 -> 0.2801822307 | AA127: =X127/Dźwignie!$D$3 -> 0.2269476069 | AB127: 3.676829284 | AC127: 1 | AD127: 3.676829284
A128: 116 | B128: 0.07513904572 | C128: =NORMINV(B128,Dźwignie!$L$8,Dźwignie!$L$9) -> 128072.5053 | D128: =Dźwignie!$L$7*C128 -> 192108.7579 | F128: =C128*Dźwignie!$G$5 -> 128072.5053 | G128: 64036.25265 | H128: =Dźwignie!$G$6 -> 50000 | I128: 14036.25265 | J128: =I128-Dźwignie!$D$6 -> 14036.25265 | K128: =IF(J128>0,J128*(1-Dźwignie!$D$9),J128) -> 11369.36464 | L128: =K128/Dźwignie!$D$5 -> 0.5684682322 | M128: =I128/Dźwignie!$D$2 -> 0.07018126324 | N128: =K128/Dźwignie!$D$3 -> 0.05684682322 | O128: 4.562204333 | P128: 1 | Q128: 4.562204333 | S128: =C128*Dźwignie!$G$8 -> 64036.25265 | T128: 128072.5053 | U128: =Dźwignie!$G$9 -> 150000 | V128: -21927.4947 | W128: =V128-Dźwignie!$D$6 -> -21927.4947 | X128: =IF(W128>0,W128*(1-Dźwignie!$D$9),W128) -> -21927.4947 | Y128: =X128/Dźwignie!$D$5 -> -1.096374735 | Z128: =V128/Dźwignie!$D$2 -> -0.1096374735 | AA128: =X128/Dźwignie!$D$3 -> -0.1096374735 | AB128: -5.840726769 | AC128: 1 | AD128: -5.840726769
A129: 117 | B129: 0.6217319369 | C129: =NORMINV(B129,Dźwignie!$L$8,Dźwignie!$L$9) -> 215501.6326 | D129: =Dźwignie!$L$7*C129 -> 323252.4489 | F129: =C129*Dźwignie!$G$5 -> 215501.6326 | G129: 107750.8163 | H129: =Dźwignie!$G$6 -> 50000 | I129: 57750.8163 | J129: =I129-Dźwignie!$D$6 -> 57750.8163 | K129: =IF(J129>0,J129*(1-Dźwignie!$D$9),J129) -> 46778.1612 | L129: =K129/Dźwignie!$D$5 -> 2.33890806 | M129: =I129/Dźwignie!$D$2 -> 0.2887540815 | N129: =K129/Dźwignie!$D$3 -> 0.233890806 | O129: 1.865788628 | P129: 1 | Q129: 1.865788628 | S129: =C129*Dźwignie!$G$8 -> 107750.8163 | T129: 215501.6326 | U129: =Dźwignie!$G$9 -> 150000 | V129: 65501.6326 | W129: =V129-Dźwignie!$D$6 -> 65501.6326 | X129: =IF(W129>0,W129*(1-Dźwignie!$D$9),W129) -> 53056.32241 | Y129: =X129/Dźwignie!$D$5 -> 2.65281612 | Z129: =V129/Dźwignie!$D$2 -> 0.327508163 | AA129: =X129/Dźwignie!$D$3 -> 0.265281612 | AB129: 3.290019257 | AC129: 1 | AD129: 3.290019257
A130: 118 | B130: 0.5358473063 | C130: =NORMINV(B130,Dźwignie!$L$8,Dźwignie!$L$9) -> 204498.8566 | D130: =Dźwignie!$L$7*C130 -> 306748.2849 | F130: =C130*Dźwignie!$G$5 -> 204498.8566 | G130: 102249.4283 | H130: =Dźwignie!$G$6 -> 50000 | I130: 52249.42829 | J130: =I130-Dźwignie!$D$6 -> 52249.42829 | K130: =IF(J130>0,J130*(1-Dźwignie!$D$9),J130) -> 42322.03691 | L130: =K130/Dźwignie!$D$5 -> 2.116101846 | M130: =I130/Dźwignie!$D$2 -> 0.2612471414 | N130: =K130/Dźwignie!$D$3 -> 0.2116101846 | O130: 1.95694827 | P130: 1 | Q130: 1.95694827 | S130: =C130*Dźwignie!$G$8 -> 102249.4283 | T130: 204498.8566 | U130: =Dźwignie!$G$9 -> 150000 | V130: 54498.85658 | W130: =V130-Dźwignie!$D$6 -> 54498.85658 | X130: =IF(W130>0,W130*(1-Dźwignie!$D$9),W130) -> 44144.07383 | Y130: =X130/Dźwignie!$D$5 -> 2.207203691 | Z130: =V130/Dźwignie!$D$2 -> 0.2724942829 | AA130: =X130/Dźwignie!$D$3 -> 0.2207203691 | AB130: 3.752351323 | AC130: 1 | AD130: 3.752351323
A131: 119 | B131: 0.3193190694 | C131: =NORMINV(B131,Dźwignie!$L$8,Dźwignie!$L$9) -> 176519.8121 | D131: =Dźwignie!$L$7*C131 -> 264779.7181 | F131: =C131*Dźwignie!$G$5 -> 176519.8121 | G131: 88259.90603 | H131: =Dźwignie!$G$6 -> 50000 | I131: 38259.90603 | J131: =I131-Dźwignie!$D$6 -> 38259.90603 | K131: =IF(J131>0,J131*(1-Dźwignie!$D$9),J131) -> 30990.52389 | L131: =K131/Dźwignie!$D$5 -> 1.549526194 | M131: =I131/Dźwignie!$D$2 -> 0.1912995302 | N131: =K131/Dźwignie!$D$3 -> 0.1549526194 | O131: 2.306851093 | P131: 1 | Q131: 2.306851093 | S131: =C131*Dźwignie!$G$8 -> 88259.90603 | T131: 176519.8121 | U131: =Dźwignie!$G$9 -> 150000 | V131: 26519.81206 | W131: =V131-Dźwignie!$D$6 -> 26519.81206 | X131: =IF(W131>0,W131*(1-Dźwignie!$D$9),W131) -> 21481.04777 | Y131: =X131/Dźwignie!$D$5 -> 1.074052389 | Z131: =V131/Dźwignie!$D$2 -> 0.1325990603 | AA131: =X131/Dźwignie!$D$3 -> 0.1074052389 | AB131: 6.65614868 | AC131: 1 | AD131: 6.65614868
A132: 120 | B132: 0.8289501667 | C132: =NORMINV(B132,Dźwignie!$L$8,Dźwignie!$L$9) -> 247501.2385 | D132: =Dźwignie!$L$7*C132 -> 371251.8578 | F132: =C132*Dźwignie!$G$5 -> 247501.2385 | G132: 123750.6193 | H132: =Dźwignie!$G$6 -> 50000 | I132: 73750.61925 | J132: =I132-Dźwignie!$D$6 -> 73750.61925 | K132: =IF(J132>0,J132*(1-Dźwignie!$D$9),J132) -> 59738.0016 | L132: =K132/Dźwignie!$D$5 -> 2.98690008 | M132: =I132/Dźwignie!$D$2 -> 0.3687530963 | N132: =K132/Dźwignie!$D$3 -> 0.298690008 | O132: 1.677960409 | P132: 1 | Q132: 1.677960409 | S132: =C132*Dźwignie!$G$8 -> 123750.6193 | T132: 247501.2385 | U132: =Dźwignie!$G$9 -> 150000 | V132: 97501.23851 | W132: =V132-Dźwignie!$D$6 -> 97501.23851 | X132: =IF(W132>0,W132*(1-Dźwignie!$D$9),W132) -> 78976.00319 | Y132: =X132/Dźwignie!$D$5 -> 3.94880016 | Z132: =V132/Dźwignie!$D$2 -> 0.4875061925 | AA132: =X132/Dźwignie!$D$3 -> 0.394880016 | AB132: 2.538441996 | AC132: 1 | AD132: 2.538441996
A133: 121 | B133: 0.4074177146 | C133: =NORMINV(B133,Dźwignie!$L$8,Dźwignie!$L$9) -> 188290.368 | D133: =Dźwignie!$L$7*C133 -> 282435.5521 | F133: =C133*Dźwignie!$G$5 -> 188290.368 | G133: 94145.18402 | H133: =Dźwignie!$G$6 -> 50000 | I133: 44145.18402 | J133: =I133-Dźwignie!$D$6 -> 44145.18402 | K133: =IF(J133>0,J133*(1-Dźwignie!$D$9),J133) -> 35757.59906 | L133: =K133/Dźwignie!$D$5 -> 1.787879953 | M133: =I133/Dźwignie!$D$2 -> 0.2207259201 | N133: =K133/Dźwignie!$D$3 -> 0.1787879953 | O133: 2.132626381 | P133: 1 | Q133: 2.132626381 | S133: =C133*Dźwignie!$G$8 -> 94145.18402 | T133: 188290.368 | U133: =Dźwignie!$G$9 -> 150000 | V133: 38290.36804 | W133: =V133-Dźwignie!$D$6 -> 38290.36804 | X133: =IF(W133>0,W133*(1-Dźwignie!$D$9),W133) -> 31015.19811 | Y133: =X133/Dźwignie!$D$5 -> 1.550759906 | Z133: =V133/Dźwignie!$D$2 -> 0.1914518402 | AA133: =X133/Dźwignie!$D$3 -> 0.1550759906 | AB133: 4.917434271 | AC133: 1 | AD133: 4.917434271
A134: 122 | B134: 0.2874325514 | C134: =NORMINV(B134,Dźwignie!$L$8,Dźwignie!$L$9) -> 171954.9555 | D134: =Dźwignie!$L$7*C134 -> 257932.4332 | F134: =C134*Dźwignie!$G$5 -> 171954.9555 | G134: 85977.47773 | H134: =Dźwignie!$G$6 -> 50000 | I134: 35977.47773 | J134: =I134-Dźwignie!$D$6 -> 35977.47773 | K134: =IF(J134>0,J134*(1-Dźwignie!$D$9),J134) -> 29141.75696 | L134: =K134/Dźwignie!$D$5 -> 1.457087848 | M134: =I134/Dźwignie!$D$2 -> 0.1798873887 | N134: =K134/Dźwignie!$D$3 -> 0.1457087848 | O134: 2.389758348 | P134: 1 | Q134: 2.389758348 | S134: =C134*Dźwignie!$G$8 -> 85977.47773 | T134: 171954.9555 | U134: =Dźwignie!$G$9 -> 150000 | V134: 21954.95546 | W134: =V134-Dźwignie!$D$6 -> 21954.95546 | X134: =IF(W134>0,W134*(1-Dźwignie!$D$9),W134) -> 17783.51392 | Y134: =X134/Dźwignie!$D$5 -> 0.8891756962 | Z134: =V134/Dźwignie!$D$2 -> 0.1097747773 | AA134: =X134/Dźwignie!$D$3 -> 0.08891756962 | AB134: 7.832170544 | AC134: 1 | AD134: 7.832170544
A135: 123 | B135: 0.9886355996 | C135: =NORMINV(B135,Dźwignie!$L$8,Dźwignie!$L$9) -> 313898.1344 | D135: =Dźwignie!$L$7*C135 -> 470847.2016 | F135: =C135*Dźwignie!$G$5 -> 313898.1344 | G135: 156949.0672 | H135: =Dźwignie!$G$6 -> 50000 | I135: 106949.0672 | J135: =I135-Dźwignie!$D$6 -> 106949.0672 | K135: =IF(J135>0,J135*(1-Dźwignie!$D$9),J135) -> 86628.74442 | L135: =K135/Dźwignie!$D$5 -> 4.331437221 | M135: =I135/Dźwignie!$D$2 -> 0.5347453359 | N135: =K135/Dźwignie!$D$3 -> 0.4331437221 | O135: 1.467512259 | P135: 1 | Q135: 1.467512259 | S135: =C135*Dźwignie!$G$8 -> 156949.0672 | T135: 313898.1344 | U135: =Dźwignie!$G$9 -> 150000 | V135: 163898.1344 | W135: =V135-Dźwignie!$D$6 -> 163898.1344 | X135: =IF(W135>0,W135*(1-Dźwignie!$D$9),W135) -> 132757.4888 | Y135: =X135/Dźwignie!$D$5 -> 6.637874442 | Z135: =V135/Dźwignie!$D$2 -> 0.8194906719 | AA135: =X135/Dźwignie!$D$3 -> 0.6637874442 | AB135: 1.915202608 | AC135: 1 | AD135: 1.915202608
A136: 124 | B136: 0.2987837791 | C136: =NORMINV(B136,Dźwignie!$L$8,Dźwignie!$L$9) -> 173604.9145 | D136: =Dźwignie!$L$7*C136 -> 260407.3718 | F136: =C136*Dźwignie!$G$5 -> 173604.9145 | G136: 86802.45727 | H136: =Dźwignie!$G$6 -> 50000 | I136: 36802.45727 | J136: =I136-Dźwignie!$D$6 -> 36802.45727 | K136: =IF(J136>0,J136*(1-Dźwignie!$D$9),J136) -> 29809.99039 | L136: =K136/Dźwignie!$D$5 -> 1.490499519 | M136: =I136/Dźwignie!$D$2 -> 0.1840122863 | N136: =K136/Dźwignie!$D$3 -> 0.1490499519 | O136: 2.358604933 | P136: 1 | Q136: 2.358604933 | S136: =C136*Dźwignie!$G$8 -> 86802.45727 | T136: 173604.9145 | U136: =Dźwignie!$G$9 -> 150000 | V136: 23604.91454 | W136: =V136-Dźwignie!$D$6 -> 23604.91454 | X136: =IF(W136>0,W136*(1-Dźwignie!$D$9),W136) -> 19119.98077 | Y136: =X136/Dźwignie!$D$5 -> 0.9559990387 | Z136: =V136/Dźwignie!$D$2 -> 0.1180245727 | AA136: =X136/Dźwignie!$D$3 -> 0.09559990387 | AB136: 7.3546089 | AC136: 1 | AD136: 7.3546089
A137: 125 | B137: 0.8145672679 | C137: =NORMINV(B137,Dźwignie!$L$8,Dźwignie!$L$9) -> 244742.6696 | D137: =Dźwignie!$L$7*C137 -> 367114.0044 | F137: =C137*Dźwignie!$G$5 -> 244742.6696 | G137: 122371.3348 | H137: =Dźwignie!$G$6 -> 50000 | I137: 72371.33481 | J137: =I137-Dźwignie!$D$6 -> 72371.33481 | K137: =IF(J137>0,J137*(1-Dźwignie!$D$9),J137) -> 58620.7812 | L137: =K137/Dźwignie!$D$5 -> 2.93103906 | M137: =I137/Dźwignie!$D$2 -> 0.3618566741 | N137: =K137/Dźwignie!$D$3 -> 0.293103906 | O137: 1.690881274 | P137: 1 | Q137: 1.690881274 | S137: =C137*Dźwignie!$G$8 -> 122371.3348 | T137: 244742.6696 | U137: =Dźwignie!$G$9 -> 150000 | V137: 94742.66962 | W137: =V137-Dźwignie!$D$6 -> 94742.66962 | X137: =IF(W137>0,W137*(1-Dźwignie!$D$9),W137) -> 76741.5624 | Y137: =X137/Dźwignie!$D$5 -> 3.83707812 | Z137: =V137/Dźwignie!$D$2 -> 0.4737133481 | AA137: =X137/Dźwignie!$D$3 -> 0.383707812 | AB137: 2.583235944 | AC137: 1 | AD137: 2.583235944
A138: 126 | B138: 0.8660327196 | C138: =NORMINV(B138,Dźwignie!$L$8,Dźwignie!$L$9) -> 255391.5788 | D138: =Dźwignie!$L$7*C138 -> 383087.3682 | F138: =C138*Dźwignie!$G$5 -> 255391.5788 | G138: 127695.7894 | H138: =Dźwignie!$G$6 -> 50000 | I138: 77695.78938 | J138: =I138-Dźwignie!$D$6 -> 77695.78938 | K138: =IF(J138>0,J138*(1-Dźwignie!$D$9),J138) -> 62933.5894 | L138: =K138/Dźwignie!$D$5 -> 3.14667947 | M138: =I138/Dźwignie!$D$2 -> 0.3884789469 | N138: =K138/Dźwignie!$D$3 -> 0.314667947 | O138: 1.643535517 | P138: 1 | Q138: 1.643535517 | S138: =C138*Dźwignie!$G$8 -> 127695.7894 | T138: 255391.5788 | U138: =Dźwignie!$G$9 -> 150000 | V138: 105391.5788 | W138: =V138-Dźwignie!$D$6 -> 105391.5788 | X138: =IF(W138>0,W138*(1-Dźwignie!$D$9),W138) -> 85367.1788 | Y138: =X138/Dźwignie!$D$5 -> 4.26835894 | Z138: =V138/Dźwignie!$D$2 -> 0.5269578938 | AA138: =X138/Dźwignie!$D$3 -> 0.426835894 | AB138: 2.423263621 | AC138: 1 | AD138: 2.423263621
A139: 127 | B139: 0.1026886106 | C139: =NORMINV(B139,Dźwignie!$L$8,Dźwignie!$L$9) -> 136681.0214 | D139: =Dźwignie!$L$7*C139 -> 205021.5321 | F139: =C139*Dźwignie!$G$5 -> 136681.0214 | G139: 68340.51071 | H139: =Dźwignie!$G$6 -> 50000 | I139: 18340.51071 | J139: =I139-Dźwignie!$D$6 -> 18340.51071 | K139: =IF(J139>0,J139*(1-Dźwignie!$D$9),J139) -> 14855.81368 | L139: =K139/Dźwignie!$D$5 -> 0.7427906838 | M139: =I139/Dźwignie!$D$2 -> 0.09170255356 | N139: =K139/Dźwignie!$D$3 -> 0.07427906838 | O139: 3.726205436 | P139: 1 | Q139: 3.726205436 | S139: =C139*Dźwignie!$G$8 -> 68340.51071 | T139: 136681.0214 | U139: =Dźwignie!$G$9 -> 150000 | V139: -13318.97858 | W139: =V139-Dźwignie!$D$6 -> -13318.97858 | X139: =IF(W139>0,W139*(1-Dźwignie!$D$9),W139) -> -13318.97858 | Y139: =X139/Dźwignie!$D$5 -> -0.6659489288 | Z139: =V139/Dźwignie!$D$2 -> -0.06659489288 | AA139: =X139/Dźwignie!$D$3 -> -0.06659489288 | AB139: -10.26212488 | AC139: 1 | AD139: -10.26212488
A140: 128 | B140: 0.6570641994 | C140: =NORMINV(B140,Dźwignie!$L$8,Dźwignie!$L$9) -> 220223.1962 | D140: =Dźwignie!$L$7*C140 -> 330334.7943 | F140: =C140*Dźwignie!$G$5 -> 220223.1962 | G140: 110111.5981 | H140: =Dźwignie!$G$6 -> 50000 | I140: 60111.59811 | J140: =I140-Dźwignie!$D$6 -> 60111.59811 | K140: =IF(J140>0,J140*(1-Dźwignie!$D$9),J140) -> 48690.39447 | L140: =K140/Dźwignie!$D$5 -> 2.434519724 | M140: =I140/Dźwignie!$D$2 -> 0.3005579906 | N140: =K140/Dźwignie!$D$3 -> 0.2434519724 | O140: 1.831786237 | P140: 1 | Q140: 1.831786237 | S140: =C140*Dźwignie!$G$8 -> 110111.5981 | T140: 220223.1962 | U140: =Dźwignie!$G$9 -> 150000 | V140: 70223.19622 | W140: =V140-Dźwignie!$D$6 -> 70223.19622 | X140: =IF(W140>0,W140*(1-Dźwignie!$D$9),W140) -> 56880.78894 | Y140: =X140/Dźwignie!$D$5 -> 2.844039447 | Z140: =V140/Dźwignie!$D$2 -> 0.3511159811 | AA140: =X140/Dźwignie!$D$3 -> 0.2844039447 | AB140: 3.136046322 | AC140: 1 | AD140: 3.136046322
A141: 129 | B141: 0.8884076476 | C141: =NORMINV(B141,Dźwignie!$L$8,Dźwignie!$L$9) -> 260905.167 | D141: =Dźwignie!$L$7*C141 -> 391357.7505 | F141: =C141*Dźwignie!$G$5 -> 260905.167 | G141: =$D141-F141 -> 130452.5835 | H141: =Dźwignie!$G$6 -> 50000 | I141: =G141-H141 -> 80452.5835 | J141: =I141-Dźwignie!$D$6 -> 80452.5835 | K141: =IF(J141>0,J141*(1-Dźwignie!$D$9),J141) -> 65166.59264 | L141: =K141/Dźwignie!$D$5 -> 3.258329632 | M141: =I141/Dźwignie!$D$2 -> 0.4022629175 | N141: =K141/Dźwignie!$D$3 -> 0.3258329632 | O141: =IF(I141<>0,G141/I141,"N ") -> 1.621484082 | P141: =IF(J141<>0,I141/J141,"N ") -> 1 | Q141: =IF(ISTEXT(O141),O141,IF(ISTEXT(P141),P141,O141*P141)) -> 1.621484082 | S141: =C141*Dźwignie!$G$8 -> 130452.5835 | T141: =$D141-S141 -> 260905.167 | U141: =Dźwignie!$G$9 -> 150000 | V141: =T141-U141 -> 110905.167 | W141: =V141-Dźwignie!$D$6 -> 110905.167 | X141: =IF(W141>0,W141*(1-Dźwignie!$D$9),W141) -> 89833.18527 | Y141: =X141/Dźwignie!$D$5 -> 4.491659264 | Z141: =V141/Dźwignie!$D$2 -> 0.554525835 | AA141: =X141/Dźwignie!$D$3 -> 0.4491659264 | AB141: =IF(V141<>0,T141/V141,"N ") -> 2.352506867 | AC141: =IF(W141<>0,V141/W141,"N ") -> 1 | AD141: =IF(ISTEXT(AB141),AB141,IF(ISTEXT(AC141),AC141,AB141*AC141)) -> 2.352506867
A142: 130 | B142: 0.4484666586 | C142: =NORMINV(B142,Dźwignie!$L$8,Dźwignie!$L$9) -> 193523.1859 | D142: =Dźwignie!$L$7*C142 -> 290284.7788 | F142: =C142*Dźwignie!$G$5 -> 193523.1859 | G142: 96761.59293 | H142: =Dźwignie!$G$6 -> 50000 | I142: 46761.59293 | J142: =I142-Dźwignie!$D$6 -> 46761.59293 | K142: =IF(J142>0,J142*(1-Dźwignie!$D$9),J142) -> 37876.89027 | L142: =K142/Dźwignie!$D$5 -> 1.893844514 | M142: =I142/Dźwignie!$D$2 -> 0.2338079646 | N142: =K142/Dźwignie!$D$3 -> 0.1893844514 | O142: 2.069253566 | P142: 1 | Q142: 2.069253566 | S142: =C142*Dźwignie!$G$8 -> 96761.59293 | T142: 193523.1859 | U142: =Dźwignie!$G$9 -> 150000 | V142: 43523.18585 | W142: =V142-Dźwignie!$D$6 -> 43523.18585 | X142: =IF(W142>0,W142*(1-Dźwignie!$D$9),W142) -> 35253.78054 | Y142: =X142/Dźwignie!$D$5 -> 1.762689027 | Z142: =V142/Dźwignie!$D$2 -> 0.2176159293 | AA142: =X142/Dźwignie!$D$3 -> 0.1762689027 | AB142: 4.446438882 | AC142: 1 | AD142: 4.446438882
A143: 131 | B143: 0.1935215592 | C143: =NORMINV(B143,Dźwignie!$L$8,Dźwignie!$L$9) -> 156750.3944 | D143: =Dźwignie!$L$7*C143 -> 235125.5916 | F143: =C143*Dźwignie!$G$5 -> 156750.3944 | G143: 78375.19721 | H143: =Dźwignie!$G$6 -> 50000 | I143: 28375.19721 | J143: =I143-Dźwignie!$D$6 -> 28375.19721 | K143: =IF(J143>0,J143*(1-Dźwignie!$D$9),J143) -> 22983.90974 | L143: =K143/Dźwignie!$D$5 -> 1.149195487 | M143: =I143/Dźwignie!$D$2 -> 0.1418759861 | N143: =K143/Dźwignie!$D$3 -> 0.1149195487 | O143: 2.762102291 | P143: 1 | Q143: 2.762102291 | S143: =C143*Dźwignie!$G$8 -> 78375.19721 | T143: 156750.3944 | U143: =Dźwignie!$G$9 -> 150000 | V143: 6750.394421 | W143: =V143-Dźwignie!$D$6 -> 6750.394421 | X143: =IF(W143>0,W143*(1-Dźwignie!$D$9),W143) -> 5467.819481 | Y143: =X143/Dźwignie!$D$5 -> 0.2733909741 | Z143: =V143/Dźwignie!$D$2 -> 0.03375197211 | AA143: =X143/Dźwignie!$D$3 -> 0.02733909741 | AB143: 23.22092379 | AC143: 1 | AD143: 23.22092379
A144: 132 | B144: 0.1201610565 | C144: =NORMINV(B144,Dźwignie!$L$8,Dźwignie!$L$9) -> 141290.8974 | D144: =Dźwignie!$L$7*C144 -> 211936.346 | F144: =C144*Dźwignie!$G$5 -> 141290.8974 | G144: 70645.44868 | H144: =Dźwignie!$G$6 -> 50000 | I144: 20645.44868 | J144: =I144-Dźwignie!$D$6 -> 20645.44868 | K144: =IF(J144>0,J144*(1-Dźwignie!$D$9),J144) -> 16722.81343 | L144: =K144/Dźwignie!$D$5 -> 0.8361406714 | M144: =I144/Dźwignie!$D$2 -> 0.1032272434 | N144: =K144/Dźwignie!$D$3 -> 0.08361406714 | O144: 3.421841287 | P144: 1 | Q144: 3.421841287 | S144: =C144*Dźwignie!$G$8 -> 70645.44868 | T144: 141290.8974 | U144: =Dźwignie!$G$9 -> 150000 | V144: -8709.102647 | W144: =V144-Dźwignie!$D$6 -> -8709.102647 | X144: =IF(W144>0,W144*(1-Dźwignie!$D$9),W144) -> -8709.102647 | Y144: =X144/Dźwignie!$D$5 -> -0.4354551324 | Z144: =V144/Dźwignie!$D$2 -> -0.04354551324 | AA144: =X144/Dźwignie!$D$3 -> -0.04354551324 | AB144: -16.22335883 | AC144: 1 | AD144: -16.22335883
A145: 133 | B145: 0.542329967 | C145: =NORMINV(B145,Dźwignie!$L$8,Dźwignie!$L$9) -> 205315.2688 | D145: =Dźwignie!$L$7*C145 -> 307972.9032 | F145: =C145*Dźwignie!$G$5 -> 205315.2688 | G145: 102657.6344 | H145: =Dźwignie!$G$6 -> 50000 | I145: 52657.63441 | J145: =I145-Dźwignie!$D$6 -> 52657.63441 | K145: =IF(J145>0,J145*(1-Dźwignie!$D$9),J145) -> 42652.68387 | L145: =K145/Dźwignie!$D$5 -> 2.132634194 | M145: =I145/Dźwignie!$D$2 -> 0.2632881721 | N145: =K145/Dźwignie!$D$3 -> 0.2132634194 | O145: 1.949529932 | P145: 1 | Q145: 1.949529932 | S145: =C145*Dźwignie!$G$8 -> 102657.6344 | T145: 205315.2688 | U145: =Dźwignie!$G$9 -> 150000 | V145: 55315.26882 | W145: =V145-Dźwignie!$D$6 -> 55315.26882 | X145: =IF(W145>0,W145*(1-Dźwignie!$D$9),W145) -> 44805.36775 | Y145: =X145/Dźwignie!$D$5 -> 2.240268387 | Z145: =V145/Dźwignie!$D$2 -> 0.2765763441 | AA145: =X145/Dźwignie!$D$3 -> 0.2240268387 | AB145: 3.711728664 | AC145: 1 | AD145: 3.711728664
A146: 134 | B146: 0.6070610285 | C146: =NORMINV(B146,Dźwignie!$L$8,Dźwignie!$L$9) -> 213583.3587 | D146: =Dźwignie!$L$7*C146 -> 320375.0381 | F146: =C146*Dźwignie!$G$5 -> 213583.3587 | G146: 106791.6794 | H146: =Dźwignie!$G$6 -> 50000 | I146: 56791.67937 | J146: =I146-Dźwignie!$D$6 -> 56791.67937 | K146: =IF(J146>0,J146*(1-Dźwignie!$D$9),J146) -> 46001.26029 | L146: =K146/Dźwignie!$D$5 -> 2.300063014 | M146: =I146/Dźwignie!$D$2 -> 0.2839583968 | N146: =K146/Dźwignie!$D$3 -> 0.2300063014 | O146: 1.880410661 | P146: 1 | Q146: 1.880410661 | S146: =C146*Dźwignie!$G$8 -> 106791.6794 | T146: 213583.3587 | U146: =Dźwignie!$G$9 -> 150000 | V146: 63583.35874 | W146: =V146-Dźwignie!$D$6 -> 63583.35874 | X146: =IF(W146>0,W146*(1-Dźwignie!$D$9),W146) -> 51502.52058 | Y146: =X146/Dźwignie!$D$5 -> 2.575126029 | Z146: =V146/Dźwignie!$D$2 -> 0.3179167937 | AA146: =X146/Dźwignie!$D$3 -> 0.2575126029 | AB146: 3.359107838 | AC146: 1 | AD146: 3.359107838
A147: 135 | B147: 0.6066544652 | C147: =NORMINV(B147,Dźwignie!$L$8,Dźwignie!$L$9) -> 213530.4957 | D147: =Dźwignie!$L$7*C147 -> 320295.7436 | F147: =C147*Dźwignie!$G$5 -> 213530.4957 | G147: 106765.2479 | H147: =Dźwignie!$G$6 -> 50000 | I147: 56765.24786 | J147: =I147-Dźwignie!$D$6 -> 56765.24786 | K147: =IF(J147>0,J147*(1-Dźwignie!$D$9),J147) -> 45979.85077 | L147: =K147/Dźwignie!$D$5 -> 2.298992538 | M147: =I147/Dźwignie!$D$2 -> 0.2838262393 | N147: =K147/Dźwignie!$D$3 -> 0.2298992538 | O147: 1.880820606 | P147: 1 | Q147: 1.880820606 | S147: =C147*Dźwignie!$G$8 -> 106765.2479 | T147: 213530.4957 | U147: =Dźwignie!$G$9 -> 150000 | V147: 63530.49572 | W147: =V147-Dźwignie!$D$6 -> 63530.49572 | X147: =IF(W147>0,W147*(1-Dźwignie!$D$9),W147) -> 51459.70154 | Y147: =X147/Dźwignie!$D$5 -> 2.572985077 | Z147: =V147/Dźwignie!$D$2 -> 0.3176524786 | AA147: =X147/Dźwignie!$D$3 -> 0.2572985077 | AB147: 3.361070826 | AC147: 1 | AD147: 3.361070826
A148: 136 | B148: 0.4640142918 | C148: =NORMINV(B148,Dźwignie!$L$8,Dźwignie!$L$9) -> 195483.7267 | D148: =Dźwignie!$L$7*C148 -> 293225.59 | F148: =C148*Dźwignie!$G$5 -> 195483.7267 | G148: 97741.86334 | H148: =Dźwignie!$G$6 -> 50000 | I148: 47741.86334 | J148: =I148-Dźwignie!$D$6 -> 47741.86334 | K148: =IF(J148>0,J148*(1-Dźwignie!$D$9),J148) -> 38670.9093 | L148: =K148/Dźwignie!$D$5 -> 1.933545465 | M148: =I148/Dźwignie!$D$2 -> 0.2387093167 | N148: =K148/Dźwignie!$D$3 -> 0.1933545465 | O148: 2.04729888 | P148: 1 | Q148: 2.04729888 | S148: =C148*Dźwignie!$G$8 -> 97741.86334 | T148: 195483.7267 | U148: =Dźwignie!$G$9 -> 150000 | V148: 45483.72668 | W148: =V148-Dźwignie!$D$6 -> 45483.72668 | X148: =IF(W148>0,W148*(1-Dźwignie!$D$9),W148) -> 36841.81861 | Y148: =X148/Dźwignie!$D$5 -> 1.84209093 | Z148: =V148/Dźwignie!$D$2 -> 0.2274186334 | AA148: =X148/Dźwignie!$D$3 -> 0.184209093 | AB148: 4.297882803 | AC148: 1 | AD148: 4.297882803
A149: 137 | B149: 0.01101440191 | C149: =NORMINV(B149,Dźwignie!$L$8,Dźwignie!$L$9) -> 85506.45692 | D149: =Dźwignie!$L$7*C149 -> 128259.6854 | F149: =C149*Dźwignie!$G$5 -> 85506.45692 | G149: 42753.22846 | H149: =Dźwignie!$G$6 -> 50000 | I149: -7246.771538 | J149: =I149-Dźwignie!$D$6 -> -7246.771538 | K149: =IF(J149>0,J149*(1-Dźwignie!$D$9),J149) -> -7246.771538 | L149: =K149/Dźwignie!$D$5 -> -0.3623385769 | M149: =I149/Dźwignie!$D$2 -> -0.03623385769 | N149: =K149/Dźwignie!$D$3 -> -0.03623385769 | O149: -5.899624162 | P149: 1 | Q149: -5.899624162 | S149: =C149*Dźwignie!$G$8 -> 42753.22846 | T149: 85506.45692 | U149: =Dźwignie!$G$9 -> 150000 | V149: -64493.54308 | W149: =V149-Dźwignie!$D$6 -> -64493.54308 | X149: =IF(W149>0,W149*(1-Dźwignie!$D$9),W149) -> -64493.54308 | Y149: =X149/Dźwignie!$D$5 -> -3.224677154 | Z149: =V149/Dźwignie!$D$2 -> -0.3224677154 | AA149: =X149/Dźwignie!$D$3 -> -0.3224677154 | AB149: -1.325814226 | AC149: 1 | AD149: -1.325814226
A150: 138 | B150: 0.9502753019 | C150: =NORMINV(B150,Dźwignie!$L$8,Dźwignie!$L$9) -> 282376.4413 | D150: =Dźwignie!$L$7*C150 -> 423564.662 | F150: =C150*Dźwignie!$G$5 -> 282376.4413 | G150: 141188.2207 | H150: =Dźwignie!$G$6 -> 50000 | I150: 91188.22066 | J150: =I150-Dźwignie!$D$6 -> 91188.22066 | K150: =IF(J150>0,J150*(1-Dźwignie!$D$9),J150) -> 73862.45874 | L150: =K150/Dźwignie!$D$5 -> 3.693122937 | M150: =I150/Dźwignie!$D$2 -> 0.4559411033 | N150: =K150/Dźwignie!$D$3 -> 0.3693122937 | O150: 1.548316434 | P150: 1 | Q150: 1.548316434 | S150: =C150*Dźwignie!$G$8 -> 141188.2207 | T150: 282376.4413 | U150: =Dźwignie!$G$9 -> 150000 | V150: 132376.4413 | W150: =V150-Dźwignie!$D$6 -> 132376.4413 | X150: =IF(W150>0,W150*(1-Dźwignie!$D$9),W150) -> 107224.9175 | Y150: =X150/Dźwignie!$D$5 -> 5.361245874 | Z150: =V150/Dźwignie!$D$2 -> 0.6618822066 | AA150: =X150/Dźwignie!$D$3 -> 0.5361245874 | AB150: 2.133132138 | AC150: 1 | AD150: 2.133132138
A151: 139 | B151: 0.5792089105 | C151: =NORMINV(B151,Dźwignie!$L$8,Dźwignie!$L$9) -> 209993.5048 | D151: =Dźwignie!$L$7*C151 -> 314990.2571 | F151: =C151*Dźwignie!$G$5 -> 209993.5048 | G151: 104996.7524 | H151: =Dźwignie!$G$6 -> 50000 | I151: 54996.75238 | J151: =I151-Dźwignie!$D$6 -> 54996.75238 | K151: =IF(J151>0,J151*(1-Dźwignie!$D$9),J151) -> 44547.36943 | L151: =K151/Dźwignie!$D$5 -> 2.227368471 | M151: =I151/Dźwignie!$D$2 -> 0.2749837619 | N151: =K151/Dźwignie!$D$3 -> 0.2227368471 | O151: 1.909144592 | P151: 1 | Q151: 1.909144592 | S151: =C151*Dźwignie!$G$8 -> 104996.7524 | T151: 209993.5048 | U151: =Dźwignie!$G$9 -> 150000 | V151: 59993.50476 | W151: =V151-Dźwignie!$D$6 -> 59993.50476 | X151: =IF(W151>0,W151*(1-Dźwignie!$D$9),W151) -> 48594.73886 | Y151: =X151/Dźwignie!$D$5 -> 2.429736943 | Z151: =V151/Dźwignie!$D$2 -> 0.2999675238 | AA151: =X151/Dźwignie!$D$3 -> 0.2429736943 | AB151: 3.500270664 | AC151: 1 | AD151: 3.500270664
A152: 140 | B152: 0.7897591591 | C152: =NORMINV(B152,Dźwignie!$L$8,Dźwignie!$L$9) -> 240279.293 | D152: =Dźwignie!$L$7*C152 -> 360418.9394 | F152: =C152*Dźwignie!$G$5 -> 240279.293 | G152: 120139.6465 | H152: =Dźwignie!$G$6 -> 50000 | I152: 70139.64648 | J152: =I152-Dźwignie!$D$6 -> 70139.64648 | K152: =IF(J152>0,J152*(1-Dźwignie!$D$9),J152) -> 56813.11365 | L152: =K152/Dźwignie!$D$5 -> 2.840655682 | M152: =I152/Dźwignie!$D$2 -> 0.3506982324 | N152: =K152/Dźwignie!$D$3 -> 0.2840655682 | O152: 1.712863587 | P152: 1 | Q152: 1.712863587 | S152: =C152*Dźwignie!$G$8 -> 120139.6465 | T152: 240279.293 | U152: =Dźwignie!$G$9 -> 150000 | V152: 90279.29296 | W152: =V152-Dźwignie!$D$6 -> 90279.29296 | X152: =IF(W152>0,W152*(1-Dźwignie!$D$9),W152) -> 73126.2273 | Y152: =X152/Dźwignie!$D$5 -> 3.656311365 | Z152: =V152/Dźwignie!$D$2 -> 0.4513964648 | AA152: =X152/Dźwignie!$D$3 -> 0.3656311365 | AB152: 2.661510575 | AC152: 1 | AD152: 2.661510575
A153: 141 | B153: 0.5535551906 | C153: =NORMINV(B153,Dźwignie!$L$8,Dźwignie!$L$9) -> 206732.436 | D153: =Dźwignie!$L$7*C153 -> 310098.654 | F153: =C153*Dźwignie!$G$5 -> 206732.436 | G153: 103366.218 | H153: =Dźwignie!$G$6 -> 50000 | I153: 53366.21801 | J153: =I153-Dźwignie!$D$6 -> 53366.21801 | K153: =IF(J153>0,J153*(1-Dźwignie!$D$9),J153) -> 43226.63659 | L153: =K153/Dźwignie!$D$5 -> 2.16133183 | M153: =I153/Dźwignie!$D$2 -> 0.2668310901 | N153: =K153/Dźwignie!$D$3 -> 0.216133183 | O153: 1.936922305 | P153: 1 | Q153: 1.936922305 | S153: =C153*Dźwignie!$G$8 -> 103366.218 | T153: 206732.436 | U153: =Dźwignie!$G$9 -> 150000 | V153: 56732.43603 | W153: =V153-Dźwignie!$D$6 -> 56732.43603 | X153: =IF(W153>0,W153*(1-Dźwignie!$D$9),W153) -> 45953.27318 | Y153: =X153/Dźwignie!$D$5 -> 2.297663659 | Z153: =V153/Dźwignie!$D$2 -> 0.2836621801 | AA153: =X153/Dźwignie!$D$3 -> 0.2297663659 | AB153: 3.643990114 | AC153: 1 | AD153: 3.643990114
A154: 142 | B154: 0.01332676411 | C154: =NORMINV(B154,Dźwignie!$L$8,Dźwignie!$L$9) -> 89172.25927 | D154: =Dźwignie!$L$7*C154 -> 133758.3889 | F154: =C154*Dźwignie!$G$5 -> 89172.25927 | G154: 44586.12964 | H154: =Dźwignie!$G$6 -> 50000 | I154: -5413.870364 | J154: =I154-Dźwignie!$D$6 -> -5413.870364 | K154: =IF(J154>0,J154*(1-Dźwignie!$D$9),J154) -> -5413.870364 | L154: =K154/Dźwignie!$D$5 -> -0.2706935182 | M154: =I154/Dźwignie!$D$2 -> -0.02706935182 | N154: =K154/Dźwignie!$D$3 -> -0.02706935182 | O154: -8.235536989 | P154: 1 | Q154: -8.235536989 | S154: =C154*Dźwignie!$G$8 -> 44586.12964 | T154: 89172.25927 | U154: =Dźwignie!$G$9 -> 150000 | V154: -60827.74073 | W154: =V154-Dźwignie!$D$6 -> -60827.74073 | X154: =IF(W154>0,W154*(1-Dźwignie!$D$9),W154) -> -60827.74073 | Y154: =X154/Dźwignie!$D$5 -> -3.041387036 | Z154: =V154/Dźwignie!$D$2 -> -0.3041387036 | AA154: =X154/Dźwignie!$D$3 -> -0.3041387036 | AB154: -1.46598013 | AC154: 1 | AD154: -1.46598013
A155: 143 | B155: 0.5680330396 | C155: =NORMINV(B155,Dźwignie!$L$8,Dźwignie!$L$9) -> 208568.4314 | D155: =Dźwignie!$L$7*C155 -> 312852.6471 | F155: =C155*Dźwignie!$G$5 -> 208568.4314 | G155: 104284.2157 | H155: =Dźwignie!$G$6 -> 50000 | I155: 54284.21571 | J155: =I155-Dźwignie!$D$6 -> 54284.21571 | K155: =IF(J155>0,J155*(1-Dźwignie!$D$9),J155) -> 43970.21472 | L155: =K155/Dźwignie!$D$5 -> 2.198510736 | M155: =I155/Dźwignie!$D$2 -> 0.2714210785 | N155: =K155/Dźwignie!$D$3 -> 0.2198510736 | O155: 1.921078058 | P155: 1 | Q155: 1.921078058 | S155: =C155*Dźwignie!$G$8 -> 104284.2157 | T155: 208568.4314 | U155: =Dźwignie!$G$9 -> 150000 | V155: 58568.43141 | W155: =V155-Dźwignie!$D$6 -> 58568.43141 | X155: =IF(W155>0,W155*(1-Dźwignie!$D$9),W155) -> 47440.42945 | Y155: =X155/Dźwignie!$D$5 -> 2.372021472 | Z155: =V155/Dźwignie!$D$2 -> 0.2928421571 | AA155: =X155/Dźwignie!$D$3 -> 0.2372021472 | AB155: 3.561106664 | AC155: 1 | AD155: 3.561106664
A156: 144 | B156: 0.5393512249 | C156: =NORMINV(B156,Dźwignie!$L$8,Dźwignie!$L$9) -> 204939.9697 | D156: =Dźwignie!$L$7*C156 -> 307409.9545 | F156: =C156*Dźwignie!$G$5 -> 204939.9697 | G156: 102469.9848 | H156: =Dźwignie!$G$6 -> 50000 | I156: 52469.98483 | J156: =I156-Dźwignie!$D$6 -> 52469.98483 | K156: =IF(J156>0,J156*(1-Dźwignie!$D$9),J156) -> 42500.68771 | L156: =K156/Dźwignie!$D$5 -> 2.125034386 | M156: =I156/Dźwignie!$D$2 -> 0.2623499242 | N156: =K156/Dźwignie!$D$3 -> 0.2125034386 | O156: 1.952925757 | P156: 1 | Q156: 1.952925757 | S156: =C156*Dźwignie!$G$8 -> 102469.9848 | T156: 204939.9697 | U156: =Dźwignie!$G$9 -> 150000 | V156: 54939.96967 | W156: =V156-Dźwignie!$D$6 -> 54939.96967 | X156: =IF(W156>0,W156*(1-Dźwignie!$D$9),W156) -> 44501.37543 | Y156: =X156/Dźwignie!$D$5 -> 2.225068771 | Z156: =V156/Dźwignie!$D$2 -> 0.2746998483 | AA156: =X156/Dźwignie!$D$3 -> 0.2225068771 | AB156: 3.730252691 | AC156: 1 | AD156: 3.730252691
A157: 145 | B157: 0.4065856338 | C157: =NORMINV(B157,Dźwignie!$L$8,Dźwignie!$L$9) -> 188183.1558 | D157: =Dźwignie!$L$7*C157 -> 282274.7336 | F157: =C157*Dźwignie!$G$5 -> 188183.1558 | G157: 94091.57788 | H157: =Dźwignie!$G$6 -> 50000 | I157: 44091.57788 | J157: =I157-Dźwignie!$D$6 -> 44091.57788 | K157: =IF(J157>0,J157*(1-Dźwignie!$D$9),J157) -> 35714.17808 | L157: =K157/Dźwignie!$D$5 -> 1.785708904 | M157: =I157/Dźwignie!$D$2 -> 0.2204578894 | N157: =K157/Dźwignie!$D$3 -> 0.1785708904 | O157: 2.134003418 | P157: 1 | Q157: 2.134003418 | S157: =C157*Dźwignie!$G$8 -> 94091.57788 | T157: 188183.1558 | U157: =Dźwignie!$G$9 -> 150000 | V157: 38183.15576 | W157: =V157-Dźwignie!$D$6 -> 38183.15576 | X157: =IF(W157>0,W157*(1-Dźwignie!$D$9),W157) -> 30928.35616 | Y157: =X157/Dźwignie!$D$5 -> 1.546417808 | Z157: =V157/Dźwignie!$D$2 -> 0.1909157788 | AA157: =X157/Dźwignie!$D$3 -> 0.1546417808 | AB157: 4.928433809 | AC157: 1 | AD157: 4.928433809
A158: 146 | B158: 0.3988155127 | C158: =NORMINV(B158,Dźwignie!$L$8,Dźwignie!$L$9) -> 187179.2901 | D158: =Dźwignie!$L$7*C158 -> 280768.9351 | F158: =C158*Dźwignie!$G$5 -> 187179.2901 | G158: 93589.64503 | H158: =Dźwignie!$G$6 -> 50000 | I158: 43589.64503 | J158: =I158-Dźwignie!$D$6 -> 43589.64503 | K158: =IF(J158>0,J158*(1-Dźwignie!$D$9),J158) -> 35307.61248 | L158: =K158/Dźwignie!$D$5 -> 1.765380624 | M158: =I158/Dźwignie!$D$2 -> 0.2179482252 | N158: =K158/Dźwignie!$D$3 -> 0.1765380624 | O158: 2.147061417 | P158: 1 | Q158: 2.147061417 | S158: =C158*Dźwignie!$G$8 -> 93589.64503 | T158: 187179.2901 | U158: =Dźwignie!$G$9 -> 150000 | V158: 37179.29007 | W158: =V158-Dźwignie!$D$6 -> 37179.29007 | X158: =IF(W158>0,W158*(1-Dźwignie!$D$9),W158) -> 30115.22495 | Y158: =X158/Dźwignie!$D$5 -> 1.505761248 | Z158: =V158/Dźwignie!$D$2 -> 0.1858964503 | AA158: =X158/Dźwignie!$D$3 -> 0.1505761248 | AB158: 5.034504148 | AC158: 1 | AD158: 5.034504148
A159: 147 | B159: 0.8278265595 | C159: =NORMINV(B159,Dźwignie!$L$8,Dźwignie!$L$9) -> 247280.5648 | D159: =Dźwignie!$L$7*C159 -> 370920.8472 | F159: =C159*Dźwignie!$G$5 -> 247280.5648 | G159: 123640.2824 | H159: =Dźwignie!$G$6 -> 50000 | I159: 73640.28238 | J159: =I159-Dźwignie!$D$6 -> 73640.28238 | K159: =IF(J159>0,J159*(1-Dźwignie!$D$9),J159) -> 59648.62873 | L159: =K159/Dźwignie!$D$5 -> 2.982431437 | M159: =I159/Dźwignie!$D$2 -> 0.3682014119 | N159: =K159/Dźwignie!$D$3 -> 0.2982431437 | O159: 1.678976212 | P159: 1 | Q159: 1.678976212 | S159: =C159*Dźwignie!$G$8 -> 123640.2824 | T159: 247280.5648 | U159: =Dźwignie!$G$9 -> 150000 | V159: 97280.56477 | W159: =V159-Dźwignie!$D$6 -> 97280.56477 | X159: =IF(W159>0,W159*(1-Dźwignie!$D$9),W159) -> 78797.25746 | Y159: =X159/Dźwignie!$D$5 -> 3.939862873 | Z159: =V159/Dźwignie!$D$2 -> 0.4864028238 | AA159: =X159/Dźwignie!$D$3 -> 0.3939862873 | AB159: 2.541931838 | AC159: 1 | AD159: 2.541931838
A160: 148 | B160: 0.7611913681 | C160: =NORMINV(B160,Dźwignie!$L$8,Dźwignie!$L$9) -> 235507.0048 | D160: =Dźwignie!$L$7*C160 -> 353260.5072 | F160: =C160*Dźwignie!$G$5 -> 235507.0048 | G160: 117753.5024 | H160: =Dźwignie!$G$6 -> 50000 | I160: 67753.50241 | J160: =I160-Dźwignie!$D$6 -> 67753.50241 | K160: =IF(J160>0,J160*(1-Dźwignie!$D$9),J160) -> 54880.33695 | L160: =K160/Dźwignie!$D$5 -> 2.744016848 | M160: =I160/Dźwignie!$D$2 -> 0.3387675121 | N160: =K160/Dźwignie!$D$3 -> 0.2744016848 | O160: 1.73796923 | P160: 1 | Q160: 1.73796923 | S160: =C160*Dźwignie!$G$8 -> 117753.5024 | T160: 235507.0048 | U160: =Dźwignie!$G$9 -> 150000 | V160: 85507.00482 | W160: =V160-Dźwignie!$D$6 -> 85507.00482 | X160: =IF(W160>0,W160*(1-Dźwignie!$D$9),W160) -> 69260.67391 | Y160: =X160/Dźwignie!$D$5 -> 3.463033695 | Z160: =V160/Dźwignie!$D$2 -> 0.4275350241 | AA160: =X160/Dźwignie!$D$3 -> 0.3463033695 | AB160: 2.754242244 | AC160: 1 | AD160: 2.754242244
A161: 149 | B161: 0.9874030948 | C161: =NORMINV(B161,Dźwignie!$L$8,Dźwignie!$L$9) -> 311920.8991 | D161: =Dźwignie!$L$7*C161 -> 467881.3487 | F161: =C161*Dźwignie!$G$5 -> 311920.8991 | G161: 155960.4496 | H161: =Dźwignie!$G$6 -> 50000 | I161: 105960.4496 | J161: =I161-Dźwignie!$D$6 -> 105960.4496 | K161: =IF(J161>0,J161*(1-Dźwignie!$D$9),J161) -> 85827.96414 | L161: =K161/Dźwignie!$D$5 -> 4.291398207 | M161: =I161/Dźwignie!$D$2 -> 0.5298022478 | N161: =K161/Dźwignie!$D$3 -> 0.4291398207 | O161: 1.471874178 | P161: 1 | Q161: 1.471874178 | S161: =C161*Dźwignie!$G$8 -> 155960.4496 | T161: 311920.8991 | U161: =Dźwignie!$G$9 -> 150000 | V161: 161920.8991 | W161: =V161-Dźwignie!$D$6 -> 161920.8991 | X161: =IF(W161>0,W161*(1-Dźwignie!$D$9),W161) -> 131155.9283 | Y161: =X161/Dźwignie!$D$5 -> 6.557796414 | Z161: =V161/Dźwignie!$D$2 -> 0.8096044955 | AA161: =X161/Dźwignie!$D$3 -> 0.6557796414 | AB161: 1.926378255 | AC161: 1 | AD161: 1.926378255
A162: 150 | B162: 0.1673494577 | C162: =NORMINV(B162,Dźwignie!$L$8,Dźwignie!$L$9) -> 151765.3812 | D162: =Dźwignie!$L$7*C162 -> 227648.0719 | F162: =C162*Dźwignie!$G$5 -> 151765.3812 | G162: 75882.69062 | H162: =Dźwignie!$G$6 -> 50000 | I162: 25882.69062 | J162: =I162-Dźwignie!$D$6 -> 25882.69062 | K162: =IF(J162>0,J162*(1-Dźwignie!$D$9),J162) -> 20964.9794 | L162: =K162/Dźwignie!$D$5 -> 1.04824897 | M162: =I162/Dźwignie!$D$2 -> 0.1294134531 | N162: =K162/Dźwignie!$D$3 -> 0.104824897 | O162: 2.931792978 | P162: 1 | Q162: 2.931792978 | S162: =C162*Dźwignie!$G$8 -> 75882.69062 | T162: 151765.3812 | U162: =Dźwignie!$G$9 -> 150000 | V162: 1765.381245 | W162: =V162-Dźwignie!$D$6 -> 1765.381245 | X162: =IF(W162>0,W162*(1-Dźwignie!$D$9),W162) -> 1429.958808 | Y162: =X162/Dźwignie!$D$5 -> 0.07149794042 | Z162: =V162/Dźwignie!$D$2 -> 0.008826906225 | AA162: =X162/Dźwignie!$D$3 -> 0.007149794042 | AB162: 85.96748248 | AC162: 1 | AD162: 85.96748248
A163: 151 | B163: 0.2392657399 | C163: =NORMINV(B163,Dźwignie!$L$8,Dźwignie!$L$9) -> 164566.6767 | D163: =Dźwignie!$L$7*C163 -> 246850.0151 | F163: =C163*Dźwignie!$G$5 -> 164566.6767 | G163: 82283.33837 | H163: =Dźwignie!$G$6 -> 50000 | I163: 32283.33837 | J163: =I163-Dźwignie!$D$6 -> 32283.33837 | K163: =IF(J163>0,J163*(1-Dźwignie!$D$9),J163) -> 26149.50408 | L163: =K163/Dźwignie!$D$5 -> 1.307475204 | M163: =I163/Dźwignie!$D$2 -> 0.1614166918 | N163: =K163/Dźwignie!$D$3 -> 0.1307475204 | O163: 2.548786542 | P163: 1 | Q163: 2.548786542 | S163: =C163*Dźwignie!$G$8 -> 82283.33837 | T163: 164566.6767 | U163: =Dźwignie!$G$9 -> 150000 | V163: 14566.67673 | W163: =V163-Dźwignie!$D$6 -> 14566.67673 | X163: =IF(W163>0,W163*(1-Dźwignie!$D$9),W163) -> 11799.00816 | Y163: =X163/Dźwignie!$D$5 -> 0.5899504078 | Z163: =V163/Dźwignie!$D$2 -> 0.07283338367 | AA163: =X163/Dźwignie!$D$3 -> 0.05899504078 | AB163: 11.29747572 | AC163: 1 | AD163: 11.29747572
A164: 152 | B164: 0.6257507801 | C164: =NORMINV(B164,Dźwignie!$L$8,Dźwignie!$L$9) -> 216030.996 | D164: =Dźwignie!$L$7*C164 -> 324046.494 | F164: =C164*Dźwignie!$G$5 -> 216030.996 | G164: 108015.498 | H164: =Dźwignie!$G$6 -> 50000 | I164: 58015.49801 | J164: =I164-Dźwignie!$D$6 -> 58015.49801 | K164: =IF(J164>0,J164*(1-Dźwignie!$D$9),J164) -> 46992.55339 | L164: =K164/Dźwignie!$D$5 -> 2.349627669 | M164: =I164/Dźwignie!$D$2 -> 0.29007749 | N164: =K164/Dźwignie!$D$3 -> 0.2349627669 | O164: 1.861838676 | P164: 1 | Q164: 1.861838676 | S164: =C164*Dźwignie!$G$8 -> 108015.498 | T164: 216030.996 | U164: =Dźwignie!$G$9 -> 150000 | V164: 66030.99601 | W164: =V164-Dźwignie!$D$6 -> 66030.99601 | X164: =IF(W164>0,W164*(1-Dźwignie!$D$9),W164) -> 53485.10677 | Y164: =X164/Dźwignie!$D$5 -> 2.674255339 | Z164: =V164/Dźwignie!$D$2 -> 0.3301549801 | AA164: =X164/Dźwignie!$D$3 -> 0.2674255339 | AB164: 3.271660418 | AC164: 1 | AD164: 3.271660418
A165: 153 | B165: 0.3470939994 | C165: =NORMINV(B165,Dźwignie!$L$8,Dźwignie!$L$9) -> 180341.0987 | D165: =Dźwignie!$L$7*C165 -> 270511.6481 | F165: =C165*Dźwignie!$G$5 -> 180341.0987 | G165: 90170.54937 | H165: =Dźwignie!$G$6 -> 50000 | I165: 40170.54937 | J165: =I165-Dźwignie!$D$6 -> 40170.54937 | K165: =IF(J165>0,J165*(1-Dźwignie!$D$9),J165) -> 32538.14499 | L165: =K165/Dźwignie!$D$5 -> 1.626907249 | M165: =I165/Dźwignie!$D$2 -> 0.2008527468 | N165: =K165/Dźwignie!$D$3 -> 0.1626907249 | O165: 2.24469296 | P165: 1 | Q165: 2.24469296 | S165: =C165*Dźwignie!$G$8 -> 90170.54937 | T165: 180341.0987 | U165: =Dźwignie!$G$9 -> 150000 | V165: 30341.09874 | W165: =V165-Dźwignie!$D$6 -> 30341.09874 | X165: =IF(W165>0,W165*(1-Dźwignie!$D$9),W165) -> 24576.28998 | Y165: =X165/Dźwignie!$D$5 -> 1.228814499 | Z165: =V165/Dźwignie!$D$2 -> 0.1517054937 | AA165: =X165/Dźwignie!$D$3 -> 0.1228814499 | AB165: 5.943789324 | AC165: 1 | AD165: 5.943789324
A166: 154 | B166: 0.478169322 | C166: =NORMINV(B166,Dźwignie!$L$8,Dźwignie!$L$9) -> 197262.5633 | D166: =Dźwignie!$L$7*C166 -> 295893.845 | F166: =C166*Dźwignie!$G$5 -> 197262.5633 | G166: 98631.28167 | H166: =Dźwignie!$G$6 -> 50000 | I166: 48631.28167 | J166: =I166-Dźwignie!$D$6 -> 48631.28167 | K166: =IF(J166>0,J166*(1-Dźwignie!$D$9),J166) -> 39391.33815 | L166: =K166/Dźwignie!$D$5 -> 1.969566908 | M166: =I166/Dźwignie!$D$2 -> 0.2431564083 | N166: =K166/Dźwignie!$D$3 -> 0.1969566908 | O166: 2.028144813 | P166: 1 | Q166: 2.028144813 | S166: =C166*Dźwignie!$G$8 -> 98631.28167 | T166: 197262.5633 | U166: =Dźwignie!$G$9 -> 150000 | V166: 47262.56334 | W166: =V166-Dźwignie!$D$6 -> 47262.56334 | X166: =IF(W166>0,W166*(1-Dźwignie!$D$9),W166) -> 38282.6763 | Y166: =X166/Dźwignie!$D$5 -> 1.914133815 | Z166: =V166/Dźwignie!$D$2 -> 0.2363128167 | AA166: =X166/Dźwignie!$D$3 -> 0.1914133815 | AB166: 4.173759301 | AC166: 1 | AD166: 4.173759301
A167: 155 | B167: 0.3871284127 | C167: =NORMINV(B167,Dźwignie!$L$8,Dźwignie!$L$9) -> 185659.436 | D167: =Dźwignie!$L$7*C167 -> 278489.154 | F167: =C167*Dźwignie!$G$5 -> 185659.436 | G167: 92829.718 | H167: =Dźwignie!$G$6 -> 50000 | I167: 42829.718 | J167: =I167-Dźwignie!$D$6 -> 42829.718 | K167: =IF(J167>0,J167*(1-Dźwignie!$D$9),J167) -> 34692.07158 | L167: =K167/Dźwignie!$D$5 -> 1.734603579 | M167: =I167/Dźwignie!$D$2 -> 0.21414859 | N167: =K167/Dźwignie!$D$3 -> 0.1734603579 | O167: 2.16741371 | P167: 1 | Q167: 2.16741371 | S167: =C167*Dźwignie!$G$8 -> 92829.718 | T167: 185659.436 | U167: =Dźwignie!$G$9 -> 150000 | V167: 35659.436 | W167: =V167-Dźwignie!$D$6 -> 35659.436 | X167: =IF(W167>0,W167*(1-Dźwignie!$D$9),W167) -> 28884.14316 | Y167: =X167/Dźwignie!$D$5 -> 1.444207158 | Z167: =V167/Dźwignie!$D$2 -> 0.17829718 | AA167: =X167/Dźwignie!$D$3 -> 0.1444207158 | AB167: 5.206460248 | AC167: 1 | AD167: 5.206460248
A168: 156 | B168: 0.1911959648 | C168: =NORMINV(B168,Dźwignie!$L$8,Dźwignie!$L$9) -> 156325.1215 | D168: =Dźwignie!$L$7*C168 -> 234487.6822 | F168: =C168*Dźwignie!$G$5 -> 156325.1215 | G168: 78162.56073 | H168: =Dźwignie!$G$6 -> 50000 | I168: 28162.56073 | J168: =I168-Dźwignie!$D$6 -> 28162.56073 | K168: =IF(J168>0,J168*(1-Dźwignie!$D$9),J168) -> 22811.67419 | L168: =K168/Dźwignie!$D$5 -> 1.140583709 | M168: =I168/Dźwignie!$D$2 -> 0.1408128036 | N168: =K168/Dźwignie!$D$3 -> 0.1140583709 | O168: 2.775406735 | P168: 1 | Q168: 2.775406735 | S168: =C168*Dźwignie!$G$8 -> 78162.56073 | T168: 156325.1215 | U168: =Dźwignie!$G$9 -> 150000 | V168: 6325.121451 | W168: =V168-Dźwignie!$D$6 -> 6325.121451 | X168: =IF(W168>0,W168*(1-Dźwignie!$D$9),W168) -> 5123.348375 | Y168: =X168/Dźwignie!$D$5 -> 0.2561674188 | Z168: =V168/Dźwignie!$D$2 -> 0.03162560726 | AA168: =X168/Dźwignie!$D$3 -> 0.02561674188 | AB168: 24.71495965 | AC168: 1 | AD168: 24.71495965
A169: 157 | B169: 0.8736588359 | C169: =NORMINV(B169,Dźwignie!$L$8,Dźwignie!$L$9) -> 257192.9245 | D169: =Dźwignie!$L$7*C169 -> 385789.3868 | F169: =C169*Dźwignie!$G$5 -> 257192.9245 | G169: 128596.4623 | H169: =Dźwignie!$G$6 -> 50000 | I169: 78596.46226 | J169: =I169-Dźwignie!$D$6 -> 78596.46226 | K169: =IF(J169>0,J169*(1-Dźwignie!$D$9),J169) -> 63663.13443 | L169: =K169/Dźwignie!$D$5 -> 3.183156721 | M169: =I169/Dźwignie!$D$2 -> 0.3929823113 | N169: =K169/Dźwignie!$D$3 -> 0.3183156721 | O169: 1.636160949 | P169: 1 | Q169: 1.636160949 | S169: =C169*Dźwignie!$G$8 -> 128596.4623 | T169: 257192.9245 | U169: =Dźwignie!$G$9 -> 150000 | V169: 107192.9245 | W169: =V169-Dźwignie!$D$6 -> 107192.9245 | X169: =IF(W169>0,W169*(1-Dźwignie!$D$9),W169) -> 86826.26886 | Y169: =X169/Dźwignie!$D$5 -> 4.341313443 | Z169: =V169/Dźwignie!$D$2 -> 0.5359646226 | AA169: =X169/Dźwignie!$D$3 -> 0.4341313443 | AB169: 2.399346092 | AC169: 1 | AD169: 2.399346092
A170: 158 | B170: 0.4797736406 | C170: =NORMINV(B170,Dźwignie!$L$8,Dźwignie!$L$9) -> 197463.9148 | D170: =Dźwignie!$L$7*C170 -> 296195.8722 | F170: =C170*Dźwignie!$G$5 -> 197463.9148 | G170: 98731.95739 | H170: =Dźwignie!$G$6 -> 50000 | I170: 48731.95739 | J170: =I170-Dźwignie!$D$6 -> 48731.95739 | K170: =IF(J170>0,J170*(1-Dźwignie!$D$9),J170) -> 39472.88549 | L170: =K170/Dźwignie!$D$5 -> 1.973644274 | M170: =I170/Dźwignie!$D$2 -> 0.2436597869 | N170: =K170/Dźwignie!$D$3 -> 0.1973644274 | O170: 2.026020761 | P170: 1 | Q170: 2.026020761 | S170: =C170*Dźwignie!$G$8 -> 98731.95739 | T170: 197463.9148 | U170: =Dźwignie!$G$9 -> 150000 | V170: 47463.91478 | W170: =V170-Dźwignie!$D$6 -> 47463.91478 | X170: =IF(W170>0,W170*(1-Dźwignie!$D$9),W170) -> 38445.77097 | Y170: =X170/Dźwignie!$D$5 -> 1.922288549 | Z170: =V170/Dźwignie!$D$2 -> 0.2373195739 | AA170: =X170/Dźwignie!$D$3 -> 0.1922288549 | AB170: 4.160295578 | AC170: 1 | AD170: 4.160295578
A171: 159 | B171: 0.8884189725 | C171: =NORMINV(B171,Dźwignie!$L$8,Dźwignie!$L$9) -> 260908.1476 | D171: =Dźwignie!$L$7*C171 -> 391362.2214 | F171: =C171*Dźwignie!$G$5 -> 260908.1476 | G171: 130454.0738 | H171: =Dźwignie!$G$6 -> 50000 | I171: 80454.07381 | J171: =I171-Dźwignie!$D$6 -> 80454.07381 | K171: =IF(J171>0,J171*(1-Dźwignie!$D$9),J171) -> 65167.79979 | L171: =K171/Dźwignie!$D$5 -> 3.258389989 | M171: =I171/Dźwignie!$D$2 -> 0.4022703691 | N171: =K171/Dźwignie!$D$3 -> 0.3258389989 | O171: 1.62147257 | P171: 1 | Q171: 1.62147257 | S171: =C171*Dźwignie!$G$8 -> 130454.0738 | T171: 260908.1476 | U171: =Dźwignie!$G$9 -> 150000 | V171: 110908.1476 | W171: =V171-Dźwignie!$D$6 -> 110908.1476 | X171: =IF(W171>0,W171*(1-Dźwignie!$D$9),W171) -> 89835.59958 | Y171: =X171/Dźwignie!$D$5 -> 4.491779979 | Z171: =V171/Dźwignie!$D$2 -> 0.5545407381 | AA171: =X171/Dźwignie!$D$3 -> 0.4491779979 | AB171: 2.352470519 | AC171: 1 | AD171: 2.352470519
A172: 160 | B172: 0.4190137386 | C172: =NORMINV(B172,Dźwignie!$L$8,Dźwignie!$L$9) -> 189779.1392 | D172: =Dźwignie!$L$7*C172 -> 284668.7087 | F172: =C172*Dźwignie!$G$5 -> 189779.1392 | G172: 94889.56958 | H172: =Dźwignie!$G$6 -> 50000 | I172: 44889.56958 | J172: =I172-Dźwignie!$D$6 -> 44889.56958 | K172: =IF(J172>0,J172*(1-Dźwignie!$D$9),J172) -> 36360.55136 | L172: =K172/Dźwignie!$D$5 -> 1.818027568 | M172: =I172/Dźwignie!$D$2 -> 0.2244478479 | N172: =K172/Dźwignie!$D$3 -> 0.1818027568 | O172: 2.113844496 | P172: 1 | Q172: 2.113844496 | S172: =C172*Dźwignie!$G$8 -> 94889.56958 | T172: 189779.1392 | U172: =Dźwignie!$G$9 -> 150000 | V172: 39779.13917 | W172: =V172-Dźwignie!$D$6 -> 39779.13917 | X172: =IF(W172>0,W172*(1-Dźwignie!$D$9),W172) -> 32221.10272 | Y172: =X172/Dźwignie!$D$5 -> 1.611055136 | Z172: =V172/Dźwignie!$D$2 -> 0.1988956958 | AA172: =X172/Dźwignie!$D$3 -> 0.1611055136 | AB172: 4.770820665 | AC172: 1 | AD172: 4.770820665
A173: 161 | B173: 0.2451371551 | C173: =NORMINV(B173,Dźwignie!$L$8,Dźwignie!$L$9) -> 165506.3702 | D173: =Dźwignie!$L$7*C173 -> 248259.5552 | F173: =C173*Dźwignie!$G$5 -> 165506.3702 | G173: 82753.18508 | H173: =Dźwignie!$G$6 -> 50000 | I173: 32753.18508 | J173: =I173-Dźwignie!$D$6 -> 32753.18508 | K173: =IF(J173>0,J173*(1-Dźwignie!$D$9),J173) -> 26530.07992 | L173: =K173/Dźwignie!$D$5 -> 1.326503996 | M173: =I173/Dźwignie!$D$2 -> 0.1637659254 | N173: =K173/Dźwignie!$D$3 -> 0.1326503996 | O173: 2.526569092 | P173: 1 | Q173: 2.526569092 | S173: =C173*Dźwignie!$G$8 -> 82753.18508 | T173: 165506.3702 | U173: =Dźwignie!$G$9 -> 150000 | V173: 15506.37016 | W173: =V173-Dźwignie!$D$6 -> 15506.37016 | X173: =IF(W173>0,W173*(1-Dźwignie!$D$9),W173) -> 12560.15983 | Y173: =X173/Dźwignie!$D$5 -> 0.6280079916 | Z173: =V173/Dźwignie!$D$2 -> 0.07753185082 | AA173: =X173/Dźwignie!$D$3 -> 0.06280079916 | AB173: 10.67344378 | AC173: 1 | AD173: 10.67344378
A174: 162 | B174: 0.4505437613 | C174: =NORMINV(B174,Dźwignie!$L$8,Dźwignie!$L$9) -> 193785.6173 | D174: =Dźwignie!$L$7*C174 -> 290678.426 | F174: =C174*Dźwignie!$G$5 -> 193785.6173 | G174: 96892.80866 | H174: =Dźwignie!$G$6 -> 50000 | I174: 46892.80866 | J174: =I174-Dźwignie!$D$6 -> 46892.80866 | K174: =IF(J174>0,J174*(1-Dźwignie!$D$9),J174) -> 37983.17501 | L174: =K174/Dźwignie!$D$5 -> 1.899158751 | M174: =I174/Dźwignie!$D$2 -> 0.2344640433 | N174: =K174/Dźwignie!$D$3 -> 0.1899158751 | O174: 2.066261575 | P174: 1 | Q174: 2.066261575 | S174: =C174*Dźwignie!$G$8 -> 96892.80866 | T174: 193785.6173 | U174: =Dźwignie!$G$9 -> 150000 | V174: 43785.61732 | W174: =V174-Dźwignie!$D$6 -> 43785.61732 | X174: =IF(W174>0,W174*(1-Dźwignie!$D$9),W174) -> 35466.35003 | Y174: =X174/Dźwignie!$D$5 -> 1.773317501 | Z174: =V174/Dźwignie!$D$2 -> 0.2189280866 | AA174: =X174/Dźwignie!$D$3 -> 0.1773317501 | AB174: 4.425782464 | AC174: 1 | AD174: 4.425782464
A175: 163 | B175: 0.9704933763 | C175: =NORMINV(B175,Dźwignie!$L$8,Dźwignie!$L$9) -> 294404.7316 | D175: =Dźwignie!$L$7*C175 -> 441607.0973 | F175: =C175*Dźwignie!$G$5 -> 294404.7316 | G175: 147202.3658 | H175: =Dźwignie!$G$6 -> 50000 | I175: 97202.36578 | J175: =I175-Dźwignie!$D$6 -> 97202.36578 | K175: =IF(J175>0,J175*(1-Dźwignie!$D$9),J175) -> 78733.91628 | L175: =K175/Dźwignie!$D$5 -> 3.936695814 | M175: =I175/Dźwignie!$D$2 -> 0.4860118289 | N175: =K175/Dźwignie!$D$3 -> 0.3936695814 | O175: 1.514390772 | P175: 1 | Q175: 1.514390772 | S175: =C175*Dźwignie!$G$8 -> 147202.3658 | T175: 294404.7316 | U175: =Dźwignie!$G$9 -> 150000 | V175: 144404.7316 | W175: =V175-Dźwignie!$D$6 -> 144404.7316 | X175: =IF(W175>0,W175*(1-Dźwignie!$D$9),W175) -> 116967.8326 | Y175: =X175/Dźwignie!$D$5 -> 5.848391628 | Z175: =V175/Dźwignie!$D$2 -> 0.7220236578 | AA175: =X175/Dźwignie!$D$3 -> 0.5848391628 | AB175: 2.038747127 | AC175: 1 | AD175: 2.038747127
A176: 164 | B176: 0.4396362305 | C176: =NORMINV(B176,Dźwignie!$L$8,Dźwignie!$L$9) -> 192405.4217 | D176: =Dźwignie!$L$7*C176 -> 288608.1326 | F176: =C176*Dźwignie!$G$5 -> 192405.4217 | G176: 96202.71086 | H176: =Dźwignie!$G$6 -> 50000 | I176: 46202.71086 | J176: =I176-Dźwignie!$D$6 -> 46202.71086 | K176: =IF(J176>0,J176*(1-Dźwignie!$D$9),J176) -> 37424.1958 | L176: =K176/Dźwignie!$D$5 -> 1.87120979 | M176: =I176/Dźwignie!$D$2 -> 0.2310135543 | N176: =K176/Dźwignie!$D$3 -> 0.187120979 | O176: 2.082187583 | P176: 1 | Q176: 2.082187583 | S176: =C176*Dźwignie!$G$8 -> 96202.71086 | T176: 192405.4217 | U176: =Dźwignie!$G$9 -> 150000 | V176: 42405.42173 | W176: =V176-Dźwignie!$D$6 -> 42405.42173 | X176: =IF(W176>0,W176*(1-Dźwignie!$D$9),W176) -> 34348.3916 | Y176: =X176/Dźwignie!$D$5 -> 1.71741958 | Z176: =V176/Dźwignie!$D$2 -> 0.2120271086 | AA176: =X176/Dźwignie!$D$3 -> 0.171741958 | AB176: 4.537283533 | AC176: 1 | AD176: 4.537283533
A177: 165 | B177: 0.6327325702 | C177: =NORMINV(B177,Dźwignie!$L$8,Dźwignie!$L$9) -> 216954.9694 | D177: =Dźwignie!$L$7*C177 -> 325432.4541 | F177: =C177*Dźwignie!$G$5 -> 216954.9694 | G177: 108477.4847 | H177: =Dźwignie!$G$6 -> 50000 | I177: 58477.48469 | J177: =I177-Dźwignie!$D$6 -> 58477.48469 | K177: =IF(J177>0,J177*(1-Dźwignie!$D$9),J177) -> 47366.7626 | L177: =K177/Dźwignie!$D$5 -> 2.36833813 | M177: =I177/Dźwignie!$D$2 -> 0.2923874235 | N177: =K177/Dźwignie!$D$3 -> 0.236833813 | O177: 1.855029936 | P177: 1 | Q177: 1.855029936 | S177: =C177*Dźwignie!$G$8 -> 108477.4847 | T177: 216954.9694 | U177: =Dźwignie!$G$9 -> 150000 | V177: 66954.96939 | W177: =V177-Dźwignie!$D$6 -> 66954.96939 | X177: =IF(W177>0,W177*(1-Dźwignie!$D$9),W177) -> 54233.5252 | Y177: =X177/Dźwignie!$D$5 -> 2.71167626 | Z177: =V177/Dźwignie!$D$2 -> 0.3347748469 | AA177: =X177/Dźwignie!$D$3 -> 0.271167626 | AB177: 3.240311681 | AC177: 1 | AD177: 3.240311681
A178: 166 | B178: 0.189368844 | C178: =NORMINV(B178,Dźwignie!$L$8,Dźwignie!$L$9) -> 155988.7736 | D178: =Dźwignie!$L$7*C178 -> 233983.1603 | F178: =C178*Dźwignie!$G$5 -> 155988.7736 | G178: 77994.38678 | H178: =Dźwignie!$G$6 -> 50000 | I178: 27994.38678 | J178: =I178-Dźwignie!$D$6 -> 27994.38678 | K178: =IF(J178>0,J178*(1-Dźwignie!$D$9),J178) -> 22675.45329 | L178: =K178/Dźwignie!$D$5 -> 1.133772665 | M178: =I178/Dźwignie!$D$2 -> 0.1399719339 | N178: =K178/Dźwignie!$D$3 -> 0.1133772665 | O178: 2.786072343 | P178: 1 | Q178: 2.786072343 | S178: =C178*Dźwignie!$G$8 -> 77994.38678 | T178: 155988.7736 | U178: =Dźwignie!$G$9 -> 150000 | V178: 5988.773562 | W178: =V178-Dźwignie!$D$6 -> 5988.773562 | X178: =IF(W178>0,W178*(1-Dźwignie!$D$9),W178) -> 4850.906585 | Y178: =X178/Dźwignie!$D$5 -> 0.2425453293 | Z178: =V178/Dźwignie!$D$2 -> 0.02994386781 | AA178: =X178/Dźwignie!$D$3 -> 0.02425453293 | AB178: 26.04686451 | AC178: 1 | AD178: 26.04686451
A179: 167 | B179: 0.2991841435 | C179: =NORMINV(B179,Dźwignie!$L$8,Dźwignie!$L$9) -> 173662.5776 | D179: =Dźwignie!$L$7*C179 -> 260493.8664 | F179: =C179*Dźwignie!$G$5 -> 173662.5776 | G179: 86831.28881 | H179: =Dźwignie!$G$6 -> 50000 | I179: 36831.28881 | J179: =I179-Dźwignie!$D$6 -> 36831.28881 | K179: =IF(J179>0,J179*(1-Dźwignie!$D$9),J179) -> 29833.34394 | L179: =K179/Dźwignie!$D$5 -> 1.491667197 | M179: =I179/Dźwignie!$D$2 -> 0.1841564441 | N179: =K179/Dźwignie!$D$3 -> 0.1491667197 | O179: 2.357541417 | P179: 1 | Q179: 2.357541417 | S179: =C179*Dźwignie!$G$8 -> 86831.28881 | T179: 173662.5776 | U179: =Dźwignie!$G$9 -> 150000 | V179: 23662.57763 | W179: =V179-Dźwignie!$D$6 -> 23662.57763 | X179: =IF(W179>0,W179*(1-Dźwignie!$D$9),W179) -> 19166.68788 | Y179: =X179/Dźwignie!$D$5 -> 0.9583343939 | Z179: =V179/Dźwignie!$D$2 -> 0.1183128881 | AA179: =X179/Dźwignie!$D$3 -> 0.09583343939 | AB179: 7.33912342 | AC179: 1 | AD179: 7.33912342
A180: 168 | B180: 0.06806588173 | C180: =NORMINV(B180,Dźwignie!$L$8,Dźwignie!$L$9) -> 125482.4109 | D180: =Dźwignie!$L$7*C180 -> 188223.6163 | F180: =C180*Dźwignie!$G$5 -> 125482.4109 | G180: 62741.20543 | H180: =Dźwignie!$G$6 -> 50000 | I180: 12741.20543 | J180: =I180-Dźwignie!$D$6 -> 12741.20543 | K180: =IF(J180>0,J180*(1-Dźwignie!$D$9),J180) -> 10320.37639 | L180: =K180/Dźwignie!$D$5 -> 0.5160188197 | M180: =I180/Dźwignie!$D$2 -> 0.06370602713 | N180: =K180/Dźwignie!$D$3 -> 0.05160188197 | O180: 4.924275477 | P180: 1 | Q180: 4.924275477 | S180: =C180*Dźwignie!$G$8 -> 62741.20543 | T180: 125482.4109 | U180: =Dźwignie!$G$9 -> 150000 | V180: -24517.58915 | W180: =V180-Dźwignie!$D$6 -> -24517.58915 | X180: =IF(W180>0,W180*(1-Dźwignie!$D$9),W180) -> -24517.58915 | Y180: =X180/Dźwignie!$D$5 -> -1.225879457 | Z180: =V180/Dźwignie!$D$2 -> -0.1225879457 | AA180: =X180/Dźwignie!$D$3 -> -0.1225879457 | AB180: -5.118056677 | AC180: 1 | AD180: -5.118056677
A181: 169 | B181: 0.153937757 | C181: =NORMINV(B181,Dźwignie!$L$8,Dźwignie!$L$9) -> 149015.5009 | D181: =Dźwignie!$L$7*C181 -> 223523.2513 | F181: =C181*Dźwignie!$G$5 -> 149015.5009 | G181: 74507.75043 | H181: =Dźwignie!$G$6 -> 50000 | I181: 24507.75043 | J181: =I181-Dźwignie!$D$6 -> 24507.75043 | K181: =IF(J181>0,J181*(1-Dźwignie!$D$9),J181) -> 19851.27785 | L181: =K181/Dźwignie!$D$5 -> 0.9925638926 | M181: =I181/Dźwignie!$D$2 -> 0.1225387522 | N181: =K181/Dźwignie!$D$3 -> 0.09925638926 | O181: 3.04017093 | P181: 1 | Q181: 3.04017093 | S181: =C181*Dźwignie!$G$8 -> 74507.75043 | T181: 149015.5009 | U181: =Dźwignie!$G$9 -> 150000 | V181: -984.4991326 | W181: =V181-Dźwignie!$D$6 -> -984.4991326 | X181: =IF(W181>0,W181*(1-Dźwignie!$D$9),W181) -> -984.4991326 | Y181: =X181/Dźwignie!$D$5 -> -0.04922495663 | Z181: =V181/Dźwignie!$D$2 -> -0.004922495663 | AA181: =X181/Dźwignie!$D$3 -> -0.004922495663 | AB181: -151.3617391 | AC181: 1 | AD181: -151.3617391
A182: 170 | B182: 0.6562708616 | C182: =NORMINV(B182,Dźwignie!$L$8,Dźwignie!$L$9) -> 220115.3382 | D182: =Dźwignie!$L$7*C182 -> 330173.0074 | F182: =C182*Dźwignie!$G$5 -> 220115.3382 | G182: 110057.6691 | H182: =Dźwignie!$G$6 -> 50000 | I182: 60057.66912 | J182: =I182-Dźwignie!$D$6 -> 60057.66912 | K182: =IF(J182>0,J182*(1-Dźwignie!$D$9),J182) -> 48646.71199 | L182: =K182/Dźwignie!$D$5 -> 2.432335599 | M182: =I182/Dźwignie!$D$2 -> 0.3002883456 | N182: =K182/Dźwignie!$D$3 -> 0.2432335599 | O182: 1.832533142 | P182: 1 | Q182: 1.832533142 | S182: =C182*Dźwignie!$G$8 -> 110057.6691 | T182: 220115.3382 | U182: =Dźwignie!$G$9 -> 150000 | V182: 70115.33824 | W182: =V182-Dźwignie!$D$6 -> 70115.33824 | X182: =IF(W182>0,W182*(1-Dźwignie!$D$9),W182) -> 56793.42397 | Y182: =X182/Dźwignie!$D$5 -> 2.839671199 | Z182: =V182/Dźwignie!$D$2 -> 0.3505766912 | AA182: =X182/Dźwignie!$D$3 -> 0.2839671199 | AB182: 3.139332189 | AC182: 1 | AD182: 3.139332189
A183: 171 | B183: 0.05692535639 | C183: =NORMINV(B183,Dźwignie!$L$8,Dźwignie!$L$9) -> 120944.0241 | D183: =Dźwignie!$L$7*C183 -> 181416.0362 | F183: =C183*Dźwignie!$G$5 -> 120944.0241 | G183: 60472.01205 | H183: =Dźwignie!$G$6 -> 50000 | I183: 10472.01205 | J183: =I183-Dźwignie!$D$6 -> 10472.01205 | K183: =IF(J183>0,J183*(1-Dźwignie!$D$9),J183) -> 8482.329761 | L183: =K183/Dźwignie!$D$5 -> 0.424116488 | M183: =I183/Dźwignie!$D$2 -> 0.05236006025 | N183: =K183/Dźwignie!$D$3 -> 0.0424116488 | O183: 5.774631633 | P183: 1 | Q183: 5.774631633 | S183: =C183*Dźwignie!$G$8 -> 60472.01205 | T183: 120944.0241 | U183: =Dźwignie!$G$9 -> 150000 | V183: -29055.9759 | W183: =V183-Dźwignie!$D$6 -> -29055.9759 | X183: =IF(W183>0,W183*(1-Dźwignie!$D$9),W183) -> -29055.9759 | Y183: =X183/Dźwignie!$D$5 -> -1.452798795 | Z183: =V183/Dźwignie!$D$2 -> -0.1452798795 | AA183: =X183/Dźwignie!$D$3 -> -0.1452798795 | AB183: -4.162449216 | AC183: 1 | AD183: -4.162449216
A184: 172 | B184: 0.5695004463 | C184: =NORMINV(B184,Dźwignie!$L$8,Dźwignie!$L$9) -> 208755.1241 | D184: =Dźwignie!$L$7*C184 -> 313132.6862 | F184: =C184*Dźwignie!$G$5 -> 208755.1241 | G184: 104377.5621 | H184: =Dźwignie!$G$6 -> 50000 | I184: 54377.56207 | J184: =I184-Dźwignie!$D$6 -> 54377.56207 | K184: =IF(J184>0,J184*(1-Dźwignie!$D$9),J184) -> 44045.82528 | L184: =K184/Dźwignie!$D$5 -> 2.202291264 | M184: =I184/Dźwignie!$D$2 -> 0.2718878104 | N184: =K184/Dźwignie!$D$3 -> 0.2202291264 | O184: 1.919496905 | P184: 1 | Q184: 1.919496905 | S184: =C184*Dźwignie!$G$8 -> 104377.5621 | T184: 208755.1241 | U184: =Dźwignie!$G$9 -> 150000 | V184: 58755.12414 | W184: =V184-Dźwignie!$D$6 -> 58755.12414 | X184: =IF(W184>0,W184*(1-Dźwignie!$D$9),W184) -> 47591.65056 | Y184: =X184/Dźwignie!$D$5 -> 2.379582528 | Z184: =V184/Dźwignie!$D$2 -> 0.2937756207 | AA184: =X184/Dźwignie!$D$3 -> 0.2379582528 | AB184: 3.552968821 | AC184: 1 | AD184: 3.552968821
A185: 173 | B185: 0.5756594539 | C185: =NORMINV(B185,Dźwignie!$L$8,Dźwignie!$L$9) -> 209540.0764 | D185: =Dźwignie!$L$7*C185 -> 314310.1145 | F185: =C185*Dźwignie!$G$5 -> 209540.0764 | G185: 104770.0382 | H185: =Dźwignie!$G$6 -> 50000 | I185: 54770.03818 | J185: =I185-Dźwignie!$D$6 -> 54770.03818 | K185: =IF(J185>0,J185*(1-Dźwignie!$D$9),J185) -> 44363.73092 | L185: =K185/Dźwignie!$D$5 -> 2.218186546 | M185: =I185/Dźwignie!$D$2 -> 0.2738501909 | N185: =K185/Dźwignie!$D$3 -> 0.2218186546 | O185: 1.91290789 | P185: 1 | Q185: 1.91290789 | S185: =C185*Dźwignie!$G$8 -> 104770.0382 | T185: 209540.0764 | U185: =Dźwignie!$G$9 -> 150000 | V185: 59540.07635 | W185: =V185-Dźwignie!$D$6 -> 59540.07635 | X185: =IF(W185>0,W185*(1-Dźwignie!$D$9),W185) -> 48227.46185 | Y185: =X185/Dźwignie!$D$5 -> 2.411373092 | Z185: =V185/Dźwignie!$D$2 -> 0.2977003818 | AA185: =X185/Dźwignie!$D$3 -> 0.2411373092 | AB185: 3.519311516 | AC185: 1 | AD185: 3.519311516
A186: 174 | B186: 0.8630295992 | C186: =NORMINV(B186,Dźwignie!$L$8,Dźwignie!$L$9) -> 254701.6162 | D186: =Dźwignie!$L$7*C186 -> 382052.4243 | F186: =C186*Dźwignie!$G$5 -> 254701.6162 | G186: 127350.8081 | H186: =Dźwignie!$G$6 -> 50000 | I186: 77350.80811 | J186: =I186-Dźwignie!$D$6 -> 77350.80811 | K186: =IF(J186>0,J186*(1-Dźwignie!$D$9),J186) -> 62654.15457 | L186: =K186/Dźwignie!$D$5 -> 3.132707728 | M186: =I186/Dźwignie!$D$2 -> 0.3867540405 | N186: =K186/Dźwignie!$D$3 -> 0.3132707728 | O186: 1.646405658 | P186: 1 | Q186: 1.646405658 | S186: =C186*Dźwignie!$G$8 -> 127350.8081 | T186: 254701.6162 | U186: =Dźwignie!$G$9 -> 150000 | V186: 104701.6162 | W186: =V186-Dźwignie!$D$6 -> 104701.6162 | X186: =IF(W186>0,W186*(1-Dźwignie!$D$9),W186) -> 84808.30913 | Y186: =X186/Dźwignie!$D$5 -> 4.240415457 | Z186: =V186/Dźwignie!$D$2 -> 0.5235080811 | AA186: =X186/Dźwignie!$D$3 -> 0.4240415457 | AB186: 2.432642641 | AC186: 1 | AD186: 2.432642641
A187: 175 | B187: 0.2708776593 | C187: =NORMINV(B187,Dźwignie!$L$8,Dźwignie!$L$9) -> 169491.9618 | D187: =Dźwignie!$L$7*C187 -> 254237.9428 | F187: =C187*Dźwignie!$G$5 -> 169491.9618 | G187: 84745.98092 | H187: =Dźwignie!$G$6 -> 50000 | I187: 34745.98092 | J187: =I187-Dźwignie!$D$6 -> 34745.98092 | K187: =IF(J187>0,J187*(1-Dźwignie!$D$9),J187) -> 28144.24455 | L187: =K187/Dźwignie!$D$5 -> 1.407212227 | M187: =I187/Dźwignie!$D$2 -> 0.1737299046 | N187: =K187/Dźwignie!$D$3 -> 0.1407212227 | O187: 2.439015353 | P187: 1 | Q187: 2.439015353 | S187: =C187*Dźwignie!$G$8 -> 84745.98092 | T187: 169491.9618 | U187: =Dźwignie!$G$9 -> 150000 | V187: 19491.96185 | W187: =V187-Dźwignie!$D$6 -> 19491.96185 | X187: =IF(W187>0,W187*(1-Dźwignie!$D$9),W187) -> 15788.4891 | Y187: =X187/Dźwignie!$D$5 -> 0.7894244549 | Z187: =V187/Dźwignie!$D$2 -> 0.09745980924 | AA187: =X187/Dźwignie!$D$3 -> 0.07894244549 | AB187: 8.695479868 | AC187: 1 | AD187: 8.695479868
A188: 176 | B188: 0.6749579906 | C188: =NORMINV(B188,Dźwignie!$L$8,Dźwignie!$L$9) -> 222682.2736 | D188: =Dźwignie!$L$7*C188 -> 334023.4105 | F188: =C188*Dźwignie!$G$5 -> 222682.2736 | G188: 111341.1368 | H188: =Dźwignie!$G$6 -> 50000 | I188: 61341.13682 | J188: =I188-Dźwignie!$D$6 -> 61341.13682 | K188: =IF(J188>0,J188*(1-Dźwignie!$D$9),J188) -> 49686.32083 | L188: =K188/Dźwignie!$D$5 -> 2.484316041 | M188: =I188/Dźwignie!$D$2 -> 0.3067056841 | N188: =K188/Dźwignie!$D$3 -> 0.2484316041 | O188: 1.815113684 | P188: 1 | Q188: 1.815113684 | S188: =C188*Dźwignie!$G$8 -> 111341.1368 | T188: 222682.2736 | U188: =Dźwignie!$G$9 -> 150000 | V188: 72682.27365 | W188: =V188-Dźwignie!$D$6 -> 72682.27365 | X188: =IF(W188>0,W188*(1-Dźwignie!$D$9),W188) -> 58872.64165 | Y188: =X188/Dźwignie!$D$5 -> 2.943632083 | Z188: =V188/Dźwignie!$D$2 -> 0.3634113682 | AA188: =X188/Dźwignie!$D$3 -> 0.2943632083 | AB188: 3.063776936 | AC188: 1 | AD188: 3.063776936
A189: 177 | B189: 0.2673434615 | C189: =NORMINV(B189,Dźwignie!$L$8,Dźwignie!$L$9) -> 168956.6339 | D189: =Dźwignie!$L$7*C189 -> 253434.9508 | F189: =C189*Dźwignie!$G$5 -> 168956.6339 | G189: 84478.31693 | H189: =Dźwignie!$G$6 -> 50000 | I189: 34478.31693 | J189: =I189-Dźwignie!$D$6 -> 34478.31693 | K189: =IF(J189>0,J189*(1-Dźwignie!$D$9),J189) -> 27927.43671 | L189: =K189/Dźwignie!$D$5 -> 1.396371836 | M189: =I189/Dźwignie!$D$2 -> 0.1723915847 | N189: =K189/Dźwignie!$D$3 -> 0.1396371836 | O189: 2.450186797 | P189: 1 | Q189: 2.450186797 | S189: =C189*Dźwignie!$G$8 -> 84478.31693 | T189: 168956.6339 | U189: =Dźwignie!$G$9 -> 150000 | V189: 18956.63386 | W189: =V189-Dźwignie!$D$6 -> 18956.63386 | X189: =IF(W189>0,W189*(1-Dźwignie!$D$9),W189) -> 15354.87343 | Y189: =X189/Dźwignie!$D$5 -> 0.7677436714 | Z189: =V189/Dźwignie!$D$2 -> 0.09478316931 | AA189: =X189/Dźwignie!$D$3 -> 0.07677436714 | AB189: 8.912797235 | AC189: 1 | AD189: 8.912797235
A190: 178 | B190: 0.01380765438 | C190: =NORMINV(B190,Dźwignie!$L$8,Dźwignie!$L$9) -> 89864.58065 | D190: =Dźwignie!$L$7*C190 -> 134796.871 | F190: =C190*Dźwignie!$G$5 -> 89864.58065 | G190: 44932.29033 | H190: =Dźwignie!$G$6 -> 50000 | I190: -5067.709673 | J190: =I190-Dźwignie!$D$6 -> -5067.709673 | K190: =IF(J190>0,J190*(1-Dźwignie!$D$9),J190) -> -5067.709673 | L190: =K190/Dźwignie!$D$5 -> -0.2533854836 | M190: =I190/Dźwignie!$D$2 -> -0.02533854836 | N190: =K190/Dźwignie!$D$3 -> -0.02533854836 | O190: -8.866389993 | P190: 1 | Q190: -8.866389993 | S190: =C190*Dźwignie!$G$8 -> 44932.29033 | T190: 89864.58065 | U190: =Dźwignie!$G$9 -> 150000 | V190: -60135.41935 | W190: =V190-Dźwignie!$D$6 -> -60135.41935 | X190: =IF(W190>0,W190*(1-Dźwignie!$D$9),W190) -> -60135.41935 | Y190: =X190/Dźwignie!$D$5 -> -3.006770967 | Z190: =V190/Dźwignie!$D$2 -> -0.3006770967 | AA190: =X190/Dźwignie!$D$3 -> -0.3006770967 | AB190: -1.494370234 | AC190: 1 | AD190: -1.494370234
A191: 179 | B191: 0.3910532594 | C191: =NORMINV(B191,Dźwignie!$L$8,Dźwignie!$L$9) -> 186171.2536 | D191: =Dźwignie!$L$7*C191 -> 279256.8804 | F191: =C191*Dźwignie!$G$5 -> 186171.2536 | G191: 93085.62681 | H191: =Dźwignie!$G$6 -> 50000 | I191: 43085.62681 | J191: =I191-Dźwignie!$D$6 -> 43085.62681 | K191: =IF(J191>0,J191*(1-Dźwignie!$D$9),J191) -> 34899.35771 | L191: =K191/Dźwignie!$D$5 -> 1.744967886 | M191: =I191/Dźwignie!$D$2 -> 0.215428134 | N191: =K191/Dźwignie!$D$3 -> 0.1744967886 | O191: 2.16047981 | P191: 1 | Q191: 2.16047981 | S191: =C191*Dźwignie!$G$8 -> 93085.62681 | T191: 186171.2536 | U191: =Dźwignie!$G$9 -> 150000 | V191: 36171.25361 | W191: =V191-Dźwignie!$D$6 -> 36171.25361 | X191: =IF(W191>0,W191*(1-Dźwignie!$D$9),W191) -> 29298.71543 | Y191: =X191/Dźwignie!$D$5 -> 1.464935771 | Z191: =V191/Dźwignie!$D$2 -> 0.1808562681 | AA191: =X191/Dźwignie!$D$3 -> 0.1464935771 | AB191: 5.14693949 | AC191: 1 | AD191: 5.14693949
A192: 180 | B192: 0.8469018936 | C192: =NORMINV(B192,Dźwignie!$L$8,Dźwignie!$L$9) -> 251161.8066 | D192: =Dźwignie!$L$7*C192 -> 376742.7099 | F192: =C192*Dźwignie!$G$5 -> 251161.8066 | G192: 125580.9033 | H192: =Dźwignie!$G$6 -> 50000 | I192: 75580.90332 | J192: =I192-Dźwignie!$D$6 -> 75580.90332 | K192: =IF(J192>0,J192*(1-Dźwignie!$D$9),J192) -> 61220.53169 | L192: =K192/Dźwignie!$D$5 -> 3.061026584 | M192: =I192/Dźwignie!$D$2 -> 0.3779045166 | N192: =K192/Dźwignie!$D$3 -> 0.3061026584 | O192: 1.661542768 | P192: 1 | Q192: 1.661542768 | S192: =C192*Dźwignie!$G$8 -> 125580.9033 | T192: 251161.8066 | U192: =Dźwignie!$G$9 -> 150000 | V192: 101161.8066 | W192: =V192-Dźwignie!$D$6 -> 101161.8066 | X192: =IF(W192>0,W192*(1-Dźwignie!$D$9),W192) -> 81941.06337 | Y192: =X192/Dźwignie!$D$5 -> 4.097053169 | Z192: =V192/Dźwignie!$D$2 -> 0.5058090332 | AA192: =X192/Dźwignie!$D$3 -> 0.4097053169 | AB192: 2.482773044 | AC192: 1 | AD192: 2.482773044
A193: 181 | B193: 0.4040996432 | C193: =NORMINV(B193,Dźwignie!$L$8,Dźwignie!$L$9) -> 187862.5139 | D193: =Dźwignie!$L$7*C193 -> 281793.7708 | F193: =C193*Dźwignie!$G$5 -> 187862.5139 | G193: 93931.25694 | H193: =Dźwignie!$G$6 -> 50000 | I193: 43931.25694 | J193: =I193-Dźwignie!$D$6 -> 43931.25694 | K193: =IF(J193>0,J193*(1-Dźwignie!$D$9),J193) -> 35584.31812 | L193: =K193/Dźwignie!$D$5 -> 1.779215906 | M193: =I193/Dźwignie!$D$2 -> 0.2196562847 | N193: =K193/Dźwignie!$D$3 -> 0.1779215906 | O193: 2.138141803 | P193: 1 | Q193: 2.138141803 | S193: =C193*Dźwignie!$G$8 -> 93931.25694 | T193: 187862.5139 | U193: =Dźwignie!$G$9 -> 150000 | V193: 37862.51389 | W193: =V193-Dźwignie!$D$6 -> 37862.51389 | X193: =IF(W193>0,W193*(1-Dźwignie!$D$9),W193) -> 30668.63625 | Y193: =X193/Dźwignie!$D$5 -> 1.533431812 | Z193: =V193/Dźwignie!$D$2 -> 0.1893125694 | AA193: =X193/Dźwignie!$D$3 -> 0.1533431812 | AB193: 4.961702079 | AC193: 1 | AD193: 4.961702079
A194: 182 | B194: 0.8957754374 | C194: =NORMINV(B194,Dźwignie!$L$8,Dźwignie!$L$9) -> 262892.0693 | D194: =Dźwignie!$L$7*C194 -> 394338.1039 | F194: =C194*Dźwignie!$G$5 -> 262892.0693 | G194: 131446.0346 | H194: =Dźwignie!$G$6 -> 50000 | I194: 81446.03463 | J194: =I194-Dźwignie!$D$6 -> 81446.03463 | K194: =IF(J194>0,J194*(1-Dźwignie!$D$9),J194) -> 65971.28805 | L194: =K194/Dźwignie!$D$5 -> 3.298564403 | M194: =I194/Dźwignie!$D$2 -> 0.4072301732 | N194: =K194/Dźwignie!$D$3 -> 0.3298564403 | O194: 1.61390343 | P194: 1 | Q194: 1.61390343 | S194: =C194*Dźwignie!$G$8 -> 131446.0346 | T194: 262892.0693 | U194: =Dźwignie!$G$9 -> 150000 | V194: 112892.0693 | W194: =V194-Dźwignie!$D$6 -> 112892.0693 | X194: =IF(W194>0,W194*(1-Dźwignie!$D$9),W194) -> 91442.5761 | Y194: =X194/Dźwignie!$D$5 -> 4.572128805 | Z194: =V194/Dźwignie!$D$2 -> 0.5644603463 | AA194: =X194/Dźwignie!$D$3 -> 0.4572128805 | AB194: 2.328702724 | AC194: 1 | AD194: 2.328702724
A195: 183 | B195: 0.1184409261 | C195: =NORMINV(B195,Dźwignie!$L$8,Dźwignie!$L$9) -> 140859.1715 | D195: =Dźwignie!$L$7*C195 -> 211288.7573 | F195: =C195*Dźwignie!$G$5 -> 140859.1715 | G195: 70429.58575 | H195: =Dźwignie!$G$6 -> 50000 | I195: 20429.58575 | J195: =I195-Dźwignie!$D$6 -> 20429.58575 | K195: =IF(J195>0,J195*(1-Dźwignie!$D$9),J195) -> 16547.96446 | L195: =K195/Dźwignie!$D$5 -> 0.827398223 | M195: =I195/Dźwignie!$D$2 -> 0.1021479288 | N195: =K195/Dźwignie!$D$3 -> 0.0827398223 | O195: 3.447430927 | P195: 1 | Q195: 3.447430927 | S195: =C195*Dźwignie!$G$8 -> 70429.58575 | T195: 140859.1715 | U195: =Dźwignie!$G$9 -> 150000 | V195: -9140.828493 | W195: =V195-Dźwignie!$D$6 -> -9140.828493 | X195: =IF(W195>0,W195*(1-Dźwignie!$D$9),W195) -> -9140.828493 | Y195: =X195/Dźwignie!$D$5 -> -0.4570414247 | Z195: =V195/Dźwignie!$D$2 -> -0.04570414247 | AA195: =X195/Dźwignie!$D$3 -> -0.04570414247 | AB195: -15.40989108 | AC195: 1 | AD195: -15.40989108
A196: 184 | B196: 0.7948658466 | C196: =NORMINV(B196,Dźwignie!$L$8,Dźwignie!$L$9) -> 241171.078 | D196: =Dźwignie!$L$7*C196 -> 361756.617 | F196: =C196*Dźwignie!$G$5 -> 241171.078 | G196: 120585.539 | H196: =Dźwignie!$G$6 -> 50000 | I196: 70585.539 | J196: =I196-Dźwignie!$D$6 -> 70585.539 | K196: =IF(J196>0,J196*(1-Dźwignie!$D$9),J196) -> 57174.28659 | L196: =K196/Dźwignie!$D$5 -> 2.858714329 | M196: =I196/Dźwignie!$D$2 -> 0.352927695 | N196: =K196/Dźwignie!$D$3 -> 0.2858714329 | O196: 1.708360391 | P196: 1 | Q196: 1.708360391 | S196: =C196*Dźwignie!$G$8 -> 120585.539 | T196: 241171.078 | U196: =Dźwignie!$G$9 -> 150000 | V196: 91171.078 | W196: =V196-Dźwignie!$D$6 -> 91171.078 | X196: =IF(W196>0,W196*(1-Dźwignie!$D$9),W196) -> 73848.57318 | Y196: =X196/Dźwignie!$D$5 -> 3.692428659 | Z196: =V196/Dźwignie!$D$2 -> 0.45585539 | AA196: =X196/Dźwignie!$D$3 -> 0.3692428659 | AB196: 2.645258598 | AC196: 1 | AD196: 2.645258598
A197: 185 | B197: 0.4198269248 | C197: =NORMINV(B197,Dźwignie!$L$8,Dźwignie!$L$9) -> 189883.1867 | D197: =Dźwignie!$L$7*C197 -> 284824.78 | F197: =C197*Dźwignie!$G$5 -> 189883.1867 | G197: 94941.59333 | H197: =Dźwignie!$G$6 -> 50000 | I197: 44941.59333 | J197: =I197-Dźwignie!$D$6 -> 44941.59333 | K197: =IF(J197>0,J197*(1-Dźwignie!$D$9),J197) -> 36402.6906 | L197: =K197/Dźwignie!$D$5 -> 1.82013453 | M197: =I197/Dźwignie!$D$2 -> 0.2247079667 | N197: =K197/Dźwignie!$D$3 -> 0.182013453 | O197: 2.112555125 | P197: 1 | Q197: 2.112555125 | S197: =C197*Dźwignie!$G$8 -> 94941.59333 | T197: 189883.1867 | U197: =Dźwignie!$G$9 -> 150000 | V197: 39883.18667 | W197: =V197-Dźwignie!$D$6 -> 39883.18667 | X197: =IF(W197>0,W197*(1-Dźwignie!$D$9),W197) -> 32305.3812 | Y197: =X197/Dźwignie!$D$5 -> 1.61526906 | Z197: =V197/Dźwignie!$D$2 -> 0.1994159333 | AA197: =X197/Dźwignie!$D$3 -> 0.161526906 | AB197: 4.760983325 | AC197: 1 | AD197: 4.760983325
A198: 186 | B198: 0.5197361708 | C198: =NORMINV(B198,Dźwignie!$L$8,Dźwignie!$L$9) -> 202474.572 | D198: =Dźwignie!$L$7*C198 -> 303711.858 | F198: =C198*Dźwignie!$G$5 -> 202474.572 | G198: 101237.286 | H198: =Dźwignie!$G$6 -> 50000 | I198: 51237.28601 | J198: =I198-Dźwignie!$D$6 -> 51237.28601 | K198: =IF(J198>0,J198*(1-Dźwignie!$D$9),J198) -> 41502.20167 | L198: =K198/Dźwignie!$D$5 -> 2.075110083 | M198: =I198/Dźwignie!$D$2 -> 0.25618643 | N198: =K198/Dźwignie!$D$3 -> 0.2075110083 | O198: 1.975851843 | P198: 1 | Q198: 1.975851843 | S198: =C198*Dźwignie!$G$8 -> 101237.286 | T198: 202474.572 | U198: =Dźwignie!$G$9 -> 150000 | V198: 52474.57202 | W198: =V198-Dźwignie!$D$6 -> 52474.57202 | X198: =IF(W198>0,W198*(1-Dźwignie!$D$9),W198) -> 42504.40333 | Y198: =X198/Dźwignie!$D$5 -> 2.125220167 | Z198: =V198/Dźwignie!$D$2 -> 0.2623728601 | AA198: =X198/Dźwignie!$D$3 -> 0.2125220167 | AB198: 3.858527364 | AC198: 1 | AD198: 3.858527364
A199: 187 | B199: 0.4831309915 | C199: =NORMINV(B199,Dźwignie!$L$8,Dźwignie!$L$9) -> 197885.1529 | D199: =Dźwignie!$L$7*C199 -> 296827.7293 | F199: =C199*Dźwignie!$G$5 -> 197885.1529 | G199: 98942.57645 | H199: =Dźwignie!$G$6 -> 50000 | I199: 48942.57645 | J199: =I199-Dźwignie!$D$6 -> 48942.57645 | K199: =IF(J199>0,J199*(1-Dźwignie!$D$9),J199) -> 39643.48692 | L199: =K199/Dźwignie!$D$5 -> 1.982174346 | M199: =I199/Dźwignie!$D$2 -> 0.2447128822 | N199: =K199/Dźwignie!$D$3 -> 0.1982174346 | O199: 2.021605392 | P199: 1 | Q199: 2.021605392 | S199: =C199*Dźwignie!$G$8 -> 98942.57645 | T199: 197885.1529 | U199: =Dźwignie!$G$9 -> 150000 | V199: 47885.15289 | W199: =V199-Dźwignie!$D$6 -> 47885.15289 | X199: =IF(W199>0,W199*(1-Dźwignie!$D$9),W199) -> 38786.97384 | Y199: =X199/Dźwignie!$D$5 -> 1.939348692 | Z199: =V199/Dźwignie!$D$2 -> 0.2394257645 | AA199: =X199/Dźwignie!$D$3 -> 0.1939348692 | AB199: 4.132494958 | AC199: 1 | AD199: 4.132494958
A200: 188 | B200: 0.2410788536 | C200: =NORMINV(B200,Dźwignie!$L$8,Dźwignie!$L$9) -> 164858.1798 | D200: =Dźwignie!$L$7*C200 -> 247287.2697 | F200: =C200*Dźwignie!$G$5 -> 164858.1798 | G200: 82429.08989 | H200: =Dźwignie!$G$6 -> 50000 | I200: 32429.08989 | J200: =I200-Dźwignie!$D$6 -> 32429.08989 | K200: =IF(J200>0,J200*(1-Dźwignie!$D$9),J200) -> 26267.56281 | L200: =K200/Dźwignie!$D$5 -> 1.31337814 | M200: =I200/Dźwignie!$D$2 -> 0.1621454494 | N200: =K200/Dźwignie!$D$3 -> 0.131337814 | O200: 2.54182557 | P200: 1 | Q200: 2.54182557 | S200: =C200*Dźwignie!$G$8 -> 82429.08989 | T200: 164858.1798 | U200: =Dźwignie!$G$9 -> 150000 | V200: 14858.17977 | W200: =V200-Dźwignie!$D$6 -> 14858.17977 | X200: =IF(W200>0,W200*(1-Dźwignie!$D$9),W200) -> 12035.12562 | Y200: =X200/Dźwignie!$D$5 -> 0.6017562808 | Z200: =V200/Dźwignie!$D$2 -> 0.07429089887 | AA200: =X200/Dźwignie!$D$3 -> 0.06017562808 | AB200: 11.09544926 | AC200: 1 | AD200: 11.09544926
A201: 189 | B201: 0.7103382945 | C201: =NORMINV(B201,Dźwignie!$L$8,Dźwignie!$L$9) -> 227718.6638 | D201: =Dźwignie!$L$7*C201 -> 341577.9957 | F201: =C201*Dźwignie!$G$5 -> 227718.6638 | G201: 113859.3319 | H201: =Dźwignie!$G$6 -> 50000 | I201: 63859.33192 | J201: =I201-Dźwignie!$D$6 -> 63859.33192 | K201: =IF(J201>0,J201*(1-Dźwignie!$D$9),J201) -> 51726.05885 | L201: =K201/Dźwignie!$D$5 -> 2.586302943 | M201: =I201/Dźwignie!$D$2 -> 0.3192966596 | N201: =K201/Dźwignie!$D$3 -> 0.2586302943 | O201: 1.782970922 | P201: 1 | Q201: 1.782970922 | S201: =C201*Dźwignie!$G$8 -> 113859.3319 | T201: 227718.6638 | U201: =Dźwignie!$G$9 -> 150000 | V201: 77718.66383 | W201: =V201-Dźwignie!$D$6 -> 77718.66383 | X201: =IF(W201>0,W201*(1-Dźwignie!$D$9),W201) -> 62952.1177 | Y201: =X201/Dźwignie!$D$5 -> 3.147605885 | Z201: =V201/Dźwignie!$D$2 -> 0.3885933192 | AA201: =X201/Dźwignie!$D$3 -> 0.3147605885 | AB201: 2.930038328 | AC201: 1 | AD201: 2.930038328
A202: 190 | B202: 0.01075088978 | C202: =NORMINV(B202,Dźwignie!$L$8,Dźwignie!$L$9) -> 85047.21759 | D202: =Dźwignie!$L$7*C202 -> 127570.8264 | F202: =C202*Dźwignie!$G$5 -> 85047.21759 | G202: 42523.60879 | H202: =Dźwignie!$G$6 -> 50000 | I202: -7476.391206 | J202: =I202-Dźwignie!$D$6 -> -7476.391206 | K202: =IF(J202>0,J202*(1-Dźwignie!$D$9),J202) -> -7476.391206 | L202: =K202/Dźwignie!$D$5 -> -0.3738195603 | M202: =I202/Dźwignie!$D$2 -> -0.03738195603 | N202: =K202/Dźwignie!$D$3 -> -0.03738195603 | O202: -5.687718529 | P202: 1 | Q202: -5.687718529 | S202: =C202*Dźwignie!$G$8 -> 42523.60879 | T202: 85047.21759 | U202: =Dźwignie!$G$9 -> 150000 | V202: -64952.78241 | W202: =V202-Dźwignie!$D$6 -> -64952.78241 | X202: =IF(W202>0,W202*(1-Dźwignie!$D$9),W202) -> -64952.78241 | Y202: =X202/Dźwignie!$D$5 -> -3.247639121 | Z202: =V202/Dźwignie!$D$2 -> -0.3247639121 | AA202: =X202/Dźwignie!$D$3 -> -0.3247639121 | AB202: -1.30936989 | AC202: 1 | AD202: -1.30936989
A203: 191 | B203: 0.1724403501 | C203: =NORMINV(B203,Dźwignie!$L$8,Dźwignie!$L$9) -> 152771.7204 | D203: =Dźwignie!$L$7*C203 -> 229157.5806 | F203: =C203*Dźwignie!$G$5 -> 152771.7204 | G203: 76385.86019 | H203: =Dźwignie!$G$6 -> 50000 | I203: 26385.86019 | J203: =I203-Dźwignie!$D$6 -> 26385.86019 | K203: =IF(J203>0,J203*(1-Dźwignie!$D$9),J203) -> 21372.54675 | L203: =K203/Dźwignie!$D$5 -> 1.068627338 | M203: =I203/Dźwignie!$D$2 -> 0.131929301 | N203: =K203/Dźwignie!$D$3 -> 0.1068627338 | O203: 2.894954329 | P203: 1 | Q203: 2.894954329 | S203: =C203*Dźwignie!$G$8 -> 76385.86019 | T203: 152771.7204 | U203: =Dźwignie!$G$9 -> 150000 | V203: 2771.72038 | W203: =V203-Dźwignie!$D$6 -> 2771.72038 | X203: =IF(W203>0,W203*(1-Dźwignie!$D$9),W203) -> 2245.093508 | Y203: =X203/Dźwignie!$D$5 -> 0.1122546754 | Z203: =V203/Dźwignie!$D$2 -> 0.0138586019 | AA203: =X203/Dźwignie!$D$3 -> 0.01122546754 | AB203: 55.11801315 | AC203: 1 | AD203: 55.11801315
A204: 192 | B204: 0.9360902309 | C204: =NORMINV(B204,Dźwignie!$L$8,Dźwignie!$L$9) -> 276137.8447 | D204: =Dźwignie!$L$7*C204 -> 414206.767 | F204: =C204*Dźwignie!$G$5 -> 276137.8447 | G204: 138068.9223 | H204: =Dźwignie!$G$6 -> 50000 | I204: 88068.92235 | J204: =I204-Dźwignie!$D$6 -> 88068.92235 | K204: =IF(J204>0,J204*(1-Dźwignie!$D$9),J204) -> 71335.8271 | L204: =K204/Dźwignie!$D$5 -> 3.566791355 | M204: =I204/Dźwignie!$D$2 -> 0.4403446117 | N204: =K204/Dźwignie!$D$3 -> 0.3566791355 | O204: 1.567737162 | P204: 1 | Q204: 1.567737162 | S204: =C204*Dźwignie!$G$8 -> 138068.9223 | T204: 276137.8447 | U204: =Dźwignie!$G$9 -> 150000 | V204: 126137.8447 | W204: =V204-Dźwignie!$D$6 -> 126137.8447 | X204: =IF(W204>0,W204*(1-Dźwignie!$D$9),W204) -> 102171.6542 | Y204: =X204/Dźwignie!$D$5 -> 5.10858271 | Z204: =V204/Dźwignie!$D$2 -> 0.6306892235 | AA204: =X204/Dźwignie!$D$3 -> 0.510858271 | AB204: 2.189175226 | AC204: 1 | AD204: 2.189175226
... 808 more rows
